Organisation Code,Organisation Label,Effective Date,Organisational Unit,Service Division Label,Category Internal Name,Purpose,Detailed Expenditure Code,Payment Date,Transaction Number,Irrecoverable VAT Amount,Amount,Capital Or Revenue,Benificiary Name,Procurement Card
Http://opendatacommunities.org/id/metropolitan-district-council/leeds,Leeds City Council,31/05/2019,Resources and Housing,Leeds Building Services,Supplies and Services,Operational Materials,205,02/05/2019,1905-00001,0.00,130.72,R,A & A Electrical Distributors Ltd,No
Http://opendatacommunities.org/id/metropolitan-district-council/leeds,Leeds City Council,31/05/2019,Resources and Housing,Leeds Building Services,Supplies and Services,Operational Materials,205,03/05/2019,1905-00002,0.00,296.40,R,A & A Electrical Distributors Ltd,No
Http://opendatacommunities.org/id/metropolitan-district-council/leeds,Leeds City Council,31/05/2019,City Development,Recreation  ,Supplies and Services,Computer Software & Equipment,214,26/04/2019,1905-00003,0.00,140.00,R,A & E Squire Ltd,Yes
Http://opendatacommunities.org/id/metropolitan-district-council/leeds,Leeds City Council,31/05/2019,Adults and Health,Services For Older People Under 65 P/Dis,Third Party Payments,Sheltered Accommodation,569,01/05/2019,1905-00004,0.00,15750.00,R,A & V Transitional Homes,No
Http://opendatacommunities.org/id/metropolitan-district-council/leeds,Leeds City Council,31/05/2019,Adults and Health,Services For Older People Under 65 P/Dis,Third Party Payments,Sheltered Accommodation,569,29/05/2019,1905-00005,0.00,4500.00,R,A & V Transitional Homes,No
Http://opendatacommunities.org/id/metropolitan-district-council/leeds,Leeds City Council,31/05/2019,Resources and Housing,Leeds Building Services,Supplies and Services,Operational Materials,205,03/05/2019,1905-00006,0.00,55.76,R,A andrews & Sons (Marbles & Tiles),No
Http://opendatacommunities.org/id/metropolitan-district-council/leeds,Leeds City Council,31/05/2019,Resources and Housing,Leeds Building Services,Supplies and Services,Operational Materials,205,07/05/2019,1905-00007,0.00,-36.00,R,A andrews & Sons (Marbles & Tiles),No
Http://opendatacommunities.org/id/metropolitan-district-council/leeds,Leeds City Council,31/05/2019,Resources and Housing,Leeds Building Services,Supplies and Services,Operational Materials,205,07/05/2019,1905-00008,0.00,18.02,R,A andrews & Sons (Marbles & Tiles),No
Http://opendatacommunities.org/id/metropolitan-district-council/leeds,Leeds City Council,31/05/2019,Resources and Housing,Leeds Building Services,Supplies and Services,Operational Materials,205,07/05/2019,1905-00009,0.00,23.77,R,A andrews & Sons (Marbles & Tiles),No
Http://opendatacommunities.org/id/metropolitan-district-council/leeds,Leeds City Council,31/05/2019,Resources and Housing,Leeds Building Services,Supplies and Services,Operational Materials,205,07/05/2019,1905-00010,0.00,8.25,R,A andrews & Sons (Marbles & Tiles),No
Http://opendatacommunities.org/id/metropolitan-district-council/leeds,Leeds City Council,31/05/2019,Resources and Housing,Leeds Building Services,Supplies and Services,Operational Materials,205,17/05/2019,1905-00011,0.00,42.88,R,A andrews & Sons (Marbles & Tiles),No
Http://opendatacommunities.org/id/metropolitan-district-council/leeds,Leeds City Council,31/05/2019,Resources and Housing,Leeds Building Services,Supplies and Services,Operational Materials,205,17/05/2019,1905-00012,0.00,20.45,R,A andrews & Sons (Marbles & Tiles),No
Http://opendatacommunities.org/id/metropolitan-district-council/leeds,Leeds City Council,31/05/2019,Resources and Housing,Leeds Building Services,Supplies and Services,Operational Materials,205,23/05/2019,1905-00013,0.00,32.10,R,A andrews & Sons (Marbles & Tiles),No
Http://opendatacommunities.org/id/metropolitan-district-council/leeds,Leeds City Council,31/05/2019,Resources and Housing,Leeds Building Services,Supplies and Services,Operational Materials,205,23/05/2019,1905-00014,0.00,53.32,R,A andrews & Sons (Marbles & Tiles),No
Http://opendatacommunities.org/id/metropolitan-district-council/leeds,Leeds City Council,31/05/2019,Resources and Housing,Leeds Building Services,Supplies and Services,Operational Materials,205,31/05/2019,1905-00015,0.00,28.71,R,A andrews & Sons (Marbles & Tiles),No
Http://opendatacommunities.org/id/metropolitan-district-council/leeds,Leeds City Council,31/05/2019,Resources and Housing,Leeds Building Services,Supplies and Services,Operational Materials,205,31/05/2019,1905-00016,0.00,69.02,R,A andrews & Sons (Marbles & Tiles),No
Http://opendatacommunities.org/id/metropolitan-district-council/leeds,Leeds City Council,31/05/2019,City Development,Libraries  Arts & Heritage,Supplies and Services,Other Hired and Contracted Services,265,24/05/2019,1905-00017,0.00,120.00,R,A B Jones,No
Http://opendatacommunities.org/id/metropolitan-district-council/leeds,Leeds City Council,31/05/2019,Resources and Housing,Leeds Building Services,Supplies and Services,Other Hired and Contracted Services,265,10/05/2019,1905-00018,0.00,43830.00,R,A Buckler (Haulage) Ltd,No
Http://opendatacommunities.org/id/metropolitan-district-council/leeds,Leeds City Council,31/05/2019,City Development,Libraries  Arts & Heritage,Supplies and Services,Other Hired and Contracted Services,265,28/05/2019,1905-00019,0.00,1311.40,R,A C Entertainment Technologies Ltd,No
Http://opendatacommunities.org/id/metropolitan-district-council/leeds,Leeds City Council,31/05/2019,Children and Families,Social Care,Third Party Payments,Services Rendered By Other Organisations,511,03/05/2019,1905-00020,0.00,89.44,R,REDACTED PERSONAL DATA,No
Http://opendatacommunities.org/id/metropolitan-district-council/leeds,Leeds City Council,31/05/2019,Children and Families,Social Care,Third Party Payments,Services Rendered By Other Organisations,511,01/05/2019,1905-00021,0.00,202.80,R,REDACTED PERSONAL DATA,No
Http://opendatacommunities.org/id/metropolitan-district-council/leeds,Leeds City Council,31/05/2019,Children and Families,Social Care,Third Party Payments,Services Rendered By Other Organisations,511,03/05/2019,1905-00022,0.00,838.50,R,REDACTED PERSONAL DATA,No
Http://opendatacommunities.org/id/metropolitan-district-council/leeds,Leeds City Council,31/05/2019,Resources and Housing,Leeds Building Services,Supplies and Services,Other Hired and Contracted Services,265,08/05/2019,1905-00023,0.00,135.00,R,A Coole Electrical Ltd,No
Http://opendatacommunities.org/id/metropolitan-district-council/leeds,Leeds City Council,31/05/2019,Resources and Housing,Leeds Building Services,Supplies and Services,Other Hired and Contracted Services,265,08/05/2019,1905-00024,0.00,160.00,R,A Coole Electrical Ltd,No
Http://opendatacommunities.org/id/metropolitan-district-council/leeds,Leeds City Council,31/05/2019,Resources and Housing,Leeds Building Services,Supplies and Services,Other Hired and Contracted Services,265,08/05/2019,1905-00025,0.00,85.00,R,A Coole Electrical Ltd,No
Http://opendatacommunities.org/id/metropolitan-district-council/leeds,Leeds City Council,31/05/2019,Resources and Housing,Leeds Building Services,Supplies and Services,Other Hired and Contracted Services,265,30/05/2019,1905-00026,0.00,135.00,R,A Coole Electrical Ltd,No
Http://opendatacommunities.org/id/metropolitan-district-council/leeds,Leeds City Council,31/05/2019,Resources and Housing,Leeds Building Services,Supplies and Services,Other Hired and Contracted Services,265,30/05/2019,1905-00027,0.00,85.00,R,A Coole Electrical Ltd,No
Http://opendatacommunities.org/id/metropolitan-district-council/leeds,Leeds City Council,31/05/2019,Children and Families,Social Care,Third Party Payments,Services Rendered By Voluntary Sector,505,01/05/2019,1905-00028,0.00,1257.36,R,REDACTED PERSONAL DATA,No
Http://opendatacommunities.org/id/metropolitan-district-council/leeds,Leeds City Council,31/05/2019,Children and Families,Social Care,Third Party Payments,Services Rendered By Voluntary Sector,505,03/05/2019,1905-00029,0.00,5064.54,R,REDACTED PERSONAL DATA,No
Http://opendatacommunities.org/id/metropolitan-district-council/leeds,Leeds City Council,31/05/2019,City Development,Highways,Capital,Construction,3,28/05/2019,1905-00030,0.00,108444.92,C,A E Yates Ltd,No
Http://opendatacommunities.org/id/metropolitan-district-council/leeds,Leeds City Council,31/05/2019,Strategic Landlord,Housing Management,Supplies and Services,Compensation Claims,200,22/05/2019,1905-00031,0.00,31.52,R,REDACTED PERSONAL DATA,No
Http://opendatacommunities.org/id/metropolitan-district-council/leeds,Leeds City Council,31/05/2019,Children and Families,Social Care,Third Party Payments,Services Rendered By Other Organisations,511,03/05/2019,1905-00032,0.00,1431.04,R,REDACTED PERSONAL DATA,No
Http://opendatacommunities.org/id/metropolitan-district-council/leeds,Leeds City Council,31/05/2019,Children and Families,Social Care,Third Party Payments,Services Rendered By Other Organisations,511,03/05/2019,1905-00033,0.00,335.40,R,REDACTED PERSONAL DATA,No
Http://opendatacommunities.org/id/metropolitan-district-council/leeds,Leeds City Council,31/05/2019,Children and Families,Social Care,Third Party Payments,Services Rendered By Other Organisations,511,03/05/2019,1905-00034,0.00,167.70,R,REDACTED PERSONAL DATA,No
Http://opendatacommunities.org/id/metropolitan-district-council/leeds,Leeds City Council,31/05/2019,Children and Families,Social Care,Third Party Payments,Services Rendered By Other Organisations,511,03/05/2019,1905-00035,0.00,178.88,R,REDACTED PERSONAL DATA,No
Http://opendatacommunities.org/id/metropolitan-district-council/leeds,Leeds City Council,31/05/2019,Children and Families,Social Care,Third Party Payments,Services Rendered By Other Organisations,511,03/05/2019,1905-00036,0.00,335.40,R,REDACTED PERSONAL DATA,No
Http://opendatacommunities.org/id/metropolitan-district-council/leeds,Leeds City Council,31/05/2019,Resources and Housing,Leeds Building Services,Supplies and Services,Operational Materials,205,01/05/2019,1905-00037,0.00,64.00,R,A J H  Pump Supply & Repair Ltd,No
Http://opendatacommunities.org/id/metropolitan-district-council/leeds,Leeds City Council,31/05/2019,Resources and Housing,Leeds Building Services,Supplies and Services,Operational Materials,205,03/05/2019,1905-00038,0.00,37.50,R,A J H  Pump Supply & Repair Ltd,No
Http://opendatacommunities.org/id/metropolitan-district-council/leeds,Leeds City Council,31/05/2019,Resources and Housing,Leeds Building Services,Supplies and Services,Operational Materials,205,03/05/2019,1905-00039,0.00,1485.00,R,A J H  Pump Supply & Repair Ltd,No
Http://opendatacommunities.org/id/metropolitan-district-council/leeds,Leeds City Council,31/05/2019,Resources and Housing,Leeds Building Services,Supplies and Services,Operational Materials,205,03/05/2019,1905-00040,0.00,26.87,R,A J H  Pump Supply & Repair Ltd,No
Http://opendatacommunities.org/id/metropolitan-district-council/leeds,Leeds City Council,31/05/2019,Resources and Housing,Leeds Building Services,Supplies and Services,Operational Materials,205,03/05/2019,1905-00041,0.00,77.20,R,A J H  Pump Supply & Repair Ltd,No
Http://opendatacommunities.org/id/metropolitan-district-council/leeds,Leeds City Council,31/05/2019,Resources and Housing,Leeds Building Services,Supplies and Services,Operational Materials,205,03/05/2019,1905-00042,0.00,890.60,R,A J H  Pump Supply & Repair Ltd,No
Http://opendatacommunities.org/id/metropolitan-district-council/leeds,Leeds City Council,31/05/2019,Resources and Housing,Leeds Building Services,Supplies and Services,Operational Materials,205,03/05/2019,1905-00043,0.00,62.33,R,A J H  Pump Supply & Repair Ltd,No
Http://opendatacommunities.org/id/metropolitan-district-council/leeds,Leeds City Council,31/05/2019,Resources and Housing,Leeds Building Services,Supplies and Services,Operational Materials,205,07/05/2019,1905-00044,0.00,16.20,R,A J H  Pump Supply & Repair Ltd,No
Http://opendatacommunities.org/id/metropolitan-district-council/leeds,Leeds City Council,31/05/2019,Resources and Housing,Leeds Building Services,Supplies and Services,Operational Materials,205,07/05/2019,1905-00045,0.00,53.45,R,A J H  Pump Supply & Repair Ltd,No
Http://opendatacommunities.org/id/metropolitan-district-council/leeds,Leeds City Council,31/05/2019,Resources and Housing,Leeds Building Services,Supplies and Services,Operational Materials,205,07/05/2019,1905-00046,0.00,26.87,R,A J H  Pump Supply & Repair Ltd,No
Http://opendatacommunities.org/id/metropolitan-district-council/leeds,Leeds City Council,31/05/2019,Resources and Housing,Leeds Building Services,Supplies and Services,Operational Materials,205,08/05/2019,1905-00047,0.00,670.25,R,A J H  Pump Supply & Repair Ltd,No
Http://opendatacommunities.org/id/metropolitan-district-council/leeds,Leeds City Council,31/05/2019,Resources and Housing,Leeds Building Services,Supplies and Services,Operational Materials,205,08/05/2019,1905-00048,0.00,29.89,R,A J H  Pump Supply & Repair Ltd,No
Http://opendatacommunities.org/id/metropolitan-district-council/leeds,Leeds City Council,31/05/2019,Resources and Housing,Leeds Building Services,Supplies and Services,Operational Materials,205,08/05/2019,1905-00049,0.00,210.00,R,A J H  Pump Supply & Repair Ltd,No
Http://opendatacommunities.org/id/metropolitan-district-council/leeds,Leeds City Council,31/05/2019,Resources and Housing,Leeds Building Services,Supplies and Services,Operational Materials,205,08/05/2019,1905-00050,0.00,60.95,R,A J H  Pump Supply & Repair Ltd,No
Http://opendatacommunities.org/id/metropolitan-district-council/leeds,Leeds City Council,31/05/2019,Resources and Housing,Leeds Building Services,Supplies and Services,Operational Materials,205,08/05/2019,1905-00051,0.00,118.50,R,A J H  Pump Supply & Repair Ltd,No
Http://opendatacommunities.org/id/metropolitan-district-council/leeds,Leeds City Council,31/05/2019,Resources and Housing,Leeds Building Services,Supplies and Services,Operational Materials,205,08/05/2019,1905-00052,0.00,610.34,R,A J H  Pump Supply & Repair Ltd,No
Http://opendatacommunities.org/id/metropolitan-district-council/leeds,Leeds City Council,31/05/2019,Resources and Housing,Leeds Building Services,Supplies and Services,Operational Materials,205,10/05/2019,1905-00053,0.00,48.50,R,A J H  Pump Supply & Repair Ltd,No
Http://opendatacommunities.org/id/metropolitan-district-council/leeds,Leeds City Council,31/05/2019,Resources and Housing,Leeds Building Services,Supplies and Services,Operational Materials,205,10/05/2019,1905-00054,0.00,525.00,R,A J H  Pump Supply & Repair Ltd,No
Http://opendatacommunities.org/id/metropolitan-district-council/leeds,Leeds City Council,31/05/2019,Resources and Housing,Leeds Building Services,Supplies and Services,Operational Materials,205,10/05/2019,1905-00055,0.00,420.00,R,A J H  Pump Supply & Repair Ltd,No
Http://opendatacommunities.org/id/metropolitan-district-council/leeds,Leeds City Council,31/05/2019,Resources and Housing,Leeds Building Services,Supplies and Services,Operational Materials,205,10/05/2019,1905-00056,0.00,40.90,R,A J H  Pump Supply & Repair Ltd,No
Http://opendatacommunities.org/id/metropolitan-district-council/leeds,Leeds City Council,31/05/2019,Resources and Housing,Leeds Building Services,Supplies and Services,Operational Materials,205,10/05/2019,1905-00057,0.00,85.90,R,A J H  Pump Supply & Repair Ltd,No
Http://opendatacommunities.org/id/metropolitan-district-council/leeds,Leeds City Council,31/05/2019,Resources and Housing,Leeds Building Services,Supplies and Services,Operational Materials,205,10/05/2019,1905-00058,0.00,1885.00,R,A J H  Pump Supply & Repair Ltd,No
Http://opendatacommunities.org/id/metropolitan-district-council/leeds,Leeds City Council,31/05/2019,Resources and Housing,Leeds Building Services,Supplies and Services,Operational Materials,205,15/05/2019,1905-00059,0.00,191.37,R,A J H  Pump Supply & Repair Ltd,No
Http://opendatacommunities.org/id/metropolitan-district-council/leeds,Leeds City Council,31/05/2019,Resources and Housing,Leeds Building Services,Supplies and Services,Operational Materials,205,15/05/2019,1905-00060,0.00,90.19,R,A J H  Pump Supply & Repair Ltd,No
Http://opendatacommunities.org/id/metropolitan-district-council/leeds,Leeds City Council,31/05/2019,Resources and Housing,Leeds Building Services,Supplies and Services,Operational Materials,205,15/05/2019,1905-00061,0.00,18.47,R,A J H  Pump Supply & Repair Ltd,No
Http://opendatacommunities.org/id/metropolitan-district-council/leeds,Leeds City Council,31/05/2019,Resources and Housing,Leeds Building Services,Supplies and Services,Operational Materials,205,15/05/2019,1905-00062,0.00,198.65,R,A J H  Pump Supply & Repair Ltd,No
Http://opendatacommunities.org/id/metropolitan-district-council/leeds,Leeds City Council,31/05/2019,Resources and Housing,Leeds Building Services,Supplies and Services,Operational Materials,205,15/05/2019,1905-00063,0.00,104.45,R,A J H  Pump Supply & Repair Ltd,No
Http://opendatacommunities.org/id/metropolitan-district-council/leeds,Leeds City Council,31/05/2019,Resources and Housing,Leeds Building Services,Supplies and Services,Operational Materials,205,15/05/2019,1905-00064,0.00,31.01,R,A J H  Pump Supply & Repair Ltd,No
Http://opendatacommunities.org/id/metropolitan-district-council/leeds,Leeds City Council,31/05/2019,Resources and Housing,Leeds Building Services,Supplies and Services,Operational Materials,205,15/05/2019,1905-00065,0.00,9.00,R,A J H  Pump Supply & Repair Ltd,No
Http://opendatacommunities.org/id/metropolitan-district-council/leeds,Leeds City Council,31/05/2019,Resources and Housing,Leeds Building Services,Supplies and Services,Operational Materials,205,15/05/2019,1905-00066,0.00,149.00,R,A J H  Pump Supply & Repair Ltd,No
Http://opendatacommunities.org/id/metropolitan-district-council/leeds,Leeds City Council,31/05/2019,Resources and Housing,Leeds Building Services,Supplies and Services,Operational Materials,205,15/05/2019,1905-00067,0.00,104.45,R,A J H  Pump Supply & Repair Ltd,No
Http://opendatacommunities.org/id/metropolitan-district-council/leeds,Leeds City Council,31/05/2019,Resources and Housing,Leeds Building Services,Supplies and Services,Operational Materials,205,15/05/2019,1905-00068,0.00,8.36,R,A J H  Pump Supply & Repair Ltd,No
Http://opendatacommunities.org/id/metropolitan-district-council/leeds,Leeds City Council,31/05/2019,Resources and Housing,Leeds Building Services,Supplies and Services,Operational Materials,205,15/05/2019,1905-00069,0.00,1175.00,R,A J H  Pump Supply & Repair Ltd,No
Http://opendatacommunities.org/id/metropolitan-district-council/leeds,Leeds City Council,31/05/2019,Resources and Housing,Leeds Building Services,Supplies and Services,Operational Materials,205,15/05/2019,1905-00070,0.00,27.84,R,A J H  Pump Supply & Repair Ltd,No
Http://opendatacommunities.org/id/metropolitan-district-council/leeds,Leeds City Council,31/05/2019,Resources and Housing,Leeds Building Services,Supplies and Services,Operational Materials,205,15/05/2019,1905-00071,0.00,167.28,R,A J H  Pump Supply & Repair Ltd,No
Http://opendatacommunities.org/id/metropolitan-district-council/leeds,Leeds City Council,31/05/2019,Resources and Housing,Leeds Building Services,Supplies and Services,Operational Materials,205,15/05/2019,1905-00072,0.00,19.74,R,A J H  Pump Supply & Repair Ltd,No
Http://opendatacommunities.org/id/metropolitan-district-council/leeds,Leeds City Council,31/05/2019,Resources and Housing,Leeds Building Services,Supplies and Services,Operational Materials,205,16/05/2019,1905-00073,0.00,146.88,R,A J H  Pump Supply & Repair Ltd,No
Http://opendatacommunities.org/id/metropolitan-district-council/leeds,Leeds City Council,31/05/2019,Resources and Housing,Leeds Building Services,Supplies and Services,Operational Materials,205,16/05/2019,1905-00074,0.00,114.38,R,A J H  Pump Supply & Repair Ltd,No
Http://opendatacommunities.org/id/metropolitan-district-council/leeds,Leeds City Council,31/05/2019,Resources and Housing,Leeds Building Services,Supplies and Services,Operational Materials,205,16/05/2019,1905-00075,0.00,19.90,R,A J H  Pump Supply & Repair Ltd,No
Http://opendatacommunities.org/id/metropolitan-district-council/leeds,Leeds City Council,31/05/2019,Resources and Housing,Leeds Building Services,Supplies and Services,Operational Materials,205,23/05/2019,1905-00076,0.00,531.00,R,A J H  Pump Supply & Repair Ltd,No
Http://opendatacommunities.org/id/metropolitan-district-council/leeds,Leeds City Council,31/05/2019,Resources and Housing,Leeds Building Services,Supplies and Services,Operational Materials,205,23/05/2019,1905-00077,0.00,58.10,R,A J H  Pump Supply & Repair Ltd,No
Http://opendatacommunities.org/id/metropolitan-district-council/leeds,Leeds City Council,31/05/2019,Resources and Housing,Leeds Building Services,Supplies and Services,Operational Materials,205,23/05/2019,1905-00078,0.00,650.00,R,A J H  Pump Supply & Repair Ltd,No
Http://opendatacommunities.org/id/metropolitan-district-council/leeds,Leeds City Council,31/05/2019,Resources and Housing,Leeds Building Services,Supplies and Services,Operational Materials,205,23/05/2019,1905-00079,0.00,161.95,R,A J H  Pump Supply & Repair Ltd,No
Http://opendatacommunities.org/id/metropolitan-district-council/leeds,Leeds City Council,31/05/2019,Resources and Housing,Leeds Building Services,Supplies and Services,Operational Materials,205,23/05/2019,1905-00080,0.00,682.99,R,A J H  Pump Supply & Repair Ltd,No
Http://opendatacommunities.org/id/metropolitan-district-council/leeds,Leeds City Council,31/05/2019,Resources and Housing,Leeds Building Services,Supplies and Services,Operational Materials,205,23/05/2019,1905-00081,0.00,340.00,R,A J H  Pump Supply & Repair Ltd,No
Http://opendatacommunities.org/id/metropolitan-district-council/leeds,Leeds City Council,31/05/2019,Resources and Housing,Leeds Building Services,Supplies and Services,Operational Materials,205,23/05/2019,1905-00082,0.00,204.48,R,A J H  Pump Supply & Repair Ltd,No
Http://opendatacommunities.org/id/metropolitan-district-council/leeds,Leeds City Council,31/05/2019,Resources and Housing,Leeds Building Services,Supplies and Services,Operational Materials,205,23/05/2019,1905-00083,0.00,72.00,R,A J H  Pump Supply & Repair Ltd,No
Http://opendatacommunities.org/id/metropolitan-district-council/leeds,Leeds City Council,31/05/2019,Resources and Housing,Leeds Building Services,Supplies and Services,Operational Materials,205,23/05/2019,1905-00084,0.00,108.73,R,A J H  Pump Supply & Repair Ltd,No
Http://opendatacommunities.org/id/metropolitan-district-council/leeds,Leeds City Council,31/05/2019,Resources and Housing,Leeds Building Services,Supplies and Services,Operational Materials,205,23/05/2019,1905-00085,0.00,94.90,R,A J H  Pump Supply & Repair Ltd,No
Http://opendatacommunities.org/id/metropolitan-district-council/leeds,Leeds City Council,31/05/2019,Resources and Housing,Leeds Building Services,Supplies and Services,Operational Materials,205,23/05/2019,1905-00086,0.00,104.29,R,A J H  Pump Supply & Repair Ltd,No
Http://opendatacommunities.org/id/metropolitan-district-council/leeds,Leeds City Council,31/05/2019,Resources and Housing,Leeds Building Services,Supplies and Services,Operational Materials,205,23/05/2019,1905-00087,0.00,13.90,R,A J H  Pump Supply & Repair Ltd,No
Http://opendatacommunities.org/id/metropolitan-district-council/leeds,Leeds City Council,31/05/2019,Resources and Housing,Leeds Building Services,Supplies and Services,Operational Materials,205,23/05/2019,1905-00088,0.00,120.00,R,A J H  Pump Supply & Repair Ltd,No
Http://opendatacommunities.org/id/metropolitan-district-council/leeds,Leeds City Council,31/05/2019,Resources and Housing,Leeds Building Services,Supplies and Services,Operational Materials,205,23/05/2019,1905-00089,0.00,199.50,R,A J H  Pump Supply & Repair Ltd,No
Http://opendatacommunities.org/id/metropolitan-district-council/leeds,Leeds City Council,31/05/2019,Resources and Housing,Leeds Building Services,Supplies and Services,Operational Materials,205,23/05/2019,1905-00090,0.00,70.95,R,A J H  Pump Supply & Repair Ltd,No
Http://opendatacommunities.org/id/metropolitan-district-council/leeds,Leeds City Council,31/05/2019,Resources and Housing,Leeds Building Services,Supplies and Services,Operational Materials,205,23/05/2019,1905-00091,0.00,55.45,R,A J H  Pump Supply & Repair Ltd,No
Http://opendatacommunities.org/id/metropolitan-district-council/leeds,Leeds City Council,31/05/2019,Resources and Housing,Leeds Building Services,Supplies and Services,Operational Materials,205,23/05/2019,1905-00092,0.00,9.25,R,A J H  Pump Supply & Repair Ltd,No
Http://opendatacommunities.org/id/metropolitan-district-council/leeds,Leeds City Council,31/05/2019,Resources and Housing,Leeds Building Services,Supplies and Services,Operational Materials,205,23/05/2019,1905-00093,0.00,134.50,R,A J H  Pump Supply & Repair Ltd,No
Http://opendatacommunities.org/id/metropolitan-district-council/leeds,Leeds City Council,31/05/2019,Resources and Housing,Leeds Building Services,Supplies and Services,Operational Materials,205,23/05/2019,1905-00094,0.00,48.38,R,A J H  Pump Supply & Repair Ltd,No
Http://opendatacommunities.org/id/metropolitan-district-council/leeds,Leeds City Council,31/05/2019,Resources and Housing,Leeds Building Services,Supplies and Services,Operational Materials,205,23/05/2019,1905-00095,0.00,286.85,R,A J H  Pump Supply & Repair Ltd,No
Http://opendatacommunities.org/id/metropolitan-district-council/leeds,Leeds City Council,31/05/2019,Resources and Housing,Leeds Building Services,Supplies and Services,Operational Materials,205,23/05/2019,1905-00096,0.00,64.75,R,A J H  Pump Supply & Repair Ltd,No
Http://opendatacommunities.org/id/metropolitan-district-council/leeds,Leeds City Council,31/05/2019,Resources and Housing,Leeds Building Services,Supplies and Services,Operational Materials,205,23/05/2019,1905-00097,0.00,207.03,R,A J H  Pump Supply & Repair Ltd,No
Http://opendatacommunities.org/id/metropolitan-district-council/leeds,Leeds City Council,31/05/2019,Resources and Housing,Leeds Building Services,Supplies and Services,Operational Materials,205,23/05/2019,1905-00098,0.00,99.99,R,A J H  Pump Supply & Repair Ltd,No
Http://opendatacommunities.org/id/metropolitan-district-council/leeds,Leeds City Council,31/05/2019,Resources and Housing,Leeds Building Services,Supplies and Services,Operational Materials,205,23/05/2019,1905-00099,0.00,348.91,R,A J H  Pump Supply & Repair Ltd,No
Http://opendatacommunities.org/id/metropolitan-district-council/leeds,Leeds City Council,31/05/2019,Resources and Housing,Leeds Building Services,Supplies and Services,Operational Materials,205,23/05/2019,1905-00100,0.00,70.99,R,A J H  Pump Supply & Repair Ltd,No
Http://opendatacommunities.org/id/metropolitan-district-council/leeds,Leeds City Council,31/05/2019,Resources and Housing,Leeds Building Services,Supplies and Services,Operational Materials,205,23/05/2019,1905-00101,0.00,120.00,R,A J H  Pump Supply & Repair Ltd,No
Http://opendatacommunities.org/id/metropolitan-district-council/leeds,Leeds City Council,31/05/2019,Resources and Housing,Leeds Building Services,Supplies and Services,Operational Materials,205,23/05/2019,1905-00102,0.00,165.00,R,A J H  Pump Supply & Repair Ltd,No
Http://opendatacommunities.org/id/metropolitan-district-council/leeds,Leeds City Council,31/05/2019,Resources and Housing,Leeds Building Services,Supplies and Services,Operational Materials,205,23/05/2019,1905-00103,0.00,84.05,R,A J H  Pump Supply & Repair Ltd,No
Http://opendatacommunities.org/id/metropolitan-district-council/leeds,Leeds City Council,31/05/2019,Resources and Housing,Leeds Building Services,Supplies and Services,Operational Materials,205,23/05/2019,1905-00104,0.00,146.40,R,A J H  Pump Supply & Repair Ltd,No
Http://opendatacommunities.org/id/metropolitan-district-council/leeds,Leeds City Council,31/05/2019,Resources and Housing,Corporate Property Management,Premises,Maintenance Of Buildings,101,29/05/2019,1905-00105,0.00,180.00,R,A J H  Pump Supply & Repair Ltd,No
Http://opendatacommunities.org/id/metropolitan-district-council/leeds,Leeds City Council,31/05/2019,Resources and Housing,Leeds Building Services,Supplies and Services,Operational Materials,205,31/05/2019,1905-00106,0.00,30.70,R,A J H  Pump Supply & Repair Ltd,No
Http://opendatacommunities.org/id/metropolitan-district-council/leeds,Leeds City Council,31/05/2019,Resources and Housing,Leeds Building Services,Supplies and Services,Operational Materials,205,31/05/2019,1905-00107,0.00,57.79,R,A J H  Pump Supply & Repair Ltd,No
Http://opendatacommunities.org/id/metropolitan-district-council/leeds,Leeds City Council,31/05/2019,Resources and Housing,Leeds Building Services,Supplies and Services,Operational Materials,205,31/05/2019,1905-00108,0.00,158.58,R,A J H  Pump Supply & Repair Ltd,No
Http://opendatacommunities.org/id/metropolitan-district-council/leeds,Leeds City Council,31/05/2019,Resources and Housing,Leeds Building Services,Supplies and Services,Operational Materials,205,31/05/2019,1905-00109,0.00,40.06,R,A J H  Pump Supply & Repair Ltd,No
Http://opendatacommunities.org/id/metropolitan-district-council/leeds,Leeds City Council,31/05/2019,Resources and Housing,Leeds Building Services,Supplies and Services,Operational Materials,205,31/05/2019,1905-00110,0.00,174.70,R,A J H  Pump Supply & Repair Ltd,No
Http://opendatacommunities.org/id/metropolitan-district-council/leeds,Leeds City Council,31/05/2019,Resources and Housing,Leeds Building Services,Supplies and Services,Operational Materials,205,31/05/2019,1905-00111,0.00,50.19,R,A J H  Pump Supply & Repair Ltd,No
Http://opendatacommunities.org/id/metropolitan-district-council/leeds,Leeds City Council,31/05/2019,Resources and Housing,Leeds Building Services,Supplies and Services,Operational Materials,205,31/05/2019,1905-00112,0.00,318.34,R,A J H  Pump Supply & Repair Ltd,No
Http://opendatacommunities.org/id/metropolitan-district-council/leeds,Leeds City Council,31/05/2019,Resources and Housing,Leeds Building Services,Supplies and Services,Operational Materials,205,31/05/2019,1905-00113,0.00,314.88,R,A J H  Pump Supply & Repair Ltd,No
Http://opendatacommunities.org/id/metropolitan-district-council/leeds,Leeds City Council,31/05/2019,Resources and Housing,Leeds Building Services,Supplies and Services,Operational Materials,205,31/05/2019,1905-00114,0.00,39.50,R,A J H  Pump Supply & Repair Ltd,No
Http://opendatacommunities.org/id/metropolitan-district-council/leeds,Leeds City Council,31/05/2019,City Development,Libraries  Arts & Heritage,Supplies and Services,Art Galleries Total Stores,3,31/05/2019,1905-00115,0.00,1153.20,R,A J Promotions,No
Http://opendatacommunities.org/id/metropolitan-district-council/leeds,Leeds City Council,31/05/2019,City Development,Libraries  Arts & Heritage,Supplies and Services,Other Hired and Contracted Services,265,17/05/2019,1905-00116,0.00,460.00,R,A J Wightman,No
Http://opendatacommunities.org/id/metropolitan-district-council/leeds,Leeds City Council,31/05/2019,Children and Families,Social Care,Third Party Payments,Services Rendered By Other Organisations,511,01/05/2019,1905-00117,0.00,608.40,R,REDACTED PERSONAL DATA,No
Http://opendatacommunities.org/id/metropolitan-district-council/leeds,Leeds City Council,31/05/2019,Children and Families,Social Care,Third Party Payments,Services Rendered By Other Organisations,511,03/05/2019,1905-00118,0.00,2224.82,R,REDACTED PERSONAL DATA,No
Http://opendatacommunities.org/id/metropolitan-district-council/leeds,Leeds City Council,31/05/2019,Adults and Health,Public Health,Third Party Payments,Public Health Commissioned Services,526,28/05/2019,1905-00119,0.00,968.00,R,A Khan & K Muneer,No
Http://opendatacommunities.org/id/metropolitan-district-council/leeds,Leeds City Council,31/05/2019,Resources and Housing,HRA Housing Leeds,Capital,Other Costs,7,16/05/2019,1905-00120,0.00,20.00,C,REDACTED PERSONAL DATA,No
Http://opendatacommunities.org/id/metropolitan-district-council/leeds,Leeds City Council,31/05/2019,Children and Families,Social Care,Third Party Payments,Services Rendered By Voluntary Sector,505,10/05/2019,1905-00121,0.00,-43.75,R,A Little Something Extra Ltd,No
Http://opendatacommunities.org/id/metropolitan-district-council/leeds,Leeds City Council,31/05/2019,Children and Families,Social Care,Third Party Payments,Section 17,551,10/05/2019,1905-00122,0.00,490.00,R,A Little Something Extra Ltd,No
Http://opendatacommunities.org/id/metropolitan-district-council/leeds,Leeds City Council,31/05/2019,Communities and Environment,Communities,Supplies and Services,'Well Being' Large Grants Projects,230,10/05/2019,1905-00123,0.00,200.00,R,A Little Something Extra Ltd,No
Http://opendatacommunities.org/id/metropolitan-district-council/leeds,Leeds City Council,31/05/2019,Children and Families,Social Care,Third Party Payments,Services Rendered By Voluntary Sector,505,22/05/2019,1905-00124,0.00,700.00,R,A Little Something Extra Ltd,No
Http://opendatacommunities.org/id/metropolitan-district-council/leeds,Leeds City Council,31/05/2019,Children and Families,Social Care,Third Party Payments,Services Rendered By Other Organisations,511,23/05/2019,1905-00125,0.00,186.00,R,A Little Something Extra Ltd,No
Http://opendatacommunities.org/id/metropolitan-district-council/leeds,Leeds City Council,31/05/2019,Children and Families,Social Care,Third Party Payments,Services Rendered By Other Organisations,511,23/05/2019,1905-00126,0.00,262.10,R,A Little Something Extra Ltd,No
Http://opendatacommunities.org/id/metropolitan-district-council/leeds,Leeds City Council,31/05/2019,Children and Families,Social Care,Third Party Payments,Services Rendered By Other Organisations,511,23/05/2019,1905-00127,0.00,93.00,R,A Little Something Extra Ltd,No
Http://opendatacommunities.org/id/metropolitan-district-council/leeds,Leeds City Council,31/05/2019,City Development,Libraries  Arts & Heritage,Supplies and Services,Other Hired and Contracted Services,265,31/05/2019,1905-00128,0.00,11250.00,R,A M Miller/Euco,No
Http://opendatacommunities.org/id/metropolitan-district-council/leeds,Leeds City Council,31/05/2019,Communities and Environment,Customer Access,Supplies and Services,Other Hired and Contracted Services,265,03/05/2019,1905-00129,0.00,162.00,R,A Mohammed,No
Http://opendatacommunities.org/id/metropolitan-district-council/leeds,Leeds City Council,31/05/2019,Children and Families,Social Care,Third Party Payments,Services Rendered By Other Organisations,511,01/05/2019,1905-00130,0.00,1014.00,R,A Myland,No
Http://opendatacommunities.org/id/metropolitan-district-council/leeds,Leeds City Council,31/05/2019,Children and Families,Social Care,Third Party Payments,Services Rendered By Other Organisations,511,03/05/2019,1905-00131,0.00,1509.30,R,A Myland,No
Http://opendatacommunities.org/id/metropolitan-district-council/leeds,Leeds City Council,31/05/2019,Children and Families,Social Care,Third Party Payments,Services Rendered By Other Organisations,511,01/05/2019,1905-00132,0.00,121.68,R,REDACTED PERSONAL DATA,No
Http://opendatacommunities.org/id/metropolitan-district-council/leeds,Leeds City Council,31/05/2019,Children and Families,Social Care,Third Party Payments,Services Rendered By Other Organisations,511,03/05/2019,1905-00133,0.00,436.02,R,REDACTED PERSONAL DATA,No
Http://opendatacommunities.org/id/metropolitan-district-council/leeds,Leeds City Council,31/05/2019,Resources and Housing,Shared Services,Supplies and Services,Other Hired and Contracted Services,265,10/05/2019,1905-00134,0.00,120.00,R,A Star Couriers Ltd,No
Http://opendatacommunities.org/id/metropolitan-district-council/leeds,Leeds City Council,31/05/2019,Resources and Housing,Shared Services,Supplies and Services,Other Hired and Contracted Services,265,17/05/2019,1905-00135,0.00,137.50,R,A Star Couriers Ltd,No
Http://opendatacommunities.org/id/metropolitan-district-council/leeds,Leeds City Council,31/05/2019,Communities and Environment,Communities,Supplies and Services,Other Hired and Contracted Services,265,02/05/2019,1905-00136,0.00,75.00,R,REDACTED PERSONAL DATA,No
Http://opendatacommunities.org/id/metropolitan-district-council/leeds,Leeds City Council,31/05/2019,Communities and Environment,Communities,Supplies and Services,Other Hired and Contracted Services,265,08/05/2019,1905-00137,0.00,100.00,R,REDACTED PERSONAL DATA,No
Http://opendatacommunities.org/id/metropolitan-district-council/leeds,Leeds City Council,31/05/2019,Resources and Housing,HRA Housing Leeds,Capital,Other Costs,7,02/05/2019,1905-00138,0.00,217.02,C,REDACTED PERSONAL DATA,No
Http://opendatacommunities.org/id/metropolitan-district-council/leeds,Leeds City Council,31/05/2019,Children and Families,Social Care,Third Party Payments,Placement Support,550,01/05/2019,1905-00139,0.00,1512.00,R,A Taxis,No
Http://opendatacommunities.org/id/metropolitan-district-council/leeds,Leeds City Council,31/05/2019,Children and Families,Social Care,Third Party Payments,Services Rendered By Other Organisations,511,01/05/2019,1905-00140,0.00,202.80,R,REDACTED PERSONAL DATA,No
Http://opendatacommunities.org/id/metropolitan-district-council/leeds,Leeds City Council,31/05/2019,Children and Families,Social Care,Third Party Payments,Services Rendered By Other Organisations,511,03/05/2019,1905-00141,0.00,167.70,R,REDACTED PERSONAL DATA,No
Http://opendatacommunities.org/id/metropolitan-district-council/leeds,Leeds City Council,31/05/2019,Children and Families,Social Care,Third Party Payments,Services Rendered By Other Organisations,511,03/05/2019,1905-00142,0.00,335.40,R,REDACTED PERSONAL DATA,No
Http://opendatacommunities.org/id/metropolitan-district-council/leeds,Leeds City Council,31/05/2019,Children and Families,Social Care,Third Party Payments,General External Residential Placements,507,07/05/2019,1905-00143,0.00,607.50,R,A Wilderness Way Ltd,No
Http://opendatacommunities.org/id/metropolitan-district-council/leeds,Leeds City Council,31/05/2019,Children and Families,Social Care,Third Party Payments,General External Residential Placements,507,07/05/2019,1905-00144,0.00,178.20,R,A Wilderness Way Ltd,No
Http://opendatacommunities.org/id/metropolitan-district-council/leeds,Leeds City Council,31/05/2019,Children and Families,Social Care,Third Party Payments,General External Residential Placements,507,07/05/2019,1905-00145,0.00,486.00,R,A Wilderness Way Ltd,No
Http://opendatacommunities.org/id/metropolitan-district-council/leeds,Leeds City Council,31/05/2019,Children and Families,Social Care,Third Party Payments,General External Residential Placements,507,17/05/2019,1905-00146,0.00,13026.02,R,A Wilderness Way Ltd,No
Http://opendatacommunities.org/id/metropolitan-district-council/leeds,Leeds City Council,31/05/2019,Children and Families,Social Care,Third Party Payments,General External Residential Placements,507,17/05/2019,1905-00147,0.00,18282.90,R,A Wilderness Way Ltd,No
Http://opendatacommunities.org/id/metropolitan-district-council/leeds,Leeds City Council,31/05/2019,Children and Families,Social Care,Third Party Payments,General External Residential Placements,507,17/05/2019,1905-00148,0.00,28792.90,R,A Wilderness Way Ltd,No
Http://opendatacommunities.org/id/metropolitan-district-council/leeds,Leeds City Council,31/05/2019,Children and Families,Social Care,Third Party Payments,General External Residential Placements,507,17/05/2019,1905-00149,0.00,800.00,R,A Wilderness Way Ltd,No
Http://opendatacommunities.org/id/metropolitan-district-council/leeds,Leeds City Council,31/05/2019,Children and Families,Social Care,Third Party Payments,General External Residential Placements,507,17/05/2019,1905-00150,0.00,-6150.00,R,A Wilderness Way Ltd,No
Http://opendatacommunities.org/id/metropolitan-district-council/leeds,Leeds City Council,31/05/2019,Children and Families,Social Care,Third Party Payments,General External Residential Placements,507,17/05/2019,1905-00151,0.00,14886.88,R,A Wilderness Way Ltd,No
Http://opendatacommunities.org/id/metropolitan-district-council/leeds,Leeds City Council,31/05/2019,Children and Families,Social Care,Third Party Payments,General External Residential Placements,507,17/05/2019,1905-00152,0.00,-4360.00,R,A Wilderness Way Ltd,No
Http://opendatacommunities.org/id/metropolitan-district-council/leeds,Leeds City Council,31/05/2019,Children and Families,Social Care,Third Party Payments,General External Residential Placements,507,17/05/2019,1905-00153,0.00,800.00,R,A Wilderness Way Ltd,No
Http://opendatacommunities.org/id/metropolitan-district-council/leeds,Leeds City Council,31/05/2019,Children and Families,Social Care,Third Party Payments,General External Residential Placements,507,17/05/2019,1905-00154,0.00,-291.60,R,A Wilderness Way Ltd,No
Http://opendatacommunities.org/id/metropolitan-district-council/leeds,Leeds City Council,31/05/2019,Children and Families,Social Care,Third Party Payments,General External Residential Placements,507,17/05/2019,1905-00155,0.00,-454.40,R,A Wilderness Way Ltd,No
Http://opendatacommunities.org/id/metropolitan-district-council/leeds,Leeds City Council,31/05/2019,Children and Families,Social Care,Third Party Payments,General External Residential Placements,507,23/05/2019,1905-00156,0.00,89.10,R,A Wilderness Way Ltd,No
Http://opendatacommunities.org/id/metropolitan-district-council/leeds,Leeds City Council,31/05/2019,Children and Families,Social Care,Third Party Payments,General External Residential Placements,507,31/05/2019,1905-00157,0.00,267.30,R,A Wilderness Way Ltd,No
Http://opendatacommunities.org/id/metropolitan-district-council/leeds,Leeds City Council,31/05/2019,Children and Families,Social Care,Third Party Payments,General External Residential Placements,507,31/05/2019,1905-00158,0.00,364.50,R,A Wilderness Way Ltd,No
Http://opendatacommunities.org/id/metropolitan-district-council/leeds,Leeds City Council,31/05/2019,Children and Families,Social Care,Third Party Payments,General External Residential Placements,507,31/05/2019,1905-00159,0.00,118.04,R,A Wilderness Way Ltd,No
Http://opendatacommunities.org/id/metropolitan-district-council/leeds,Leeds City Council,31/05/2019,Communities and Environment,Waste Management,Capital,Furniture and Equipment,5,08/05/2019,1905-00160,0.00,12150.00,C,A&C Weber Uk Ltd,No
Http://opendatacommunities.org/id/metropolitan-district-council/leeds,Leeds City Council,31/05/2019,Communities and Environment,Waste Management,Capital,Furniture and Equipment,5,08/05/2019,1905-00161,0.00,-12150.00,C,A&C Weber Uk Ltd,No
Http://opendatacommunities.org/id/metropolitan-district-council/leeds,Leeds City Council,31/05/2019,Children and Families,Social Care,Third Party Payments,Rents (non supported),552,03/05/2019,1905-00162,0.00,4152.57,R,A&V Transitional Homes,No
Http://opendatacommunities.org/id/metropolitan-district-council/leeds,Leeds City Council,31/05/2019,Children and Families,Social Care,Third Party Payments,Rents (non supported),552,31/05/2019,1905-00163,0.00,4791.43,R,A&V Transitional Homes,No
Http://opendatacommunities.org/id/metropolitan-district-council/leeds,Leeds City Council,31/05/2019,Children and Families,Social Care,Third Party Payments,Rents (non supported),552,31/05/2019,1905-00164,0.00,4791.43,R,A&V Transitional Homes,No
Http://opendatacommunities.org/id/metropolitan-district-council/leeds,Leeds City Council,31/05/2019,Resources and Housing,Leeds Building Services,Supplies and Services,Other Hired and Contracted Services,265,02/05/2019,1905-00165,0.00,5667.00,R,A1 Stair Lift Services,No
Http://opendatacommunities.org/id/metropolitan-district-council/leeds,Leeds City Council,31/05/2019,Resources and Housing,Leeds Building Services,Supplies and Services,Other Hired and Contracted Services,265,03/05/2019,1905-00166,0.00,2700.00,R,A1 Stair Lift Services,No
Http://opendatacommunities.org/id/metropolitan-district-council/leeds,Leeds City Council,31/05/2019,Resources and Housing,Leeds Building Services,Supplies and Services,Operational Materials,205,10/05/2019,1905-00167,0.00,98.60,R,Aalco Leeds,No
Http://opendatacommunities.org/id/metropolitan-district-council/leeds,Leeds City Council,31/05/2019,Communities and Environment,Elections  Licensing and Registration,Income,Admissions  Booking Fees & Ticket Sales,933,30/05/2019,1905-00168,0.00,295.00,R,REDACTED PERSONAL DATA,No
Http://opendatacommunities.org/id/metropolitan-district-council/leeds,Leeds City Council,31/05/2019,Adults and Health,Services For Older People - 65 and Over,Third Party Payments,Residential Care Dementia,571,01/05/2019,1905-00169,0.00,1819.24,R,Aaron Court Care Home,No
Http://opendatacommunities.org/id/metropolitan-district-council/leeds,Leeds City Council as Accountable Body,31/05/2019,Social Services Pooled Budgets,Leeds Community Equip Store Pooled Budgt,Supplies and Services,Other Equipment,203,03/05/2019,1905-00170,0.00,444.00,R,Aat (Gb) Ltd,No
Http://opendatacommunities.org/id/metropolitan-district-council/leeds,Leeds City Council as Accountable Body,31/05/2019,Social Services Pooled Budgets,Leeds Community Equip Store Pooled Budgt,Supplies and Services,Other Equipment,203,15/05/2019,1905-00171,0.00,1134.00,R,Aat (Gb) Ltd,No
Http://opendatacommunities.org/id/metropolitan-district-council/leeds,Leeds City Council as Accountable Body,31/05/2019,Social Services Pooled Budgets,Leeds Community Equip Store Pooled Budgt,Supplies and Services,Other Equipment,203,17/05/2019,1905-00172,0.00,444.00,R,Aat (Gb) Ltd,No
Http://opendatacommunities.org/id/metropolitan-district-council/leeds,Leeds City Council,31/05/2019,Adults and Health,Social Services Support Services,Transport,Public Transport Expenses,310,03/05/2019,1905-00173,0.00,228.00,R,Ab Cars,No
Http://opendatacommunities.org/id/metropolitan-district-council/leeds,Leeds City Council,31/05/2019,Communities and Environment,Parks and Countryside  ,Supplies and Services,Resaleable Materials,204,03/04/2019,1905-00174,0.00,101.52,R,Abacus Cards Ltd,Yes
Http://opendatacommunities.org/id/metropolitan-district-council/leeds,Leeds City Council,31/05/2019,Children and Families,Social Care,Support Services,Legal Disbursements,411,03/05/2019,1905-00175,0.00,35.00,R,Abacus Express Limited,No
Http://opendatacommunities.org/id/metropolitan-district-council/leeds,Leeds City Council,31/05/2019,Children and Families,Social Care,Support Services,Legal Disbursements,411,08/05/2019,1905-00176,0.00,17.74,R,Abacus Express Limited,No
Http://opendatacommunities.org/id/metropolitan-district-council/leeds,Leeds City Council,31/05/2019,Children and Families,Social Care,Support Services,Legal Disbursements,411,23/05/2019,1905-00177,0.00,35.00,R,Abacus Express Limited,No
Http://opendatacommunities.org/id/metropolitan-district-council/leeds,Leeds City Council,31/05/2019,Children and Families,Social Care,Support Services,Legal Disbursements,411,23/05/2019,1905-00178,0.00,35.00,R,Abacus Express Limited,No
Http://opendatacommunities.org/id/metropolitan-district-council/leeds,Leeds City Council,31/05/2019,Children and Families,Social Care,Support Services,Legal Disbursements,411,23/05/2019,1905-00179,0.00,35.00,R,Abacus Express Limited,No
Http://opendatacommunities.org/id/metropolitan-district-council/leeds,Leeds City Council,31/05/2019,Children and Families,Social Care,Support Services,Legal Disbursements,411,24/05/2019,1905-00180,0.00,43.00,R,Abacus Express Limited,No
Http://opendatacommunities.org/id/metropolitan-district-council/leeds,Leeds City Council,31/05/2019,Communities and Environment,Communities,Supplies and Services,Bought In Professional Services,277,10/05/2019,1905-00181,0.00,18.00,R,Abas Eljanabi,No
Http://opendatacommunities.org/id/metropolitan-district-council/leeds,Leeds City Council,31/05/2019,Adults and Health,Public Health,Third Party Payments,Public Health Commissioned Services,526,28/05/2019,1905-00182,0.00,625.00,R,Abbey Grange Medical Practice,No
Http://opendatacommunities.org/id/metropolitan-district-council/leeds,Leeds City Council,31/05/2019,Adults and Health,Services For Adults Under 65 Mental/Dis,Third Party Payments,Nursing Home,570,01/05/2019,1905-00183,0.00,1852.00,R,Abbey Grange Nursing Home,No
Http://opendatacommunities.org/id/metropolitan-district-council/leeds,Leeds City Council,31/05/2019,Adults and Health,Services For Adults Under 65 Mental/Dis,Third Party Payments,Nursing Home,570,29/05/2019,1905-00184,0.00,1852.00,R,Abbey Grange Nursing Home,No
Http://opendatacommunities.org/id/metropolitan-district-council/leeds,Leeds City Council,31/05/2019,Children and Families,Social Care,Premises,Hire of meeting rooms,143,03/05/2019,1905-00185,0.00,30.00,R,Abbey Multi Academy Trust,No
Http://opendatacommunities.org/id/metropolitan-district-council/leeds,Leeds City Council,31/05/2019,Children and Families,Social Care,Supplies and Services,Food & Drink,231,03/05/2019,1905-00186,0.00,36.00,R,Abbey Multi Academy Trust,No
Http://opendatacommunities.org/id/metropolitan-district-council/leeds,Leeds City Council,31/05/2019,Children and Families,Social Care,Premises,Hire of meeting rooms,143,03/05/2019,1905-00187,0.00,50.00,R,Abbey Multi Academy Trust,No
Http://opendatacommunities.org/id/metropolitan-district-council/leeds,Leeds City Council,31/05/2019,Children and Families,Social Care,Supplies and Services,Food & Drink,231,03/05/2019,1905-00188,0.00,48.00,R,Abbey Multi Academy Trust,No
Http://opendatacommunities.org/id/metropolitan-district-council/leeds,Leeds City Council,31/05/2019,Children and Families,Learning,Supplies and Services,Other Hired and Contracted Services,265,03/05/2019,1905-00189,0.00,75.00,R,Abbey Multi Academy Trust,No
Http://opendatacommunities.org/id/metropolitan-district-council/leeds,Leeds City Council,31/05/2019,Children and Families,Social Care,Third Party Payments,Services Rendered By Other Organisations,511,08/05/2019,1905-00190,0.00,1598.00,R,Abbey Multi Academy Trust,No
Http://opendatacommunities.org/id/metropolitan-district-council/leeds,Leeds City Council,31/05/2019,Children and Families,Learning,Supplies and Services,Other Hired and Contracted Services,265,09/05/2019,1905-00191,0.00,78.00,R,Abbey Multi Academy Trust,No
Http://opendatacommunities.org/id/metropolitan-district-council/leeds,Leeds City Council,31/05/2019,Communities and Environment,Parks and Countryside,Supplies and Services,Other Hired and Contracted Services,265,28/05/2019,1905-00192,0.00,1100.00,R,Abbotts Memorials,No
Http://opendatacommunities.org/id/metropolitan-district-council/leeds,Leeds City Council,31/05/2019,Children and Families,Social Care,Third Party Payments,Services Rendered By Other Organisations,511,01/05/2019,1905-00193,0.00,1014.00,R,Abc Daycare and Ozone Out Of School,No
Http://opendatacommunities.org/id/metropolitan-district-council/leeds,Leeds City Council,31/05/2019,Children and Families,Social Care,Third Party Payments,Services Rendered By Other Organisations,511,03/05/2019,1905-00194,0.00,12074.40,R,Abc Daycare and Ozone Out Of School,No
Http://opendatacommunities.org/id/metropolitan-district-council/leeds,Leeds City Council,31/05/2019,Children and Families,Social Care,Third Party Payments,Services Rendered By Voluntary Sector,505,08/05/2019,1905-00195,0.00,663.18,R,Abc Daycare and Ozone Out Of School,No
Http://opendatacommunities.org/id/metropolitan-district-council/leeds,Leeds City Council,31/05/2019,Children and Families,Social Care,Third Party Payments,Services Rendered By Other Organisations,511,03/05/2019,1905-00196,0.00,6316.70,R,Abc Nursery At Lufc,No
Http://opendatacommunities.org/id/metropolitan-district-council/leeds,Leeds City Council,31/05/2019,Children and Families,Social Care,Third Party Payments,Services Rendered By Other Organisations,511,01/05/2019,1905-00197,0.00,1014.00,R,Abc@D'S Childcare Services,No
Http://opendatacommunities.org/id/metropolitan-district-council/leeds,Leeds City Council,31/05/2019,Children and Families,Social Care,Third Party Payments,Services Rendered By Other Organisations,511,03/05/2019,1905-00198,0.00,9642.75,R,Abc@D'S Childcare Services,No
Http://opendatacommunities.org/id/metropolitan-district-council/leeds,Leeds City Council,31/05/2019,Communities and Environment,Customer Access,Supplies and Services,Other Hired and Contracted Services,265,03/05/2019,1905-00199,0.00,132.50,R,Abdulahad Denha,No
Http://opendatacommunities.org/id/metropolitan-district-council/leeds,Leeds City Council,31/05/2019,Communities and Environment,Communities,Supplies and Services,Other Hired and Contracted Services,265,28/05/2019,1905-00200,0.00,15.00,R,REDACTED PERSONAL DATA,No
Http://opendatacommunities.org/id/metropolitan-district-council/leeds,Leeds City Council,31/05/2019,Adults and Health,Services For Older People - 65 and Over,Third Party Payments,Nursing Home,570,01/05/2019,1905-00201,0.00,25519.66,R,Aberford Hall,No
Http://opendatacommunities.org/id/metropolitan-district-council/leeds,Leeds City Council,31/05/2019,Adults and Health,Services For Older People - 65 and Over,Third Party Payments,Residential,580,01/05/2019,1905-00202,0.00,3076.72,R,Aberford Hall,No
Http://opendatacommunities.org/id/metropolitan-district-council/leeds,Leeds City Council,31/05/2019,Adults and Health,Services For Older People - 65 and Over,Third Party Payments,Nursing Home,570,29/05/2019,1905-00203,0.00,28215.04,R,Aberford Hall,No
Http://opendatacommunities.org/id/metropolitan-district-council/leeds,Leeds City Council,31/05/2019,Adults and Health,Services For Older People - 65 and Over,Third Party Payments,Residential,580,29/05/2019,1905-00204,0.00,3076.72,R,Aberford Hall,No
Http://opendatacommunities.org/id/metropolitan-district-council/leeds,Leeds City Council,31/05/2019,Communities and Environment,Elections  Licensing and Registration,Premises,Rents,141,13/05/2019,1905-00205,0.00,400.00,R,Aberford Village Hall,No
Http://opendatacommunities.org/id/metropolitan-district-council/leeds,Leeds City Council,31/05/2019,Communities and Environment,Elections  Licensing and Registration,Premises,Rents,141,31/05/2019,1905-00206,0.00,400.00,R,Aberford Village Hall,No
Http://opendatacommunities.org/id/metropolitan-district-council/leeds,Leeds City Council,31/05/2019,Resources and Housing,Leeds Building Services,Supplies and Services,Operational Materials,205,03/05/2019,1905-00207,0.00,260.45,R,Abi Garage Doors Ltd,No
Http://opendatacommunities.org/id/metropolitan-district-council/leeds,Leeds City Council,31/05/2019,Resources and Housing,Leeds Building Services,Supplies and Services,Operational Materials,205,10/05/2019,1905-00208,0.00,10.00,R,Abi Garage Doors Ltd,No
Http://opendatacommunities.org/id/metropolitan-district-council/leeds,Leeds City Council,31/05/2019,Resources and Housing,Leeds Building Services,Supplies and Services,Operational Materials,205,10/05/2019,1905-00209,0.00,10.00,R,Abi Garage Doors Ltd,No
Http://opendatacommunities.org/id/metropolitan-district-council/leeds,Leeds City Council,31/05/2019,Resources and Housing,Leeds Building Services,Supplies and Services,Operational Materials,205,10/05/2019,1905-00210,0.00,60.00,R,Abi Garage Doors Ltd,No
Http://opendatacommunities.org/id/metropolitan-district-council/leeds,Leeds City Council,31/05/2019,Resources and Housing,Leeds Building Services,Supplies and Services,Operational Materials,205,10/05/2019,1905-00211,0.00,10.00,R,Abi Garage Doors Ltd,No
Http://opendatacommunities.org/id/metropolitan-district-council/leeds,Leeds City Council,31/05/2019,Resources and Housing,Leeds Building Services,Supplies and Services,Operational Materials,205,10/05/2019,1905-00212,0.00,15.00,R,Abi Garage Doors Ltd,No
Http://opendatacommunities.org/id/metropolitan-district-council/leeds,Leeds City Council,31/05/2019,Resources and Housing,Leeds Building Services,Supplies and Services,Operational Materials,205,10/05/2019,1905-00213,0.00,15.00,R,Abi Garage Doors Ltd,No
Http://opendatacommunities.org/id/metropolitan-district-council/leeds,Leeds City Council,31/05/2019,Resources and Housing,Leeds Building Services,Supplies and Services,Operational Materials,205,16/05/2019,1905-00214,0.00,260.46,R,Abi Garage Doors Ltd,No
Http://opendatacommunities.org/id/metropolitan-district-council/leeds,Leeds City Council,31/05/2019,Resources and Housing,Leeds Building Services,Supplies and Services,Operational Materials,205,24/05/2019,1905-00215,0.00,10.00,R,Abi Garage Doors Ltd,No
Http://opendatacommunities.org/id/metropolitan-district-council/leeds,Leeds City Council,31/05/2019,Resources and Housing,Leeds Building Services,Supplies and Services,Operational Materials,205,24/05/2019,1905-00216,0.00,10.00,R,Abi Garage Doors Ltd,No
Http://opendatacommunities.org/id/metropolitan-district-council/leeds,Leeds City Council,31/05/2019,Resources and Housing,Leeds Building Services,Supplies and Services,Operational Materials,205,29/05/2019,1905-00217,0.00,10.00,R,Abi Garage Doors Ltd,No
Http://opendatacommunities.org/id/metropolitan-district-council/leeds,Leeds City Council,31/05/2019,Resources and Housing,Leeds Building Services,Supplies and Services,Operational Materials,205,29/05/2019,1905-00218,0.00,10.00,R,Abi Garage Doors Ltd,No
Http://opendatacommunities.org/id/metropolitan-district-council/leeds,Leeds City Council,31/05/2019,Children and Families,Social Care  ,Transfer Payments,Leaving Care Allowances,634,24/04/2019,1905-00219,0.00,5.58,R,Absurd Bird Leeds,Yes
Http://opendatacommunities.org/id/metropolitan-district-council/leeds,Leeds City Council,31/05/2019,Children and Families,Social Care,Employees,Agency Staff,8,03/05/2019,1905-00220,0.00,1268.00,R,Academic Appointments Ltd,No
Http://opendatacommunities.org/id/metropolitan-district-council/leeds,Leeds City Council,31/05/2019,Children and Families,Social Care,Employees,Agency Staff,8,03/05/2019,1905-00221,0.00,2348.00,R,Academic Appointments Ltd,No
Http://opendatacommunities.org/id/metropolitan-district-council/leeds,Leeds City Council,31/05/2019,Children and Families,Social Care,Third Party Payments, Direct Work,549,07/05/2019,1905-00222,0.00,343.92,R,Academic Appointments Ltd,No
Http://opendatacommunities.org/id/metropolitan-district-council/leeds,Leeds City Council,31/05/2019,Children and Families,Learning,Employees,Agency Staff,8,29/05/2019,1905-00223,0.00,212.40,R,Academic Appointments Ltd,No
Http://opendatacommunities.org/id/metropolitan-district-council/leeds,Leeds City Council,31/05/2019,Children and Families,Learning Places,Capital,Construction,3,30/05/2019,1905-00224,0.00,354540.00,C,Academies Enterprise Trust,No
Http://opendatacommunities.org/id/metropolitan-district-council/leeds,Leeds City Council,31/05/2019,Children and Families,Learning Places,Capital,Construction,3,30/05/2019,1905-00225,0.00,508060.00,C,Academies Enterprise Trust,No
Http://opendatacommunities.org/id/metropolitan-district-council/leeds,Leeds City Council,31/05/2019,Children and Families,Social Care,Third Party Payments,Services Rendered By Other Organisations,511,08/05/2019,1905-00226,0.00,4875.00,R,Academies Enterprise Trust (Aet),No
Http://opendatacommunities.org/id/metropolitan-district-council/leeds,Leeds City Council,31/05/2019,Children and Families,Social Care,Third Party Payments,Services Rendered By Voluntary Sector,505,09/05/2019,1905-00227,0.00,663.18,R,Academies Enterprise Trust (Aet),No
Http://opendatacommunities.org/id/metropolitan-district-council/leeds,Leeds City Council,31/05/2019,Children and Families,Learning,Supplies and Services,Other Hired and Contracted Services,265,21/05/2019,1905-00228,0.00,345.00,R,Academies Enterprise Trust (Aet),No
Http://opendatacommunities.org/id/metropolitan-district-council/leeds,Leeds City Council,31/05/2019,Children and Families,Social Care,Third Party Payments,Services Rendered By Voluntary Sector,505,31/05/2019,1905-00229,0.00,378.96,R,Academies Enterprise Trust (Aet),No
Http://opendatacommunities.org/id/metropolitan-district-council/leeds,Leeds City Council,31/05/2019,Children and Families,Social Care,Third Party Payments,Services Rendered By Voluntary Sector,505,31/05/2019,1905-00230,0.00,1042.14,R,Academies Enterprise Trust (Aet),No
Http://opendatacommunities.org/id/metropolitan-district-council/leeds,Leeds City Council,31/05/2019,Children and Families,Social Care,Third Party Payments,Services Rendered By Voluntary Sector,505,31/05/2019,1905-00231,0.00,1326.36,R,Academies Enterprise Trust (Aet),No
Http://opendatacommunities.org/id/metropolitan-district-council/leeds,Leeds City Council,31/05/2019,Communities and Environment,Community Safety,Transport,Hire Of Movable Plant & Machinery,315,01/05/2019,1905-00232,0.00,33.50,R,Access Hire Nationwide Ltd,No
Http://opendatacommunities.org/id/metropolitan-district-council/leeds,Leeds City Council,31/05/2019,Resources and Housing,Strategy and Improvement,Supplies and Services,Computer Software & Equipment,214,10/05/2019,1905-00233,0.00,6960.00,R,Access Intelligence Media and,No
Http://opendatacommunities.org/id/metropolitan-district-council/leeds,Leeds City Council,31/05/2019,Adults and Health,Services For Older People - 65 and Over  ,Supplies and Services,Office Furniture & Equipment,201,03/04/2019,1905-00234,0.00,104.00,R,Access Locksmiths,Yes
Http://opendatacommunities.org/id/metropolitan-district-council/leeds,Leeds City Council,31/05/2019,Children and Families,Social Care  ,Supplies and Services,Office Furniture & Equipment,201,25/04/2019,1905-00235,0.00,5.92,R,Access Locksmiths,Yes
Http://opendatacommunities.org/id/metropolitan-district-council/leeds,Leeds City Council,31/05/2019,Resources and Housing,Leeds Building Services,Supplies and Services,Operational Materials,205,01/05/2019,1905-00236,0.00,148.50,R,Access Locksmiths (Leeds) Limited,No
Http://opendatacommunities.org/id/metropolitan-district-council/leeds,Leeds City Council,31/05/2019,Resources and Housing,Leeds Building Services,Supplies and Services,Operational Materials,205,01/05/2019,1905-00237,0.00,7.02,R,Access Locksmiths (Leeds) Limited,No
Http://opendatacommunities.org/id/metropolitan-district-council/leeds,Leeds City Council,31/05/2019,Strategic Landlord,Housing Management,Premises,General Maintenance,104,03/05/2019,1905-00238,0.00,201.80,R,Access Locksmiths (Leeds) Limited,No
Http://opendatacommunities.org/id/metropolitan-district-council/leeds,Leeds City Council,31/05/2019,Resources and Housing,Leeds Building Services,Supplies and Services,Operational Materials,205,10/05/2019,1905-00239,0.00,32.00,R,Access Locksmiths (Leeds) Limited,No
Http://opendatacommunities.org/id/metropolitan-district-council/leeds,Leeds City Council,31/05/2019,Resources and Housing,Leeds Building Services,Supplies and Services,Operational Materials,205,10/05/2019,1905-00240,0.00,60.70,R,Access Locksmiths (Leeds) Limited,No
Http://opendatacommunities.org/id/metropolitan-district-council/leeds,Leeds City Council,31/05/2019,Resources and Housing,Leeds Building Services,Supplies and Services,Operational Materials,205,10/05/2019,1905-00241,0.00,134.58,R,Access Locksmiths (Leeds) Limited,No
Http://opendatacommunities.org/id/metropolitan-district-council/leeds,Leeds City Council,31/05/2019,Resources and Housing,Leeds Building Services,Supplies and Services,Operational Materials,205,10/05/2019,1905-00242,0.00,136.22,R,Access Locksmiths (Leeds) Limited,No
Http://opendatacommunities.org/id/metropolitan-district-council/leeds,Leeds City Council,31/05/2019,Resources and Housing,Leeds Building Services,Supplies and Services,Operational Materials,205,10/05/2019,1905-00243,0.00,11.66,R,Access Locksmiths (Leeds) Limited,No
Http://opendatacommunities.org/id/metropolitan-district-council/leeds,Leeds City Council,31/05/2019,Resources and Housing,Leeds Building Services,Supplies and Services,Operational Materials,205,10/05/2019,1905-00244,0.00,19.69,R,Access Locksmiths (Leeds) Limited,No
Http://opendatacommunities.org/id/metropolitan-district-council/leeds,Leeds City Council,31/05/2019,Resources and Housing,Leeds Building Services,Supplies and Services,Operational Materials,205,10/05/2019,1905-00245,0.00,99.57,R,Access Locksmiths (Leeds) Limited,No
Http://opendatacommunities.org/id/metropolitan-district-council/leeds,Leeds City Council,31/05/2019,Resources and Housing,Leeds Building Services,Supplies and Services,Operational Materials,205,10/05/2019,1905-00246,0.00,105.12,R,Access Locksmiths (Leeds) Limited,No
Http://opendatacommunities.org/id/metropolitan-district-council/leeds,Leeds City Council,31/05/2019,Resources and Housing,Leeds Building Services,Supplies and Services,Operational Materials,205,10/05/2019,1905-00247,0.00,105.48,R,Access Locksmiths (Leeds) Limited,No
Http://opendatacommunities.org/id/metropolitan-district-council/leeds,Leeds City Council,31/05/2019,Strategic Landlord,Property and Contracts,Premises,General Maintenance,104,15/05/2019,1905-00248,0.00,105.29,R,Access Locksmiths (Leeds) Limited,No
Http://opendatacommunities.org/id/metropolitan-district-council/leeds,Leeds City Council,31/05/2019,Strategic Landlord,Property and Contracts,Premises,General Maintenance,104,15/05/2019,1905-00249,0.00,37.50,R,Access Locksmiths (Leeds) Limited,No
Http://opendatacommunities.org/id/metropolitan-district-council/leeds,Leeds City Council,31/05/2019,Strategic Landlord,Property and Contracts,Premises,General Maintenance,104,15/05/2019,1905-00250,0.00,182.47,R,Access Locksmiths (Leeds) Limited,No
Http://opendatacommunities.org/id/metropolitan-district-council/leeds,Leeds City Council,31/05/2019,Strategic Landlord,Housing Management,Premises,General Maintenance,104,24/05/2019,1905-00251,0.00,12.60,R,Access Locksmiths (Leeds) Limited,No
Http://opendatacommunities.org/id/metropolitan-district-council/leeds,Leeds City Council,31/05/2019,Strategic Landlord,Housing Management,Premises,General Maintenance,104,24/05/2019,1905-00252,0.00,15.60,R,Access Locksmiths (Leeds) Limited,No
Http://opendatacommunities.org/id/metropolitan-district-council/leeds,Leeds City Council,31/05/2019,Strategic Landlord,Housing Management,Supplies and Services,Resaleable Materials,204,24/05/2019,1905-00253,0.00,45.60,R,Access Locksmiths (Leeds) Limited,No
Http://opendatacommunities.org/id/metropolitan-district-council/leeds,Leeds City Council,31/05/2019,Strategic Landlord,Housing Management,Supplies and Services,Resaleable Materials,204,24/05/2019,1905-00254,0.00,3.75,R,Access Locksmiths (Leeds) Limited,No
Http://opendatacommunities.org/id/metropolitan-district-council/leeds,Leeds City Council,31/05/2019,Strategic Landlord,Property and Contracts,Premises,General Maintenance,104,24/05/2019,1905-00255,0.00,100.90,R,Access Locksmiths (Leeds) Limited,No
Http://opendatacommunities.org/id/metropolitan-district-council/leeds,Leeds City Council,31/05/2019,Resources and Housing,HRA Housing Leeds,Capital,Construction,3,24/05/2019,1905-00256,0.00,20.40,C,Access Locksmiths (Leeds) Limited,No
Http://opendatacommunities.org/id/metropolitan-district-council/leeds,Leeds City Council,31/05/2019,Resources and Housing,HRA Housing Leeds,Capital,Other Costs,7,24/05/2019,1905-00257,0.00,62.00,C,Access Locksmiths (Leeds) Limited,No
Http://opendatacommunities.org/id/metropolitan-district-council/leeds,Leeds City Council,31/05/2019,Strategic Landlord,Housing Management,Supplies and Services,Resaleable Materials,204,24/05/2019,1905-00258,0.00,228.00,R,Access Locksmiths (Leeds) Limited,No
Http://opendatacommunities.org/id/metropolitan-district-council/leeds,Leeds City Council,31/05/2019,Strategic Landlord,Housing Management,Premises,Fixtures & Fittings,131,24/05/2019,1905-00259,0.00,342.00,R,Access Locksmiths (Leeds) Limited,No
Http://opendatacommunities.org/id/metropolitan-district-council/leeds,Leeds City Council,31/05/2019,Resources and Housing,HRA Housing Leeds,Capital,Construction,3,24/05/2019,1905-00260,0.00,61.20,C,Access Locksmiths (Leeds) Limited,No
Http://opendatacommunities.org/id/metropolitan-district-council/leeds,Leeds City Council,31/05/2019,Resources and Housing,Leeds Building Services,Supplies and Services,Operational Materials,205,29/05/2019,1905-00261,0.00,14.04,R,Access Locksmiths (Leeds) Limited,No
Http://opendatacommunities.org/id/metropolitan-district-council/leeds,Leeds City Council,31/05/2019,Resources and Housing,Leeds Building Services,Supplies and Services,Operational Materials,205,29/05/2019,1905-00262,0.00,9.00,R,Access Locksmiths (Leeds) Limited,No
Http://opendatacommunities.org/id/metropolitan-district-council/leeds,Leeds City Council,31/05/2019,Resources and Housing,Leeds Building Services,Supplies and Services,Operational Materials,205,29/05/2019,1905-00263,0.00,46.20,R,Access Locksmiths (Leeds) Limited,No
Http://opendatacommunities.org/id/metropolitan-district-council/leeds,Leeds City Council,31/05/2019,Resources and Housing,Leeds Building Services,Supplies and Services,Operational Materials,205,29/05/2019,1905-00264,0.00,7.80,R,Access Locksmiths (Leeds) Limited,No
Http://opendatacommunities.org/id/metropolitan-district-council/leeds,Leeds City Council,31/05/2019,Resources and Housing,Leeds Building Services,Supplies and Services,Operational Materials,205,29/05/2019,1905-00265,0.00,12.56,R,Access Locksmiths (Leeds) Limited,No
Http://opendatacommunities.org/id/metropolitan-district-council/leeds,Leeds City Council,31/05/2019,Resources and Housing,Leeds Building Services,Supplies and Services,Operational Materials,205,29/05/2019,1905-00266,0.00,350.02,R,Access Locksmiths (Leeds) Limited,No
Http://opendatacommunities.org/id/metropolitan-district-council/leeds,Leeds City Council,31/05/2019,Strategic Landlord,Housing Management,Income,Other Income,973,31/05/2019,1905-00267,0.00,20.00,R,Access Locksmiths (Leeds) Limited,No
Http://opendatacommunities.org/id/metropolitan-district-council/leeds,Leeds City Council,31/05/2019,Strategic Landlord,Housing Management,Income,Other Income,973,31/05/2019,1905-00268,0.00,24.00,R,Access Locksmiths (Leeds) Limited,No
Http://opendatacommunities.org/id/metropolitan-district-council/leeds,Leeds City Council,31/05/2019,Strategic Landlord,Housing Management,Premises,General Maintenance,104,31/05/2019,1905-00269,0.00,342.00,R,Access Locksmiths (Leeds) Limited,No
Http://opendatacommunities.org/id/metropolitan-district-council/leeds,Leeds City Council,31/05/2019,Strategic Landlord,Housing Management,Supplies and Services,Resaleable Materials,204,31/05/2019,1905-00270,0.00,228.00,R,Access Locksmiths (Leeds) Limited,No
Http://opendatacommunities.org/id/metropolitan-district-council/leeds,Leeds City Council,31/05/2019,Resources and Housing,Leeds Building Services,Supplies and Services,Operational Materials,205,31/05/2019,1905-00271,0.00,26.49,R,Access Locksmiths (Leeds) Limited,No
Http://opendatacommunities.org/id/metropolitan-district-council/leeds,Leeds City Council,31/05/2019,Resources and Housing,Leeds Building Services,Supplies and Services,Operational Materials,205,31/05/2019,1905-00272,0.00,35.55,R,Access Locksmiths (Leeds) Limited,No
Http://opendatacommunities.org/id/metropolitan-district-council/leeds,Leeds City Council,31/05/2019,Resources and Housing,Leeds Building Services,Supplies and Services,Operational Materials,205,31/05/2019,1905-00273,0.00,10.12,R,Access Locksmiths (Leeds) Limited,No
Http://opendatacommunities.org/id/metropolitan-district-council/leeds,Leeds City Council,31/05/2019,Communities and Environment,Waste Management,Supplies and Services,Operational Furniture and Equipment,203,31/05/2019,1905-00274,0.00,572.50,R,Access Locksmiths (Leeds) Limited,No
Http://opendatacommunities.org/id/metropolitan-district-council/leeds,Leeds City Council,31/05/2019,Communities and Environment,Parks and Countryside  ,Supplies and Services,Office Consumables,210,25/04/2019,1905-00275,0.00,104.34,R,Accu.Co.Uk,Yes
Http://opendatacommunities.org/id/metropolitan-district-council/leeds,Leeds City Council,31/05/2019,City Development,Recreation,Supplies and Services,Other Hired and Contracted Services,265,02/05/2019,1905-00276,0.00,90.00,R,Ace Container Services Limited,No
Http://opendatacommunities.org/id/metropolitan-district-council/leeds,Leeds City Council,31/05/2019,City Development,Libraries  Arts & Heritage,Supplies and Services,Other Hired and Contracted Services,265,02/05/2019,1905-00277,0.00,45.00,R,Ace Container Services Limited,No
Http://opendatacommunities.org/id/metropolitan-district-council/leeds,Leeds City Council,31/05/2019,City Development,Recreation,Supplies and Services,Other Hired and Contracted Services,265,30/05/2019,1905-00278,0.00,93.00,R,Ace Container Services Limited,No
Http://opendatacommunities.org/id/metropolitan-district-council/leeds,Leeds City Council,31/05/2019,City Development,Recreation,Transport,External Hire -Occasional,304,30/05/2019,1905-00279,0.00,128.65,R,Ace Container Services Limited,No
Http://opendatacommunities.org/id/metropolitan-district-council/leeds,Leeds City Council,31/05/2019,City Development,Libraries  Arts & Heritage,Supplies and Services,Other Hired and Contracted Services,265,30/05/2019,1905-00280,0.00,46.50,R,Ace Container Services Limited,No
Http://opendatacommunities.org/id/metropolitan-district-council/leeds,Leeds City Council,31/05/2019,City Development,Highways,Supplies and Services,Publication and Promotion,267,17/05/2019,1905-00281,0.00,150.00,R,Ace Leaflet Distribution & Print Ltd,No
Http://opendatacommunities.org/id/metropolitan-district-council/leeds,Leeds City Council,31/05/2019,Children and Families,Partnerships & Health,Third Party Payments,SEN Placements,566,03/05/2019,1905-00282,0.00,17476.47,R,Ackworth School,No
Http://opendatacommunities.org/id/metropolitan-district-council/leeds,Leeds City Council,31/05/2019,Children and Families,Partnerships & Health,Third Party Payments,SEN Placements,566,24/05/2019,1905-00283,0.00,17653.00,R,Ackworth School,No
Http://opendatacommunities.org/id/metropolitan-district-council/leeds,Leeds City Council,31/05/2019,Children and Families,Partnerships & Health,Third Party Payments,SEN Placements,566,24/05/2019,1905-00284,0.00,17653.00,R,Ackworth School,No
Http://opendatacommunities.org/id/metropolitan-district-council/leeds,Leeds City Council,31/05/2019,Resources and Housing,Leeds Building Services,Supplies and Services,Operational Materials,205,21/05/2019,1905-00285,0.00,1550.00,R,Acme Facilities Group Ltd,No
Http://opendatacommunities.org/id/metropolitan-district-council/leeds,Leeds City Council,31/05/2019,Adults and Health,Services For Older People - 65 and Over,Third Party Payments,Nursing Care Dementia,574,01/05/2019,1905-00286,0.00,1811.24,R,Acorn Nursing Home,No
Http://opendatacommunities.org/id/metropolitan-district-council/leeds,Leeds City Council,31/05/2019,Adults and Health,Services For Older People - 65 and Over,Third Party Payments,Residential Care Dementia,571,29/05/2019,1905-00287,0.00,17671.08,R,Acorn Nursing Home,No
Http://opendatacommunities.org/id/metropolitan-district-council/leeds,Leeds City Council,31/05/2019,Adults and Health,Services For Older People - 65 and Over,Third Party Payments,Nursing Care Dementia,574,29/05/2019,1905-00288,0.00,1516.47,R,Acorn Nursing Home,No
Http://opendatacommunities.org/id/metropolitan-district-council/leeds,Leeds City Council,31/05/2019,Children and Families,Social Care,Third Party Payments,Services Rendered By Other Organisations,511,03/05/2019,1905-00289,0.00,7546.50,R,Acorns Nursery,No
Http://opendatacommunities.org/id/metropolitan-district-council/leeds,Leeds City Council,31/05/2019,Adults and Health,Services For Older People - 65 and Over,Third Party Payments,Nursing Home,570,01/05/2019,1905-00290,0.00,31348.07,R,Acre Green,No
Http://opendatacommunities.org/id/metropolitan-district-council/leeds,Leeds City Council,31/05/2019,Adults and Health,Services For Older People - 65 and Over,Third Party Payments,Residential,580,01/05/2019,1905-00291,0.00,5001.59,R,Acre Green,No
Http://opendatacommunities.org/id/metropolitan-district-council/leeds,Leeds City Council,31/05/2019,Adults and Health,Services For Older People Under 65 P/Dis,Third Party Payments,Nursing Home,570,01/05/2019,1905-00292,0.00,2200.00,R,Acre Green,No
Http://opendatacommunities.org/id/metropolitan-district-council/leeds,Leeds City Council,31/05/2019,Adults and Health,Services For Older People Under 65 P/Dis,Third Party Payments,Residential,580,01/05/2019,1905-00293,0.00,1218.75,R,Acre Green,No
Http://opendatacommunities.org/id/metropolitan-district-council/leeds,Leeds City Council,31/05/2019,Adults and Health,Services For Older People - 65 and Over,Third Party Payments,Nursing Home,570,08/05/2019,1905-00294,0.00,13857.16,R,Acre Green,No
Http://opendatacommunities.org/id/metropolitan-district-council/leeds,Leeds City Council,31/05/2019,Adults and Health,Services For Older People - 65 and Over,Third Party Payments,Nursing Home,570,29/05/2019,1905-00295,0.00,36073.51,R,Acre Green,No
Http://opendatacommunities.org/id/metropolitan-district-council/leeds,Leeds City Council,31/05/2019,Adults and Health,Services For Older People - 65 and Over,Third Party Payments,Residential,580,29/05/2019,1905-00296,0.00,3614.60,R,Acre Green,No
Http://opendatacommunities.org/id/metropolitan-district-council/leeds,Leeds City Council,31/05/2019,Adults and Health,Services For Older People Under 65 P/Dis,Third Party Payments,Nursing Home,570,29/05/2019,1905-00297,0.00,2200.00,R,Acre Green,No
Http://opendatacommunities.org/id/metropolitan-district-council/leeds,Leeds City Council,31/05/2019,Adults and Health,Services For Older People Under 65 P/Dis,Third Party Payments,Residential,580,29/05/2019,1905-00298,0.00,1510.20,R,Acre Green,No
Http://opendatacommunities.org/id/metropolitan-district-council/leeds,Leeds City Council,31/05/2019,Children and Families,Social Care,Third Party Payments,Services Rendered By Other Organisations,511,03/05/2019,1905-00299,0.00,12234.36,R,Acre Wood Day Nursery,No
Http://opendatacommunities.org/id/metropolitan-district-council/leeds,Leeds City Council,31/05/2019,Resources and Housing,Technology  ,Supplies and Services,Computer Software & Equipment,214,16/04/2019,1905-00300,0.00,6485.95,R,Acs Business Supplies Lt,Yes
Http://opendatacommunities.org/id/metropolitan-district-council/leeds,Leeds City Council,31/05/2019,Resources and Housing,Technology  ,Supplies and Services,Computer Software & Equipment,214,16/04/2019,1905-00301,0.00,5432.45,R,Acs Business Supplies Lt,Yes
Http://opendatacommunities.org/id/metropolitan-district-council/leeds,Leeds City Council,31/05/2019,Resources and Housing,Technology  ,Supplies and Services,Computer Software & Equipment,214,10/04/2019,1905-00302,0.00,210.28,R,Acsbusinesssupplies,Yes
Http://opendatacommunities.org/id/metropolitan-district-council/leeds,Leeds City Council,31/05/2019,Resources and Housing,Technology  ,Supplies and Services,Computer Software & Equipment,214,23/04/2019,1905-00303,0.00,92.95,R,Acsbusinesssupplies,Yes
Http://opendatacommunities.org/id/metropolitan-district-council/leeds,Leeds City Council,31/05/2019,Resources and Housing,Technology,Employees,Training & Development,70,14/05/2019,1905-00304,0.00,49.00,R,Act Now Training Ltd,No
Http://opendatacommunities.org/id/metropolitan-district-council/leeds,Leeds City Council,31/05/2019,Resources and Housing,Technology,Employees,Training & Development,70,22/05/2019,1905-00305,0.00,49.00,R,Act Now Training Ltd,No
Http://opendatacommunities.org/id/metropolitan-district-council/leeds,Leeds City Council,31/05/2019,Resources and Housing,Leeds Building Services,Supplies and Services,Other Hired and Contracted Services,265,03/05/2019,1905-00306,0.00,163.26,R,Actavo (Leeds H & S),No
Http://opendatacommunities.org/id/metropolitan-district-council/leeds,Leeds City Council,31/05/2019,Children and Families,Social Care,Third Party Payments,Independent Fostering Agencies,509,03/05/2019,1905-00307,0.00,4314.24,R,Action For Children,No
Http://opendatacommunities.org/id/metropolitan-district-council/leeds,Leeds City Council,31/05/2019,Children and Families,Social Care,Third Party Payments,Services Rendered By Other Organisations,511,03/05/2019,1905-00308,0.00,7725.38,R,Active Kids Yeadon Llp,No
Http://opendatacommunities.org/id/metropolitan-district-council/leeds,Leeds City Council,31/05/2019,Communities and Environment,Waste Management,Supplies and Services,Recycling & Reuse Charges,234,02/05/2019,1905-00309,0.00,5626.66,R,Acumen Waste Services Ltd,No
Http://opendatacommunities.org/id/metropolitan-district-council/leeds,Leeds City Council,31/05/2019,Communities and Environment,Cleaner Neighbourhood Teams,Premises,Removal Of Workplace Waste,126,02/05/2019,1905-00310,0.00,110.00,R,Acumen Waste Services Ltd,No
Http://opendatacommunities.org/id/metropolitan-district-council/leeds,Leeds City Council,31/05/2019,Communities and Environment,Cleaner Neighbourhood Teams,Premises,Removal Of Workplace Waste,126,02/05/2019,1905-00311,0.00,110.00,R,Acumen Waste Services Ltd,No
Http://opendatacommunities.org/id/metropolitan-district-council/leeds,Leeds City Council,31/05/2019,Communities and Environment,Cleaner Neighbourhood Teams,Premises,Removal Of Workplace Waste,126,02/05/2019,1905-00312,0.00,110.00,R,Acumen Waste Services Ltd,No
Http://opendatacommunities.org/id/metropolitan-district-council/leeds,Leeds City Council,31/05/2019,Communities and Environment,Cleaner Neighbourhood Teams,Premises,Removal Of Workplace Waste,126,02/05/2019,1905-00313,0.00,110.00,R,Acumen Waste Services Ltd,No
Http://opendatacommunities.org/id/metropolitan-district-council/leeds,Leeds City Council,31/05/2019,Communities and Environment,Cleaner Neighbourhood Teams,Premises,Removal Of Workplace Waste,126,02/05/2019,1905-00314,0.00,110.00,R,Acumen Waste Services Ltd,No
Http://opendatacommunities.org/id/metropolitan-district-council/leeds,Leeds City Council,31/05/2019,Communities and Environment,Cleaner Neighbourhood Teams,Premises,Removal Of Workplace Waste,126,02/05/2019,1905-00315,0.00,110.00,R,Acumen Waste Services Ltd,No
Http://opendatacommunities.org/id/metropolitan-district-council/leeds,Leeds City Council,31/05/2019,Communities and Environment,Cleaner Neighbourhood Teams,Premises,Removal Of Workplace Waste,126,10/05/2019,1905-00316,0.00,110.00,R,Acumen Waste Services Ltd,No
Http://opendatacommunities.org/id/metropolitan-district-council/leeds,Leeds City Council,31/05/2019,Communities and Environment,Cleaner Neighbourhood Teams,Premises,Removal Of Workplace Waste,126,10/05/2019,1905-00317,0.00,110.00,R,Acumen Waste Services Ltd,No
Http://opendatacommunities.org/id/metropolitan-district-council/leeds,Leeds City Council,31/05/2019,Communities and Environment,Cleaner Neighbourhood Teams,Premises,Removal Of Workplace Waste,126,10/05/2019,1905-00318,0.00,110.00,R,Acumen Waste Services Ltd,No
Http://opendatacommunities.org/id/metropolitan-district-council/leeds,Leeds City Council,31/05/2019,Communities and Environment,Cleaner Neighbourhood Teams,Premises,Removal Of Workplace Waste,126,10/05/2019,1905-00319,0.00,110.00,R,Acumen Waste Services Ltd,No
Http://opendatacommunities.org/id/metropolitan-district-council/leeds,Leeds City Council,31/05/2019,Communities and Environment,Cleaner Neighbourhood Teams,Premises,Removal Of Workplace Waste,126,16/05/2019,1905-00320,0.00,110.00,R,Acumen Waste Services Ltd,No
Http://opendatacommunities.org/id/metropolitan-district-council/leeds,Leeds City Council,31/05/2019,Communities and Environment,Cleaner Neighbourhood Teams,Premises,Removal Of Workplace Waste,126,16/05/2019,1905-00321,0.00,110.00,R,Acumen Waste Services Ltd,No
Http://opendatacommunities.org/id/metropolitan-district-council/leeds,Leeds City Council,31/05/2019,Communities and Environment,Cleaner Neighbourhood Teams,Premises,Removal Of Workplace Waste,126,16/05/2019,1905-00322,0.00,110.00,R,Acumen Waste Services Ltd,No
Http://opendatacommunities.org/id/metropolitan-district-council/leeds,Leeds City Council,31/05/2019,Communities and Environment,Cleaner Neighbourhood Teams,Premises,Removal Of Workplace Waste,126,16/05/2019,1905-00323,0.00,110.00,R,Acumen Waste Services Ltd,No
Http://opendatacommunities.org/id/metropolitan-district-council/leeds,Leeds City Council,31/05/2019,Communities and Environment,Cleaner Neighbourhood Teams,Premises,Removal Of Workplace Waste,126,16/05/2019,1905-00324,0.00,110.00,R,Acumen Waste Services Ltd,No
Http://opendatacommunities.org/id/metropolitan-district-council/leeds,Leeds City Council,31/05/2019,Communities and Environment,Cleaner Neighbourhood Teams,Premises,Removal Of Workplace Waste,126,16/05/2019,1905-00325,0.00,110.00,R,Acumen Waste Services Ltd,No
Http://opendatacommunities.org/id/metropolitan-district-council/leeds,Leeds City Council,31/05/2019,Communities and Environment,Cleaner Neighbourhood Teams,Premises,Removal Of Workplace Waste,126,16/05/2019,1905-00326,0.00,110.00,R,Acumen Waste Services Ltd,No
Http://opendatacommunities.org/id/metropolitan-district-council/leeds,Leeds City Council,31/05/2019,Communities and Environment,Cleaner Neighbourhood Teams,Premises,Removal Of Workplace Waste,126,16/05/2019,1905-00327,0.00,110.00,R,Acumen Waste Services Ltd,No
Http://opendatacommunities.org/id/metropolitan-district-council/leeds,Leeds City Council,31/05/2019,Communities and Environment,Cleaner Neighbourhood Teams,Premises,Removal Of Workplace Waste,126,24/05/2019,1905-00328,0.00,110.00,R,Acumen Waste Services Ltd,No
Http://opendatacommunities.org/id/metropolitan-district-council/leeds,Leeds City Council,31/05/2019,Communities and Environment,Cleaner Neighbourhood Teams,Premises,Removal Of Workplace Waste,126,30/05/2019,1905-00329,0.00,110.00,R,Acumen Waste Services Ltd,No
Http://opendatacommunities.org/id/metropolitan-district-council/leeds,Leeds City Council,31/05/2019,Communities and Environment,Cleaner Neighbourhood Teams,Premises,Removal Of Workplace Waste,126,30/05/2019,1905-00330,0.00,110.00,R,Acumen Waste Services Ltd,No
Http://opendatacommunities.org/id/metropolitan-district-council/leeds,Leeds City Council,31/05/2019,Communities and Environment,Cleaner Neighbourhood Teams,Premises,Removal Of Workplace Waste,126,30/05/2019,1905-00331,0.00,110.00,R,Acumen Waste Services Ltd,No
Http://opendatacommunities.org/id/metropolitan-district-council/leeds,Leeds City Council,31/05/2019,Communities and Environment,Cleaner Neighbourhood Teams,Premises,Removal Of Workplace Waste,126,30/05/2019,1905-00332,0.00,110.00,R,Acumen Waste Services Ltd,No
Http://opendatacommunities.org/id/metropolitan-district-council/leeds,Leeds City Council,31/05/2019,Communities and Environment,Cleaner Neighbourhood Teams,Premises,Removal Of Workplace Waste,126,30/05/2019,1905-00333,0.00,110.00,R,Acumen Waste Services Ltd,No
Http://opendatacommunities.org/id/metropolitan-district-council/leeds,Leeds City Council,31/05/2019,Communities and Environment,Cleaner Neighbourhood Teams,Premises,Removal Of Workplace Waste,126,30/05/2019,1905-00334,0.00,110.00,R,Acumen Waste Services Ltd,No
Http://opendatacommunities.org/id/metropolitan-district-council/leeds,Leeds City Council,31/05/2019,Communities and Environment,Cleaner Neighbourhood Teams,Premises,Removal Of Workplace Waste,126,30/05/2019,1905-00335,0.00,110.00,R,Acumen Waste Services Ltd,No
Http://opendatacommunities.org/id/metropolitan-district-council/leeds,Leeds City Council,31/05/2019,Communities and Environment,Cleaner Neighbourhood Teams,Premises,Removal Of Workplace Waste,126,30/05/2019,1905-00336,0.00,110.00,R,Acumen Waste Services Ltd,No
Http://opendatacommunities.org/id/metropolitan-district-council/leeds,Leeds City Council,31/05/2019,Communities and Environment,Cleaner Neighbourhood Teams,Premises,Removal Of Workplace Waste,126,30/05/2019,1905-00337,0.00,110.00,R,Acumen Waste Services Ltd,No
Http://opendatacommunities.org/id/metropolitan-district-council/leeds,Leeds City Council,31/05/2019,Communities and Environment,Waste Management,Supplies and Services,Recycling & Reuse Charges,234,31/05/2019,1905-00338,0.00,5621.30,R,Acumen Waste Services Ltd,No
Http://opendatacommunities.org/id/metropolitan-district-council/leeds,Leeds City Council,31/05/2019,Communities and Environment,Waste Management,Supplies and Services,Recycling & Reuse Charges,234,31/05/2019,1905-00339,0.00,7552.24,R,Acumen Waste Services Ltd,No
Http://opendatacommunities.org/id/metropolitan-district-council/leeds,Leeds City Council,31/05/2019,Communities and Environment,Waste Management,Supplies and Services,Recycling & Reuse Charges,234,31/05/2019,1905-00340,0.00,6706.03,R,Acumen Waste Services Ltd,No
Http://opendatacommunities.org/id/metropolitan-district-council/leeds,Leeds City Council,31/05/2019,Communities and Environment,Waste Management,Supplies and Services,Recycling & Reuse Charges,234,31/05/2019,1905-00341,0.00,6654.44,R,Acumen Waste Services Ltd,No
Http://opendatacommunities.org/id/metropolitan-district-council/leeds,Leeds City Council,31/05/2019,Communities and Environment,Waste Management,Supplies and Services,Recycling & Reuse Charges,234,31/05/2019,1905-00342,0.00,3768.08,R,Acumen Waste Services Ltd,No
Http://opendatacommunities.org/id/metropolitan-district-council/leeds,Leeds City Council,31/05/2019,Communities and Environment,Cleaner Neighbourhood Teams,Premises,Removal Of Workplace Waste,126,31/05/2019,1905-00343,0.00,110.00,R,Acumen Waste Services Ltd,No
Http://opendatacommunities.org/id/metropolitan-district-council/leeds,Leeds City Council,31/05/2019,Communities and Environment,Parks and Countryside,Supplies and Services,Resaleable Materials,204,03/05/2019,1905-00344,0.00,177.00,R,Acushnet Europe Limited,No
Http://opendatacommunities.org/id/metropolitan-district-council/leeds,Leeds City Council,31/05/2019,Communities and Environment,Parks and Countryside,Supplies and Services,Resaleable Materials,204,08/05/2019,1905-00345,0.00,120.00,R,Acushnet Europe Limited,No
Http://opendatacommunities.org/id/metropolitan-district-council/leeds,Leeds City Council,31/05/2019,Communities and Environment,Parks and Countryside,Supplies and Services,Resaleable Materials,204,08/05/2019,1905-00346,0.00,60.00,R,Acushnet Europe Limited,No
Http://opendatacommunities.org/id/metropolitan-district-council/leeds,Leeds City Council,31/05/2019,Resources and Housing,Shared Services,Supplies and Services,Other Hired and Contracted Services,265,03/05/2019,1905-00347,0.00,96.44,R,Ad3 Envelope Printers Limited,No
Http://opendatacommunities.org/id/metropolitan-district-council/leeds,Leeds City Council,31/05/2019,Resources and Housing,Shared Services,Supplies and Services,Operational Materials,205,30/05/2019,1905-00348,0.00,1131.75,R,Ad3 Envelope Printers Limited,No
Http://opendatacommunities.org/id/metropolitan-district-council/leeds,Leeds City Council,31/05/2019,Resources and Housing,Shared Services,Supplies and Services,Other Hired and Contracted Services,265,31/05/2019,1905-00349,0.00,126.08,R,Ad3 Envelope Printers Limited,No
Http://opendatacommunities.org/id/metropolitan-district-council/leeds,Leeds City Council,31/05/2019,Resources and Housing,Shared Services  ,Supplies and Services,Operational Materials,205,15/04/2019,1905-00350,0.00,112.95,R,Adapt-It,Yes
Http://opendatacommunities.org/id/metropolitan-district-council/leeds,Leeds City Council,31/05/2019,Adults and Health,Services For Older People - 65 and Over,Third Party Payments,Nursing Home,570,01/05/2019,1905-00351,0.00,2380.00,R,Adbolton Hall,No
Http://opendatacommunities.org/id/metropolitan-district-council/leeds,Leeds City Council,31/05/2019,Adults and Health,Services For Older People - 65 and Over,Third Party Payments,Nursing Home,570,29/05/2019,1905-00352,0.00,2380.00,R,Adbolton Hall,No
Http://opendatacommunities.org/id/metropolitan-district-council/leeds,Leeds City Council,31/05/2019,City Development,Asset Management Services,Support Services,Legal Disbursements,411,20/05/2019,1905-00353,0.00,35810.88,R,Addleshaw Goddard Llp,No
Http://opendatacommunities.org/id/metropolitan-district-council/leeds,Leeds City Council,31/05/2019,Resources and Housing,Sustainable Energy & Climate Change,Capital,Other Costs,7,29/05/2019,1905-00354,0.00,851.50,C,Addleshaw Goddard Llp,No
Http://opendatacommunities.org/id/metropolitan-district-council/leeds,Leeds City Council,31/05/2019,Communities and Environment,Parks and Countryside,Supplies and Services,Other Hired and Contracted Services,265,13/05/2019,1905-00355,0.00,8624.00,R,Addlestone & Partners,No
Http://opendatacommunities.org/id/metropolitan-district-council/leeds,Leeds City Council,31/05/2019,Resources and Housing,Human Resources,Employees,Occupational Health,85,15/05/2019,1905-00356,0.00,50.00,R,Addlestone & Partners,No
Http://opendatacommunities.org/id/metropolitan-district-council/leeds,Leeds City Council,31/05/2019,Adults and Health,Public Health,Third Party Payments,Public Health Commissioned Services,526,28/05/2019,1905-00357,0.00,245.00,R,Addlestone & Partners,No
Http://opendatacommunities.org/id/metropolitan-district-council/leeds,Leeds City Council,31/05/2019,Resources and Housing,Technology  ,Employees,Agency Staff,8,05/04/2019,1905-00358,0.00,54339.16,R,Adecco Alfred Marks,Yes
Http://opendatacommunities.org/id/metropolitan-district-council/leeds,Leeds City Council,31/05/2019,Communities and Environment,Elections  Licensing and Registration,Premises,Rents,141,10/05/2019,1905-00359,0.00,320.00,R,Adel Methodist Church Trustees,No
Http://opendatacommunities.org/id/metropolitan-district-council/leeds,Leeds City Council,31/05/2019,Communities and Environment,Elections  Licensing and Registration,Premises,Rents,141,30/05/2019,1905-00360,0.00,320.00,R,Adel Methodist Church Trustees,No
Http://opendatacommunities.org/id/metropolitan-district-council/leeds,Leeds City Council,31/05/2019,Children and Families,Social Care,Third Party Payments,Services Rendered By Voluntary Sector,505,01/05/2019,1905-00361,0.00,3802.50,R,Adel Pre School,No
Http://opendatacommunities.org/id/metropolitan-district-council/leeds,Leeds City Council,31/05/2019,Children and Families,Social Care,Third Party Payments,Services Rendered By Other Organisations,511,03/05/2019,1905-00362,0.00,5845.85,R,Adel Pre School,No
Http://opendatacommunities.org/id/metropolitan-district-council/leeds,Leeds City Council,31/05/2019,Resources and Housing,Commercial Services  ,Supplies and Services,Clothing & Uniforms,241,27/04/2019,1905-00363,0.00,19.73,R,Adel Sf Connect,Yes
Http://opendatacommunities.org/id/metropolitan-district-council/leeds,Leeds City Council,31/05/2019,Communities and Environment,Elections  Licensing and Registration,Premises,Rents,141,10/05/2019,1905-00364,0.00,600.00,R,Adel War Memorial Association,No
Http://opendatacommunities.org/id/metropolitan-district-council/leeds,Leeds City Council,31/05/2019,Communities and Environment,Communities,Capital,Other Costs,7,15/05/2019,1905-00365,0.00,5000.00,C,Adel War Memorial Association,No
Http://opendatacommunities.org/id/metropolitan-district-council/leeds,Leeds City Council,31/05/2019,Children and Families,Social Care,Third Party Payments,Services Rendered By Other Organisations,511,03/05/2019,1905-00366,0.00,503.10,R,REDACTED PERSONAL DATA,No
Http://opendatacommunities.org/id/metropolitan-district-council/leeds,Leeds City Council,31/05/2019,Children and Families,Social Care,Third Party Payments,Services Rendered By Other Organisations,511,03/05/2019,1905-00367,0.00,111.80,R,REDACTED PERSONAL DATA,No
Http://opendatacommunities.org/id/metropolitan-district-council/leeds,Leeds City Council,31/05/2019,Children and Families,Social Care,Third Party Payments,Services Rendered By Other Organisations,511,03/05/2019,1905-00368,0.00,1006.20,R,REDACTED PERSONAL DATA,No
Http://opendatacommunities.org/id/metropolitan-district-council/leeds,Leeds City Council,31/05/2019,Adults and Health,Services For Older People - 65 and Over,Third Party Payments,Nursing Home,570,01/05/2019,1905-00369,0.00,1320.81,R,Aden House,No
Http://opendatacommunities.org/id/metropolitan-district-council/leeds,Leeds City Council,31/05/2019,Resources and Housing,Leeds Building Services,Supplies and Services,Operational Materials,205,01/05/2019,1905-00370,0.00,163.07,R,Adi Global,No
Http://opendatacommunities.org/id/metropolitan-district-council/leeds,Leeds City Council,31/05/2019,Resources and Housing,Leeds Building Services,Supplies and Services,Operational Materials,205,03/05/2019,1905-00371,0.00,60.96,R,Adi Global,No
Http://opendatacommunities.org/id/metropolitan-district-council/leeds,Leeds City Council,31/05/2019,Resources and Housing,Leeds Building Services,Supplies and Services,Operational Materials,205,07/05/2019,1905-00372,0.00,94.15,R,Adi Global,No
Http://opendatacommunities.org/id/metropolitan-district-council/leeds,Leeds City Council,31/05/2019,Resources and Housing,Leeds Building Services,Supplies and Services,Operational Materials,205,07/05/2019,1905-00373,0.00,39.29,R,Adi Global,No
Http://opendatacommunities.org/id/metropolitan-district-council/leeds,Leeds City Council,31/05/2019,Resources and Housing,Leeds Building Services,Supplies and Services,Operational Materials,205,07/05/2019,1905-00374,0.00,1022.34,R,Adi Global,No
Http://opendatacommunities.org/id/metropolitan-district-council/leeds,Leeds City Council,31/05/2019,Resources and Housing,Leeds Building Services,Supplies and Services,Operational Materials,205,10/05/2019,1905-00375,0.00,18.65,R,Adi Global,No
Http://opendatacommunities.org/id/metropolitan-district-council/leeds,Leeds City Council,31/05/2019,Resources and Housing,Leeds Building Services,Supplies and Services,Operational Materials,205,10/05/2019,1905-00376,0.00,14.25,R,Adi Global,No
Http://opendatacommunities.org/id/metropolitan-district-council/leeds,Leeds City Council,31/05/2019,Resources and Housing,Leeds Building Services,Supplies and Services,Operational Materials,205,10/05/2019,1905-00377,0.00,394.75,R,Adi Global,No
Http://opendatacommunities.org/id/metropolitan-district-council/leeds,Leeds City Council,31/05/2019,Resources and Housing,Leeds Building Services,Supplies and Services,Operational Materials,205,10/05/2019,1905-00378,0.00,1632.91,R,Adi Global,No
Http://opendatacommunities.org/id/metropolitan-district-council/leeds,Leeds City Council,31/05/2019,Resources and Housing,Leeds Building Services,Supplies and Services,Operational Materials,205,16/05/2019,1905-00379,0.00,41.85,R,Adi Global,No
Http://opendatacommunities.org/id/metropolitan-district-council/leeds,Leeds City Council,31/05/2019,Resources and Housing,Leeds Building Services,Supplies and Services,Operational Materials,205,20/05/2019,1905-00380,0.00,152.02,R,Adi Global,No
Http://opendatacommunities.org/id/metropolitan-district-council/leeds,Leeds City Council,31/05/2019,Resources and Housing,Leeds Building Services,Supplies and Services,Operational Materials,205,23/05/2019,1905-00381,0.00,3016.35,R,Adi Global,No
Http://opendatacommunities.org/id/metropolitan-district-council/leeds,Leeds City Council,31/05/2019,Resources and Housing,Leeds Building Services,Supplies and Services,Operational Materials,205,23/05/2019,1905-00382,0.00,2152.03,R,Adi Global,No
Http://opendatacommunities.org/id/metropolitan-district-council/leeds,Leeds City Council,31/05/2019,Resources and Housing,Leeds Building Services,Supplies and Services,Operational Materials,205,23/05/2019,1905-00383,0.00,77.85,R,Adi Global,No
Http://opendatacommunities.org/id/metropolitan-district-council/leeds,Leeds City Council,31/05/2019,Resources and Housing,Leeds Building Services,Supplies and Services,Operational Materials,205,23/05/2019,1905-00384,0.00,78.83,R,Adi Global,No
Http://opendatacommunities.org/id/metropolitan-district-council/leeds,Leeds City Council,31/05/2019,Resources and Housing,Leeds Building Services,Supplies and Services,Operational Materials,205,23/05/2019,1905-00385,0.00,137.06,R,Adi Global,No
Http://opendatacommunities.org/id/metropolitan-district-council/leeds,Leeds City Council,31/05/2019,Resources and Housing,Leeds Building Services,Supplies and Services,Operational Materials,205,23/05/2019,1905-00386,0.00,726.66,R,Adi Global,No
Http://opendatacommunities.org/id/metropolitan-district-council/leeds,Leeds City Council,31/05/2019,Resources and Housing,Leeds Building Services,Supplies and Services,Operational Materials,205,23/05/2019,1905-00387,0.00,444.80,R,Adi Global,No
Http://opendatacommunities.org/id/metropolitan-district-council/leeds,Leeds City Council,31/05/2019,Resources and Housing,Leeds Building Services,Supplies and Services,Operational Materials,205,23/05/2019,1905-00388,0.00,204.80,R,Adi Global,No
Http://opendatacommunities.org/id/metropolitan-district-council/leeds,Leeds City Council,31/05/2019,Resources and Housing,Leeds Building Services,Supplies and Services,Operational Materials,205,23/05/2019,1905-00389,0.00,204.80,R,Adi Global,No
Http://opendatacommunities.org/id/metropolitan-district-council/leeds,Leeds City Council,31/05/2019,Resources and Housing,Leeds Building Services,Supplies and Services,Operational Materials,205,23/05/2019,1905-00390,0.00,73.30,R,Adi Global,No
Http://opendatacommunities.org/id/metropolitan-district-council/leeds,Leeds City Council,31/05/2019,Resources and Housing,Leeds Building Services,Supplies and Services,Operational Materials,205,29/05/2019,1905-00391,0.00,51.13,R,Adi Global,No
Http://opendatacommunities.org/id/metropolitan-district-council/leeds,Leeds City Council,31/05/2019,Resources and Housing,Leeds Building Services,Supplies and Services,Stores - Central and Other Depots,5,31/05/2019,1905-00392,0.00,994.50,R,Adi Global,No
Http://opendatacommunities.org/id/metropolitan-district-council/leeds,Leeds City Council,31/05/2019,Resources and Housing,Leeds Building Services,Supplies and Services,Operational Materials,205,31/05/2019,1905-00393,0.00,559.96,R,Adi Global,No
Http://opendatacommunities.org/id/metropolitan-district-council/leeds,Leeds City Council,31/05/2019,Communities and Environment,Community Safety  ,Supplies and Services,Other Hired and Contracted Services,265,09/04/2019,1905-00394,0.00,351.78,R,Adi-Gardiner Ltd,Yes
Http://opendatacommunities.org/id/metropolitan-district-council/leeds,Leeds City Council,31/05/2019,Communities and Environment,Community Safety  ,Supplies and Services,Other Hired and Contracted Services,265,09/04/2019,1905-00395,0.00,109.20,R,Adi-Gardiner Ltd,Yes
Http://opendatacommunities.org/id/metropolitan-district-council/leeds,Leeds City Council,31/05/2019,Adults and Health,Services For Adults Under 65 Mental/Dis,Third Party Payments,Home Care,568,02/05/2019,1905-00396,0.00,384.00,R,Adjuvo Care & Support Ltd,No
Http://opendatacommunities.org/id/metropolitan-district-council/leeds,Leeds City Council,31/05/2019,Adults and Health,Services For Adults Under 65 Mental/Dis,Third Party Payments,Home Care,568,02/05/2019,1905-00397,0.00,430.67,R,Adjuvo Care & Support Ltd,No
Http://opendatacommunities.org/id/metropolitan-district-council/leeds,Leeds City Council,31/05/2019,Adults and Health,Services For Adults Under 65 Mental/Dis,Third Party Payments,Home Care,568,02/05/2019,1905-00398,0.00,48.00,R,Adjuvo Care & Support Ltd,No
Http://opendatacommunities.org/id/metropolitan-district-council/leeds,Leeds City Council,31/05/2019,Adults and Health,Services For Adults Under 65 Mental/Dis,Third Party Payments,Home Care,568,02/05/2019,1905-00399,0.00,208.00,R,Adjuvo Care & Support Ltd,No
Http://opendatacommunities.org/id/metropolitan-district-council/leeds,Leeds City Council,31/05/2019,Adults and Health,Services For Adults Under 65 Mental/Dis,Third Party Payments,Home Care,568,09/05/2019,1905-00400,0.00,485.52,R,Adjuvo Care & Support Ltd,No
Http://opendatacommunities.org/id/metropolitan-district-council/leeds,Leeds City Council,31/05/2019,Adults and Health,Services For Older People - 65 and Over,Third Party Payments,Home Care,568,09/05/2019,1905-00401,0.00,14343.09,R,Adjuvo Care & Support Ltd,No
Http://opendatacommunities.org/id/metropolitan-district-council/leeds,Leeds City Council,31/05/2019,Adults and Health,Services For Older People - 65 and Over,Third Party Payments,HCAIT Other,577,09/05/2019,1905-00402,0.00,216.75,R,Adjuvo Care & Support Ltd,No
Http://opendatacommunities.org/id/metropolitan-district-council/leeds,Leeds City Council,31/05/2019,Adults and Health,Services For Older People Under 65 P/Dis,Third Party Payments,Home Care,568,09/05/2019,1905-00403,0.00,10652.52,R,Adjuvo Care & Support Ltd,No
Http://opendatacommunities.org/id/metropolitan-district-council/leeds,Leeds City Council,31/05/2019,Adults and Health,Services For Older People - 65 and Over,Third Party Payments,Home Care,568,09/05/2019,1905-00404,0.00,7041.33,R,Adjuvo Care & Support Ltd,No
Http://opendatacommunities.org/id/metropolitan-district-council/leeds,Leeds City Council,31/05/2019,Adults and Health,Services For Older People Under 65 P/Dis,Third Party Payments,Home Care,568,09/05/2019,1905-00405,0.00,1040.00,R,Adjuvo Care & Support Ltd,No
Http://opendatacommunities.org/id/metropolitan-district-council/leeds,Leeds City Council,31/05/2019,Adults and Health,Services For Adults Under 65 Mental/Dis,Third Party Payments,Home Care,568,17/05/2019,1905-00406,0.00,896.00,R,Adjuvo Care & Support Ltd,No
Http://opendatacommunities.org/id/metropolitan-district-council/leeds,Leeds City Council,31/05/2019,Adults and Health,Services For Adults Under 65 Mental/Dis,Third Party Payments,Home Care,568,17/05/2019,1905-00407,0.00,240.00,R,Adjuvo Care & Support Ltd,No
Http://opendatacommunities.org/id/metropolitan-district-council/leeds,Leeds City Council,31/05/2019,City Development,Libraries  Arts & Heritage  ,Supplies and Services,Computer Software & Equipment,214,03/04/2019,1905-00408,0.00,9.98,R,Adobe Photogphy Plan,Yes
Http://opendatacommunities.org/id/metropolitan-district-council/leeds,Leeds City Council,31/05/2019,Children and Families,Social Care,Third Party Payments,Independent Fostering Agencies,509,01/05/2019,1905-00409,0.00,2945.00,R,Adolescent and Childrens Trust,No
Http://opendatacommunities.org/id/metropolitan-district-council/leeds,Leeds City Council,31/05/2019,Children and Families,Social Care,Third Party Payments,Independent Fostering Agencies,509,01/05/2019,1905-00410,0.00,3193.00,R,Adolescent and Childrens Trust,No
Http://opendatacommunities.org/id/metropolitan-district-council/leeds,Leeds City Council,31/05/2019,Children and Families,Social Care,Third Party Payments,Independent Fostering Agencies,509,01/05/2019,1905-00411,0.00,3129.14,R,Adolescent and Childrens Trust,No
Http://opendatacommunities.org/id/metropolitan-district-council/leeds,Leeds City Council,31/05/2019,Children and Families,Social Care,Third Party Payments,Independent Fostering Agencies,509,01/05/2019,1905-00412,0.00,3129.14,R,Adolescent and Childrens Trust,No
Http://opendatacommunities.org/id/metropolitan-district-council/leeds,Leeds City Council,31/05/2019,Children and Families,Social Care,Third Party Payments,Independent Fostering Agencies,509,01/05/2019,1905-00413,0.00,3129.14,R,Adolescent and Childrens Trust,No
Http://opendatacommunities.org/id/metropolitan-district-council/leeds,Leeds City Council,31/05/2019,Children and Families,Social Care,Third Party Payments,Independent Fostering Agencies,509,01/05/2019,1905-00414,0.00,3384.58,R,Adolescent and Childrens Trust,No
Http://opendatacommunities.org/id/metropolitan-district-council/leeds,Leeds City Council,31/05/2019,Children and Families,Social Care,Third Party Payments,Independent Fostering Agencies,509,02/05/2019,1905-00415,0.00,3193.00,R,Adolescent and Childrens Trust,No
Http://opendatacommunities.org/id/metropolitan-district-council/leeds,Leeds City Council,31/05/2019,Children and Families,Social Care,Third Party Payments,Independent Fostering Agencies,509,02/05/2019,1905-00416,0.00,3129.14,R,Adolescent and Childrens Trust,No
Http://opendatacommunities.org/id/metropolitan-district-council/leeds,Leeds City Council,31/05/2019,Children and Families,Social Care,Third Party Payments,Independent Fostering Agencies,509,02/05/2019,1905-00417,0.00,841.34,R,Adolescent and Childrens Trust,No
Http://opendatacommunities.org/id/metropolitan-district-council/leeds,Leeds City Council,31/05/2019,Children and Families,Social Care,Third Party Payments,Independent Fostering Agencies,509,31/05/2019,1905-00418,0.00,2850.00,R,Adolescent and Childrens Trust,No
Http://opendatacommunities.org/id/metropolitan-district-council/leeds,Leeds City Council,31/05/2019,Children and Families,Social Care,Third Party Payments,Independent Fostering Agencies,509,31/05/2019,1905-00419,0.00,3090.00,R,Adolescent and Childrens Trust,No
Http://opendatacommunities.org/id/metropolitan-district-council/leeds,Leeds City Council,31/05/2019,Children and Families,Social Care,Third Party Payments,Independent Fostering Agencies,509,31/05/2019,1905-00420,0.00,2523.50,R,Adolescent and Childrens Trust,No
Http://opendatacommunities.org/id/metropolitan-district-council/leeds,Leeds City Council,31/05/2019,Children and Families,Social Care,Third Party Payments,Independent Fostering Agencies,509,31/05/2019,1905-00421,0.00,2523.50,R,Adolescent and Childrens Trust,No
Http://opendatacommunities.org/id/metropolitan-district-council/leeds,Leeds City Council,31/05/2019,Children and Families,Social Care,Third Party Payments,Independent Fostering Agencies,509,31/05/2019,1905-00422,0.00,3028.20,R,Adolescent and Childrens Trust,No
Http://opendatacommunities.org/id/metropolitan-district-council/leeds,Leeds City Council,31/05/2019,Children and Families,Social Care,Third Party Payments,Independent Fostering Agencies,509,31/05/2019,1905-00423,0.00,3028.20,R,Adolescent and Childrens Trust,No
Http://opendatacommunities.org/id/metropolitan-district-council/leeds,Leeds City Council,31/05/2019,Children and Families,Social Care,Third Party Payments,Independent Fostering Agencies,509,31/05/2019,1905-00424,0.00,814.20,R,Adolescent and Childrens Trust,No
Http://opendatacommunities.org/id/metropolitan-district-council/leeds,Leeds City Council,31/05/2019,Children and Families,Social Care,Third Party Payments,Independent Fostering Agencies,509,31/05/2019,1905-00425,0.00,3275.40,R,Adolescent and Childrens Trust,No
Http://opendatacommunities.org/id/metropolitan-district-council/leeds,Leeds City Council,31/05/2019,Children and Families,Social Care,Third Party Payments,Independent Fostering Agencies,509,31/05/2019,1905-00426,0.00,2597.66,R,Adolescent and Childrens Trust,No
Http://opendatacommunities.org/id/metropolitan-district-council/leeds,Leeds City Council,31/05/2019,Children and Families,Social Care,Third Party Payments,Independent Fostering Agencies,509,31/05/2019,1905-00427,0.00,2443.82,R,Adolescent and Childrens Trust,No
Http://opendatacommunities.org/id/metropolitan-district-council/leeds,Leeds City Council,31/05/2019,Children and Families,Social Care,Third Party Payments,Independent Fostering Agencies,509,31/05/2019,1905-00428,0.00,2597.66,R,Adolescent and Childrens Trust,No
Http://opendatacommunities.org/id/metropolitan-district-council/leeds,Leeds City Council,31/05/2019,Strategic Landlord,Property and Contracts,Premises,Maintenance Of Buildings,101,02/05/2019,1905-00429,0.00,426.75,R,Adt Fire and Security Plc,No
Http://opendatacommunities.org/id/metropolitan-district-council/leeds,Leeds City Council,31/05/2019,Strategic Landlord,Housing Management,Premises,Premises Security Services,162,02/05/2019,1905-00430,0.00,154.95,R,Adt Fire and Security Plc,No
Http://opendatacommunities.org/id/metropolitan-district-council/leeds,Leeds City Council,31/05/2019,Communities and Environment,Parks and Countryside,Supplies and Services,Operational Materials,205,20/05/2019,1905-00431,0.00,65.05,R,Adt Fire and Security Plc,No
Http://opendatacommunities.org/id/metropolitan-district-council/leeds,Leeds City Council,31/05/2019,City Development,Libraries  Arts & Heritage,Supplies and Services,External Audit Fees,261,03/05/2019,1905-00432,0.00,90.00,R,Advance Stocks Ltd,No
Http://opendatacommunities.org/id/metropolitan-district-council/leeds,Leeds City Council,31/05/2019,City Development,Libraries  Arts & Heritage,Supplies and Services,External Audit Fees,261,03/05/2019,1905-00433,0.00,85.00,R,Advance Stocks Ltd,No
Http://opendatacommunities.org/id/metropolitan-district-council/leeds,Leeds City Council,31/05/2019,City Development,Recreation,Supplies and Services,External Audit Fees,261,31/05/2019,1905-00434,0.00,135.00,R,Advance Stocks Ltd,No
Http://opendatacommunities.org/id/metropolitan-district-council/leeds,Leeds City Council,31/05/2019,City Development,Recreation,Supplies and Services,External Audit Fees,261,31/05/2019,1905-00435,0.00,85.00,R,Advance Stocks Ltd,No
Http://opendatacommunities.org/id/metropolitan-district-council/leeds,Leeds City Council,31/05/2019,City Development,Libraries  Arts & Heritage,Supplies and Services,External Audit Fees,261,31/05/2019,1905-00436,0.00,90.00,R,Advance Stocks Ltd,No
Http://opendatacommunities.org/id/metropolitan-district-council/leeds,Leeds City Council,31/05/2019,Children and Families,Social Care,Support Services,Legal Disbursements,411,10/05/2019,1905-00437,0.00,1646.20,R,Advanced Child Care Assessments Ltd,No
Http://opendatacommunities.org/id/metropolitan-district-council/leeds,Leeds City Council,31/05/2019,Children and Families,Social Care,Support Services,Legal Disbursements,411,31/05/2019,1905-00438,0.00,370.85,R,Advanced Child Care Assessments Ltd,No
Http://opendatacommunities.org/id/metropolitan-district-council/leeds,Leeds City Council,31/05/2019,Children and Families,Social Care,Support Services,Legal Disbursements,411,31/05/2019,1905-00439,0.00,329.60,R,Advanced Child Care Assessments Ltd,No
Http://opendatacommunities.org/id/metropolitan-district-council/leeds,Leeds City Council,31/05/2019,City Development,Libraries  Arts & Heritage,Supplies and Services,Other Hired and Contracted Services,265,24/05/2019,1905-00440,0.00,2300.00,R,Adverse Camber Productions,No
Http://opendatacommunities.org/id/metropolitan-district-council/leeds,Leeds City Council,31/05/2019,City Development,Libraries  Arts & Heritage,Supplies and Services,Other Hired and Contracted Services,265,24/05/2019,1905-00441,0.00,3100.27,R,Adverse Camber Productions,No
Http://opendatacommunities.org/id/metropolitan-district-council/leeds,Leeds City Council as Accountable Body,31/05/2019,Social Services Pooled Budgets,Jcs For People With Learning Disabilitie,Third Party Payments,Residential,580,01/05/2019,1905-00442,0.00,17603.38,R,Advitam Ltd,No
Http://opendatacommunities.org/id/metropolitan-district-council/leeds,Leeds City Council as Accountable Body,31/05/2019,Social Services Pooled Budgets,Jcs For People With Learning Disabilitie,Third Party Payments,Residential,580,29/05/2019,1905-00443,0.00,3550.36,R,Advitam Ltd,No
Http://opendatacommunities.org/id/metropolitan-district-council/leeds,Leeds City Council,31/05/2019,Children and Families,Social Care,Third Party Payments,Placement Support,550,02/05/2019,1905-00444,0.00,22.50,R,Advonet,No
Http://opendatacommunities.org/id/metropolitan-district-council/leeds,Leeds City Council,31/05/2019,Children and Families,Social Care,Third Party Payments,Placement Support,550,08/05/2019,1905-00445,0.00,15.00,R,Advonet,No
Http://opendatacommunities.org/id/metropolitan-district-council/leeds,Leeds City Council,31/05/2019,Children and Families,Social Care,Third Party Payments,Placement Support,550,08/05/2019,1905-00446,0.00,95.10,R,Advonet,No
Http://opendatacommunities.org/id/metropolitan-district-council/leeds,Leeds City Council,31/05/2019,Adults and Health,Social Services Support Services,Employees,Training & Development,70,08/05/2019,1905-00447,0.00,890.00,R,Advonet,No
Http://opendatacommunities.org/id/metropolitan-district-council/leeds,Leeds City Council as Accountable Body,31/05/2019,Social Services Pooled Budgets,Jcs For People With Learning Disabilitie,Third Party Payments,Other Agency Services,561,20/05/2019,1905-00448,0.00,15.90,R,Advonet,No
Http://opendatacommunities.org/id/metropolitan-district-council/leeds,Leeds City Council as Accountable Body,31/05/2019,Social Services Pooled Budgets,Jcs For People With Learning Disabilitie,Third Party Payments,Other Agency Services,561,20/05/2019,1905-00449,0.00,30.00,R,Advonet,No
Http://opendatacommunities.org/id/metropolitan-district-council/leeds,Leeds City Council,31/05/2019,Adults and Health,Services For Older People - 65 and Over,Third Party Payments,Payments To Voluntary Organisations,561,31/05/2019,1905-00450,0.00,103917.00,R,Advonet,No
Http://opendatacommunities.org/id/metropolitan-district-council/leeds,Leeds City Council,31/05/2019,Adults and Health,Services For Adults Under 65 Mental/Dis,Third Party Payments,Fees - Level 4,520,24/05/2019,1905-00451,0.00,216.34,R,Ae Bia Assessments Limited,No
Http://opendatacommunities.org/id/metropolitan-district-council/leeds,Leeds City Council,31/05/2019,Communities and Environment,Elections  Licensing and Registration,Premises,Rents,141,13/05/2019,1905-00452,0.00,160.00,R,Affinity Sutton,No
Http://opendatacommunities.org/id/metropolitan-district-council/leeds,Leeds City Council,31/05/2019,Communities and Environment,Elections  Licensing and Registration,Premises,Rents,141,31/05/2019,1905-00453,0.00,160.00,R,Affinity Sutton,No
Http://opendatacommunities.org/id/metropolitan-district-council/leeds,Leeds City Council,31/05/2019,Adults and Health,Services For Older People Under 65 P/Dis,Third Party Payments,Home Care,568,09/05/2019,1905-00454,0.00,-447.44,R,Affinity Trust,No
Http://opendatacommunities.org/id/metropolitan-district-council/leeds,Leeds City Council as Accountable Body,31/05/2019,Social Services Pooled Budgets,Jcs For People With Learning Disabilitie,Third Party Payments,Day Centre,564,09/05/2019,1905-00455,0.00,780.66,R,Affinity Trust,No
Http://opendatacommunities.org/id/metropolitan-district-council/leeds,Leeds City Council as Accountable Body,31/05/2019,Social Services Pooled Budgets,Jcs For People With Learning Disabilitie,Third Party Payments,Home Care,568,09/05/2019,1905-00456,0.00,345.33,R,Affinity Trust,No
Http://opendatacommunities.org/id/metropolitan-district-council/leeds,Leeds City Council as Accountable Body,31/05/2019,Social Services Pooled Budgets,Jcs For People With Learning Disabilitie,Third Party Payments,Home Care,568,09/05/2019,1905-00457,0.00,1365.00,R,Affinity Trust,No
Http://opendatacommunities.org/id/metropolitan-district-council/leeds,Leeds City Council as Accountable Body,31/05/2019,Social Services Pooled Budgets,Jcs For People With Learning Disabilitie,Third Party Payments,Home Care,568,09/05/2019,1905-00458,0.00,1815.20,R,Affinity Trust,No
Http://opendatacommunities.org/id/metropolitan-district-council/leeds,Leeds City Council as Accountable Body,31/05/2019,Social Services Pooled Budgets,Jcs For People With Learning Disabilitie,Third Party Payments,Home Care,568,09/05/2019,1905-00459,0.00,1307.28,R,Affinity Trust,No
Http://opendatacommunities.org/id/metropolitan-district-council/leeds,Leeds City Council as Accountable Body,31/05/2019,Social Services Pooled Budgets,Jcs For People With Learning Disabilitie,Third Party Payments,Day Centre,564,09/05/2019,1905-00460,0.00,301.68,R,Affinity Trust,No
Http://opendatacommunities.org/id/metropolitan-district-council/leeds,Leeds City Council as Accountable Body,31/05/2019,Social Services Pooled Budgets,Jcs For People With Learning Disabilitie,Third Party Payments,Home Care,568,09/05/2019,1905-00461,0.00,525.72,R,Affinity Trust,No
Http://opendatacommunities.org/id/metropolitan-district-council/leeds,Leeds City Council as Accountable Body,31/05/2019,Social Services Pooled Budgets,Jcs For People With Learning Disabilitie,Third Party Payments,Day Centre,564,09/05/2019,1905-00462,0.00,1854.48,R,Affinity Trust,No
Http://opendatacommunities.org/id/metropolitan-district-council/leeds,Leeds City Council as Accountable Body,31/05/2019,Social Services Pooled Budgets,Jcs For People With Learning Disabilitie,Third Party Payments,Home Care,568,09/05/2019,1905-00463,0.00,653.64,R,Affinity Trust,No
Http://opendatacommunities.org/id/metropolitan-district-council/leeds,Leeds City Council as Accountable Body,31/05/2019,Social Services Pooled Budgets,Jcs For People With Learning Disabilitie,Third Party Payments,Home Care,568,09/05/2019,1905-00464,0.00,869.68,R,Affinity Trust,No
Http://opendatacommunities.org/id/metropolitan-district-council/leeds,Leeds City Council as Accountable Body,31/05/2019,Social Services Pooled Budgets,Jcs For People With Learning Disabilitie,Third Party Payments,Home Care,568,09/05/2019,1905-00465,0.00,180.00,R,Affinity Trust,No
Http://opendatacommunities.org/id/metropolitan-district-council/leeds,Leeds City Council as Accountable Body,31/05/2019,Social Services Pooled Budgets,Jcs For People With Learning Disabilitie,Third Party Payments,Day Centre,564,09/05/2019,1905-00466,0.00,714.78,R,Affinity Trust,No
Http://opendatacommunities.org/id/metropolitan-district-council/leeds,Leeds City Council as Accountable Body,31/05/2019,Social Services Pooled Budgets,Jcs For People With Learning Disabilitie,Third Party Payments,Home Care,568,10/05/2019,1905-00467,0.00,900.00,R,Affinity Trust,No
Http://opendatacommunities.org/id/metropolitan-district-council/leeds,Leeds City Council as Accountable Body,31/05/2019,Social Services Pooled Budgets,Jcs For People With Learning Disabilitie,Third Party Payments,Home Care,568,13/05/2019,1905-00468,0.00,754.20,R,Affinity Trust,No
Http://opendatacommunities.org/id/metropolitan-district-council/leeds,Leeds City Council as Accountable Body,31/05/2019,Social Services Pooled Budgets,Jcs For People With Learning Disabilitie,Third Party Payments,Day Centre,564,13/05/2019,1905-00469,0.00,1994.44,R,Affinity Trust,No
Http://opendatacommunities.org/id/metropolitan-district-council/leeds,Leeds City Council as Accountable Body,31/05/2019,Social Services Pooled Budgets,Jcs For People With Learning Disabilitie,Third Party Payments,Day Centre,564,13/05/2019,1905-00470,0.00,991.98,R,Affinity Trust,No
Http://opendatacommunities.org/id/metropolitan-district-council/leeds,Leeds City Council as Accountable Body,31/05/2019,Social Services Pooled Budgets,Jcs For People With Learning Disabilitie,Third Party Payments,Home Care,568,13/05/2019,1905-00471,0.00,654.99,R,Affinity Trust,No
Http://opendatacommunities.org/id/metropolitan-district-council/leeds,Leeds City Council as Accountable Body,31/05/2019,Social Services Pooled Budgets,Jcs For People With Learning Disabilitie,Transfer Payments,Personal Budgets,627,13/05/2019,1905-00472,0.00,607.09,R,Affinity Trust,No
Http://opendatacommunities.org/id/metropolitan-district-council/leeds,Leeds City Council as Accountable Body,31/05/2019,Social Services Pooled Budgets,Jcs For People With Learning Disabilitie,Third Party Payments,Home Care,568,13/05/2019,1905-00473,0.00,287.64,R,Affinity Trust,No
Http://opendatacommunities.org/id/metropolitan-district-council/leeds,Leeds City Council,31/05/2019,Adults and Health,Services For Older People - 65 and Over,Third Party Payments,HCAIT Community Support,575,20/05/2019,1905-00474,0.00,527.34,R,Affinity Trust,No
Http://opendatacommunities.org/id/metropolitan-district-council/leeds,Leeds City Council,31/05/2019,Adults and Health,Services For Older People Under 65 P/Dis,Third Party Payments,Home Care,568,20/05/2019,1905-00475,0.00,926.84,R,Affinity Trust,No
Http://opendatacommunities.org/id/metropolitan-district-council/leeds,Leeds City Council as Accountable Body,31/05/2019,Social Services Pooled Budgets,Jcs For People With Learning Disabilitie,Third Party Payments,Home Care,568,23/05/2019,1905-00476,0.00,942.82,R,Affinity Trust,No
Http://opendatacommunities.org/id/metropolitan-district-council/leeds,Leeds City Council as Accountable Body,31/05/2019,Social Services Pooled Budgets,Jcs For People With Learning Disabilitie,Third Party Payments,Home Care,568,23/05/2019,1905-00477,0.00,1342.32,R,Affinity Trust,No
Http://opendatacommunities.org/id/metropolitan-district-council/leeds,Leeds City Council as Accountable Body,31/05/2019,Social Services Pooled Budgets,Jcs For People With Learning Disabilitie,Third Party Payments,Home Care,568,23/05/2019,1905-00478,0.00,479.40,R,Affinity Trust,No
Http://opendatacommunities.org/id/metropolitan-district-council/leeds,Leeds City Council as Accountable Body,31/05/2019,Social Services Pooled Budgets,Jcs For People With Learning Disabilitie,Third Party Payments,Day Centre,564,23/05/2019,1905-00479,0.00,416.64,R,Affinity Trust,No
Http://opendatacommunities.org/id/metropolitan-district-council/leeds,Leeds City Council as Accountable Body,31/05/2019,Social Services Pooled Budgets,Jcs For People With Learning Disabilitie,Third Party Payments,Home Care,568,23/05/2019,1905-00480,0.00,1509.75,R,Affinity Trust,No
Http://opendatacommunities.org/id/metropolitan-district-council/leeds,Leeds City Council as Accountable Body,31/05/2019,Social Services Pooled Budgets,Jcs For People With Learning Disabilitie,Third Party Payments,Home Care,568,23/05/2019,1905-00481,0.00,908.28,R,Affinity Trust,No
Http://opendatacommunities.org/id/metropolitan-district-council/leeds,Leeds City Council as Accountable Body,31/05/2019,Social Services Pooled Budgets,Jcs For People With Learning Disabilitie,Third Party Payments,Home Care,568,23/05/2019,1905-00482,0.00,639.20,R,Affinity Trust,No
Http://opendatacommunities.org/id/metropolitan-district-council/leeds,Leeds City Council as Accountable Body,31/05/2019,Social Services Pooled Budgets,Jcs For People With Learning Disabilitie,Third Party Payments,Home Care,568,23/05/2019,1905-00483,0.00,408.00,R,Affinity Trust,No
Http://opendatacommunities.org/id/metropolitan-district-council/leeds,Leeds City Council as Accountable Body,31/05/2019,Social Services Pooled Budgets,Jcs For People With Learning Disabilitie,Third Party Payments,Home Care,568,23/05/2019,1905-00484,0.00,2245.19,R,Affinity Trust,No
Http://opendatacommunities.org/id/metropolitan-district-council/leeds,Leeds City Council as Accountable Body,31/05/2019,Social Services Pooled Budgets,Jcs For People With Learning Disabilitie,Third Party Payments,Home Care,568,23/05/2019,1905-00485,0.00,204.32,R,Affinity Trust,No
Http://opendatacommunities.org/id/metropolitan-district-council/leeds,Leeds City Council as Accountable Body,31/05/2019,Social Services Pooled Budgets,Jcs For People With Learning Disabilitie,Third Party Payments,Home Care,568,23/05/2019,1905-00486,0.00,942.82,R,Affinity Trust,No
Http://opendatacommunities.org/id/metropolitan-district-council/leeds,Leeds City Council as Accountable Body,31/05/2019,Social Services Pooled Budgets,Jcs For People With Learning Disabilitie,Third Party Payments,Home Care,568,23/05/2019,1905-00487,0.00,447.44,R,Affinity Trust,No
Http://opendatacommunities.org/id/metropolitan-district-council/leeds,Leeds City Council as Accountable Body,31/05/2019,Social Services Pooled Budgets,Jcs For People With Learning Disabilitie,Third Party Payments,Home Care,568,23/05/2019,1905-00488,0.00,639.20,R,Affinity Trust,No
Http://opendatacommunities.org/id/metropolitan-district-council/leeds,Leeds City Council as Accountable Body,31/05/2019,Social Services Pooled Budgets,Jcs For People With Learning Disabilitie,Third Party Payments,Home Care,568,23/05/2019,1905-00489,0.00,191.76,R,Affinity Trust,No
Http://opendatacommunities.org/id/metropolitan-district-council/leeds,Leeds City Council as Accountable Body,31/05/2019,Social Services Pooled Budgets,Jcs For People With Learning Disabilitie,Third Party Payments,Home Care,568,23/05/2019,1905-00490,0.00,910.86,R,Affinity Trust,No
Http://opendatacommunities.org/id/metropolitan-district-council/leeds,Leeds City Council as Accountable Body,31/05/2019,Social Services Pooled Budgets,Jcs For People With Learning Disabilitie,Third Party Payments,Home Care,568,23/05/2019,1905-00491,0.00,303.62,R,Affinity Trust,No
Http://opendatacommunities.org/id/metropolitan-district-council/leeds,Leeds City Council as Accountable Body,31/05/2019,Social Services Pooled Budgets,Jcs For People With Learning Disabilitie,Third Party Payments,Home Care,568,23/05/2019,1905-00492,0.00,319.60,R,Affinity Trust,No
Http://opendatacommunities.org/id/metropolitan-district-council/leeds,Leeds City Council as Accountable Body,31/05/2019,Social Services Pooled Budgets,Jcs For People With Learning Disabilitie,Third Party Payments,Home Care,568,24/05/2019,1905-00493,0.00,639.20,R,Affinity Trust,No
Http://opendatacommunities.org/id/metropolitan-district-council/leeds,Leeds City Council,31/05/2019,Adults and Health,Services For Adults Under 65 Mental/Dis,Third Party Payments,Home Care,568,24/05/2019,1905-00494,0.00,511.36,R,Affinity Trust,No
Http://opendatacommunities.org/id/metropolitan-district-council/leeds,Leeds City Council,31/05/2019,Adults and Health,Services For Older People Under 65 P/Dis,Third Party Payments,Home Care,568,24/05/2019,1905-00495,0.00,941.92,R,Affinity Trust,No
Http://opendatacommunities.org/id/metropolitan-district-council/leeds,Leeds City Council,31/05/2019,Adults and Health,Services For Older People - 65 and Over,Third Party Payments,Home Care,568,24/05/2019,1905-00496,0.00,511.36,R,Affinity Trust,No
Http://opendatacommunities.org/id/metropolitan-district-council/leeds,Leeds City Council,31/05/2019,Adults and Health,Services For Adults Under 65 Mental/Dis,Third Party Payments,Home Care,568,28/05/2019,1905-00497,0.00,511.36,R,Affinity Trust,No
Http://opendatacommunities.org/id/metropolitan-district-council/leeds,Leeds City Council as Accountable Body,31/05/2019,Social Services Pooled Budgets,Jcs For People With Learning Disabilitie,Third Party Payments,Day Centre,564,29/05/2019,1905-00498,0.00,1440.00,R,Affinity Trust,No
Http://opendatacommunities.org/id/metropolitan-district-council/leeds,Leeds City Council as Accountable Body,31/05/2019,Social Services Pooled Budgets,Jcs For People With Learning Disabilitie,Third Party Payments,Day Centre,564,29/05/2019,1905-00499,0.00,1021.32,R,Affinity Trust,No
Http://opendatacommunities.org/id/metropolitan-district-council/leeds,Leeds City Council as Accountable Body,31/05/2019,Social Services Pooled Budgets,Jcs For People With Learning Disabilitie,Third Party Payments,Home Care,568,29/05/2019,1905-00500,0.00,1800.00,R,Affinity Trust,No
Http://opendatacommunities.org/id/metropolitan-district-council/leeds,Leeds City Council as Accountable Body,31/05/2019,Social Services Pooled Budgets,Jcs For People With Learning Disabilitie,Third Party Payments,Home Care,568,29/05/2019,1905-00501,0.00,661.32,R,Affinity Trust,No
Http://opendatacommunities.org/id/metropolitan-district-council/leeds,Leeds City Council as Accountable Body,31/05/2019,Social Services Pooled Budgets,Jcs For People With Learning Disabilitie,Third Party Payments,Home Care,568,29/05/2019,1905-00502,0.00,1560.00,R,Affinity Trust,No
Http://opendatacommunities.org/id/metropolitan-district-council/leeds,Leeds City Council as Accountable Body,31/05/2019,Social Services Pooled Budgets,Jcs For People With Learning Disabilitie,Third Party Payments,Home Care,568,29/05/2019,1905-00503,0.00,2752.80,R,Affinity Trust,No
Http://opendatacommunities.org/id/metropolitan-district-council/leeds,Leeds City Council as Accountable Body,31/05/2019,Social Services Pooled Budgets,Jcs For People With Learning Disabilitie,Third Party Payments,Home Care,568,29/05/2019,1905-00504,0.00,1991.25,R,Affinity Trust,No
Http://opendatacommunities.org/id/metropolitan-district-council/leeds,Leeds City Council as Accountable Body,31/05/2019,Social Services Pooled Budgets,Jcs For People With Learning Disabilitie,Third Party Payments,Day Centre,564,29/05/2019,1905-00505,0.00,402.24,R,Affinity Trust,No
Http://opendatacommunities.org/id/metropolitan-district-council/leeds,Leeds City Council as Accountable Body,31/05/2019,Social Services Pooled Budgets,Jcs For People With Learning Disabilitie,Third Party Payments,Home Care,568,29/05/2019,1905-00506,0.00,525.72,R,Affinity Trust,No
Http://opendatacommunities.org/id/metropolitan-district-council/leeds,Leeds City Council as Accountable Body,31/05/2019,Social Services Pooled Budgets,Jcs For People With Learning Disabilitie,Third Party Payments,Day Centre,564,29/05/2019,1905-00507,0.00,1914.12,R,Affinity Trust,No
Http://opendatacommunities.org/id/metropolitan-district-council/leeds,Leeds City Council as Accountable Body,31/05/2019,Social Services Pooled Budgets,Jcs For People With Learning Disabilitie,Third Party Payments,Home Care,568,29/05/2019,1905-00508,0.00,804.48,R,Affinity Trust,No
Http://opendatacommunities.org/id/metropolitan-district-council/leeds,Leeds City Council as Accountable Body,31/05/2019,Social Services Pooled Budgets,Jcs For People With Learning Disabilitie,Third Party Payments,Home Care,568,29/05/2019,1905-00509,0.00,1800.00,R,Affinity Trust,No
Http://opendatacommunities.org/id/metropolitan-district-council/leeds,Leeds City Council as Accountable Body,31/05/2019,Social Services Pooled Budgets,Jcs For People With Learning Disabilitie,Third Party Payments,Home Care,568,29/05/2019,1905-00510,0.00,1005.60,R,Affinity Trust,No
Http://opendatacommunities.org/id/metropolitan-district-council/leeds,Leeds City Council as Accountable Body,31/05/2019,Social Services Pooled Budgets,Jcs For People With Learning Disabilitie,Third Party Payments,Home Care,568,29/05/2019,1905-00511,0.00,360.00,R,Affinity Trust,No
Http://opendatacommunities.org/id/metropolitan-district-council/leeds,Leeds City Council as Accountable Body,31/05/2019,Social Services Pooled Budgets,Jcs For People With Learning Disabilitie,Third Party Payments,Day Centre,564,29/05/2019,1905-00512,0.00,648.95,R,Affinity Trust,No
Http://opendatacommunities.org/id/metropolitan-district-council/leeds,Leeds City Council as Accountable Body,31/05/2019,Social Services Pooled Budgets,Jcs For People With Learning Disabilitie,Third Party Payments,Day Centre,564,29/05/2019,1905-00513,0.00,2346.40,R,Affinity Trust,No
Http://opendatacommunities.org/id/metropolitan-district-council/leeds,Leeds City Council as Accountable Body,31/05/2019,Social Services Pooled Budgets,Jcs For People With Learning Disabilitie,Third Party Payments,Day Centre,564,29/05/2019,1905-00514,0.00,1190.61,R,Affinity Trust,No
Http://opendatacommunities.org/id/metropolitan-district-council/leeds,Leeds City Council as Accountable Body,31/05/2019,Social Services Pooled Budgets,Jcs For People With Learning Disabilitie,Transfer Payments,Personal Budgets,627,29/05/2019,1905-00515,0.00,677.86,R,Affinity Trust,No
Http://opendatacommunities.org/id/metropolitan-district-council/leeds,Leeds City Council,31/05/2019,Adults and Health,Services For Older People Under 65 P/Dis,Third Party Payments,Home Care,568,29/05/2019,1905-00516,0.00,526.68,R,Affinity Trust,No
Http://opendatacommunities.org/id/metropolitan-district-council/leeds,Leeds City Council as Accountable Body,31/05/2019,Social Services Pooled Budgets,Jcs For People With Learning Disabilitie,Third Party Payments,Sheltered Accommodation,569,01/05/2019,1905-00517,0.00,135196.90,R,Affinity Trust North Divisional Office,No
Http://opendatacommunities.org/id/metropolitan-district-council/leeds,Leeds City Council as Accountable Body,31/05/2019,Social Services Pooled Budgets,Jcs For People With Learning Disabilitie,Third Party Payments,Sheltered Accommodation,569,29/05/2019,1905-00518,0.00,80916.39,R,Affinity Trust North Divisional Office,No
Http://opendatacommunities.org/id/metropolitan-district-council/leeds,Leeds City Council,31/05/2019,Communities and Environment,Parks and Countryside  ,Transport,External Hire -Occasional,304,23/04/2019,1905-00519,0.00,950.00,R,Afi Uplift,Yes
Http://opendatacommunities.org/id/metropolitan-district-council/leeds,Leeds City Council,31/05/2019,Communities and Environment,Parks and Countryside  ,Transport,External Hire -Occasional,304,23/04/2019,1905-00520,0.00,950.00,R,Afi Uplift,Yes
Http://opendatacommunities.org/id/metropolitan-district-council/leeds,Leeds City Council,31/05/2019,Communities and Environment,Parks and Countryside  ,Transport,External Hire -Occasional,304,23/04/2019,1905-00521,0.00,950.00,R,Afi Uplift,Yes
Http://opendatacommunities.org/id/metropolitan-district-council/leeds,Leeds City Council,31/05/2019,Communities and Environment,Parks and Countryside  ,Transport,External Hire -Occasional,304,23/04/2019,1905-00522,0.00,950.00,R,Afi Uplift,Yes
Http://opendatacommunities.org/id/metropolitan-district-council/leeds,Leeds City Council,31/05/2019,Communities and Environment,Parks and Countryside  ,Transport,External Hire -Occasional,304,23/04/2019,1905-00523,0.00,950.00,R,Afi Uplift,Yes
Http://opendatacommunities.org/id/metropolitan-district-council/leeds,Leeds City Council,31/05/2019,Resources and Housing,Commercial Services,Supplies and Services,Compensation Claims,200,07/05/2019,1905-00524,0.00,585.86,R,REDACTED PERSONAL DATA,No
Http://opendatacommunities.org/id/metropolitan-district-council/leeds,Leeds City Council,31/05/2019,City Development,Libraries  Arts & Heritage,Supplies and Services,Bought In Professional Services,277,31/05/2019,1905-00525,0.00,680.00,R,Agere Learning,No
Http://opendatacommunities.org/id/metropolitan-district-council/leeds,Leeds City Council,31/05/2019,City Development,Highways,Capital,Construction,3,15/05/2019,1905-00526,0.00,31657.85,C,Aggregate Industries Uk Ltd,No
Http://opendatacommunities.org/id/metropolitan-district-council/leeds,Leeds City Council,31/05/2019,City Development,Highways,Capital,Construction,3,29/05/2019,1905-00527,0.00,143214.54,C,Aggregate Industries Uk Ltd,No
Http://opendatacommunities.org/id/metropolitan-district-council/leeds,Leeds City Council,31/05/2019,Communities and Environment,Elections  Licensing and Registration,Premises,Rents,141,13/05/2019,1905-00528,0.00,20.00,R,REDACTED PERSONAL DATA,No
Http://opendatacommunities.org/id/metropolitan-district-council/leeds,Leeds City Council,31/05/2019,Communities and Environment,Elections  Licensing and Registration,Premises,Rents,141,31/05/2019,1905-00529,0.00,50.00,R,REDACTED PERSONAL DATA,No
Http://opendatacommunities.org/id/metropolitan-district-council/leeds,Leeds City Council,31/05/2019,City Development,Libraries  Arts & Heritage,Supplies and Services,Other Hired and Contracted Services,265,10/05/2019,1905-00530,0.00,164.50,R,Agnis Smallwood,No
Http://opendatacommunities.org/id/metropolitan-district-council/leeds,Leeds City Council,31/05/2019,Communities and Environment,Parks and Countryside  ,Supplies and Services,Office Consumables,210,04/04/2019,1905-00531,0.00,964.80,R,Agri Linc Limited,Yes
Http://opendatacommunities.org/id/metropolitan-district-council/leeds,Leeds City Council,31/05/2019,Adults and Health,Social Services Support Services,Employees,Training & Development,70,09/05/2019,1905-00532,0.00,8.64,R,REDACTED PERSONAL DATA,No
Http://opendatacommunities.org/id/metropolitan-district-council/leeds,Leeds City Council,31/05/2019,Children and Families,Learning,Supplies and Services,Teaching Materials,202,10/05/2019,1905-00533,0.00,33.53,R,Aid Training & Operations Ltd,No
Http://opendatacommunities.org/id/metropolitan-district-council/leeds,Leeds City Council,31/05/2019,Children and Families,Learning,Supplies and Services,Teaching Materials,202,28/05/2019,1905-00534,0.00,23.53,R,Aid Training & Operations Ltd,No
Http://opendatacommunities.org/id/metropolitan-district-council/leeds,Leeds City Council as Accountable Body,31/05/2019,Social Services Pooled Budgets,Leeds Community Equip Store Pooled Budgt,Supplies and Services,Other Equipment,203,10/05/2019,1905-00535,0.00,1790.30,R,Aidapt Bathrooms Ltd,No
Http://opendatacommunities.org/id/metropolitan-district-council/leeds,Leeds City Council as Accountable Body,31/05/2019,Social Services Pooled Budgets,Leeds Community Equip Store Pooled Budgt,Supplies and Services,Other Equipment,203,24/05/2019,1905-00536,0.00,307.80,R,Aidapt Bathrooms Ltd,No
Http://opendatacommunities.org/id/metropolitan-district-council/leeds,Leeds City Council as Accountable Body,31/05/2019,Social Services Pooled Budgets,Leeds Community Equip Store Pooled Budgt,Supplies and Services,Other Equipment,203,30/05/2019,1905-00537,0.00,256.50,R,Aidapt Bathrooms Ltd,No
Http://opendatacommunities.org/id/metropolitan-district-council/leeds,Leeds City Council as Accountable Body,31/05/2019,Social Services Pooled Budgets,Leeds Community Equip Store Pooled Budgt,Supplies and Services,Other Equipment,203,30/05/2019,1905-00538,0.00,1176.90,R,Aidapt Bathrooms Ltd,No
Http://opendatacommunities.org/id/metropolitan-district-council/leeds,Leeds City Council as Accountable Body,31/05/2019,Social Services Pooled Budgets,Leeds Community Equip Store Pooled Budgt,Supplies and Services,Other Equipment,203,30/05/2019,1905-00539,0.00,1683.70,R,Aidapt Bathrooms Ltd,No
Http://opendatacommunities.org/id/metropolitan-district-council/leeds,Leeds City Council as Accountable Body,31/05/2019,Social Services Pooled Budgets,Leeds Community Equip Store Pooled Budgt,Supplies and Services,Other Equipment,203,30/05/2019,1905-00540,0.00,256.80,R,Aidapt Bathrooms Ltd,No
Http://opendatacommunities.org/id/metropolitan-district-council/leeds,Leeds City Council as Accountable Body,31/05/2019,Social Services Pooled Budgets,Leeds Community Equip Store Pooled Budgt,Supplies and Services,Other Equipment,203,31/05/2019,1905-00541,0.00,205.20,R,Aidapt Bathrooms Ltd,No
Http://opendatacommunities.org/id/metropolitan-district-council/leeds,Leeds City Council,31/05/2019,City Development,Recreation,Income,Swimming Bath Charges,923,28/05/2019,1905-00542,0.00,17.00,R,REDACTED PERSONAL DATA,No
Http://opendatacommunities.org/id/metropolitan-district-council/leeds,Leeds City Council,31/05/2019,City Development,Highways,Capital,Other Costs,7,03/05/2019,1905-00543,0.00,49180.00,C,Aimsun Ltd,No
Http://opendatacommunities.org/id/metropolitan-district-council/leeds,Leeds City Council,31/05/2019,Strategic Accounts,Miscellaneous,Transfer Payments,Land Drainage Levies,665,01/05/2019,1905-00544,0.00,3793.15,R,Ainsty (2008) Internal Drainage Board,No
Http://opendatacommunities.org/id/metropolitan-district-council/leeds,Leeds City Council,31/05/2019,Resources and Housing,Leeds Building Services,Supplies and Services,Operational Materials,205,03/05/2019,1905-00545,0.00,219.83,R,Air Conditioning Accessories,No
Http://opendatacommunities.org/id/metropolitan-district-council/leeds,Leeds City Council,31/05/2019,Resources and Housing,Leeds Building Services,Supplies and Services,Operational Materials,205,03/05/2019,1905-00546,0.00,71.75,R,Air Conditioning Accessories,No
Http://opendatacommunities.org/id/metropolitan-district-council/leeds,Leeds City Council,31/05/2019,Resources and Housing,Leeds Building Services,Supplies and Services,Operational Materials,205,10/05/2019,1905-00547,0.00,-59.36,R,Air Conditioning Accessories,No
Http://opendatacommunities.org/id/metropolitan-district-council/leeds,Leeds City Council,31/05/2019,Resources and Housing,Leeds Building Services,Supplies and Services,Operational Materials,205,10/05/2019,1905-00548,0.00,-59.49,R,Air Conditioning Accessories,No
Http://opendatacommunities.org/id/metropolitan-district-council/leeds,Leeds City Council,31/05/2019,Resources and Housing,Leeds Building Services,Supplies and Services,Operational Materials,205,10/05/2019,1905-00549,0.00,70.48,R,Air Conditioning Accessories,No
Http://opendatacommunities.org/id/metropolitan-district-council/leeds,Leeds City Council,31/05/2019,Resources and Housing,Leeds Building Services,Supplies and Services,Operational Materials,205,10/05/2019,1905-00550,0.00,152.77,R,Air Conditioning Accessories,No
Http://opendatacommunities.org/id/metropolitan-district-council/leeds,Leeds City Council,31/05/2019,Resources and Housing,Leeds Building Services,Supplies and Services,Operational Materials,205,10/05/2019,1905-00551,0.00,19.84,R,Air Conditioning Accessories,No
Http://opendatacommunities.org/id/metropolitan-district-council/leeds,Leeds City Council,31/05/2019,Resources and Housing,Leeds Building Services,Supplies and Services,Operational Materials,205,10/05/2019,1905-00552,0.00,85.17,R,Air Conditioning Accessories,No
Http://opendatacommunities.org/id/metropolitan-district-council/leeds,Leeds City Council,31/05/2019,Resources and Housing,Leeds Building Services,Supplies and Services,Operational Materials,205,10/05/2019,1905-00553,0.00,33.00,R,Air Conditioning Accessories,No
Http://opendatacommunities.org/id/metropolitan-district-council/leeds,Leeds City Council,31/05/2019,Resources and Housing,Leeds Building Services,Supplies and Services,Operational Materials,205,10/05/2019,1905-00554,0.00,44.80,R,Air Conditioning Accessories,No
Http://opendatacommunities.org/id/metropolitan-district-council/leeds,Leeds City Council,31/05/2019,Resources and Housing,Leeds Building Services,Supplies and Services,Operational Furniture and Equipment,203,16/05/2019,1905-00555,0.00,27.30,R,Air Conditioning Accessories,No
Http://opendatacommunities.org/id/metropolitan-district-council/leeds,Leeds City Council,31/05/2019,Resources and Housing,Leeds Building Services,Supplies and Services,Operational Materials,205,16/05/2019,1905-00556,0.00,90.65,R,Air Conditioning Accessories,No
Http://opendatacommunities.org/id/metropolitan-district-council/leeds,Leeds City Council,31/05/2019,Resources and Housing,Leeds Building Services,Supplies and Services,Operational Materials,205,24/05/2019,1905-00557,0.00,201.12,R,Air Conditioning Accessories,No
Http://opendatacommunities.org/id/metropolitan-district-council/leeds,Leeds City Council,31/05/2019,Resources and Housing,Leeds Building Services,Supplies and Services,Operational Materials,205,01/05/2019,1905-00558,0.00,238.80,R,Air Liquide Uk,No
Http://opendatacommunities.org/id/metropolitan-district-council/leeds,Leeds City Council,31/05/2019,Communities and Environment,Environmental Health,Supplies and Services,Other Hired and Contracted Services,265,01/05/2019,1905-00559,0.00,10.45,R,Air Liquide Uk,No
Http://opendatacommunities.org/id/metropolitan-district-council/leeds,Leeds City Council,31/05/2019,Communities and Environment,Environmental Health,Supplies and Services,Other Hired and Contracted Services,265,01/05/2019,1905-00560,0.00,10.45,R,Air Liquide Uk,No
Http://opendatacommunities.org/id/metropolitan-district-council/leeds,Leeds City Council,31/05/2019,Communities and Environment,Environmental Health,Supplies and Services,Other Hired and Contracted Services,265,01/05/2019,1905-00561,0.00,15.93,R,Air Liquide Uk,No
Http://opendatacommunities.org/id/metropolitan-district-council/leeds,Leeds City Council,31/05/2019,Communities and Environment,Environmental Health,Supplies and Services,Other Hired and Contracted Services,265,01/05/2019,1905-00562,0.00,83.60,R,Air Liquide Uk,No
Http://opendatacommunities.org/id/metropolitan-district-council/leeds,Leeds City Council,31/05/2019,Communities and Environment,Environmental Health,Supplies and Services,Other Hired and Contracted Services,265,17/05/2019,1905-00563,0.00,542.87,R,Air Liquide Uk,No
Http://opendatacommunities.org/id/metropolitan-district-council/leeds,Leeds City Council,31/05/2019,Communities and Environment,Environmental Health,Supplies and Services,Other Hired and Contracted Services,265,17/05/2019,1905-00564,0.00,542.87,R,Air Liquide Uk,No
Http://opendatacommunities.org/id/metropolitan-district-council/leeds,Leeds City Council,31/05/2019,Communities and Environment,Environmental Health,Supplies and Services,Other Hired and Contracted Services,265,31/05/2019,1905-00565,0.00,10.45,R,Air Liquide Uk,No
Http://opendatacommunities.org/id/metropolitan-district-council/leeds,Leeds City Council,31/05/2019,Communities and Environment,Environmental Health,Supplies and Services,Other Hired and Contracted Services,265,31/05/2019,1905-00566,0.00,15.93,R,Air Liquide Uk,No
Http://opendatacommunities.org/id/metropolitan-district-council/leeds,Leeds City Council,31/05/2019,Communities and Environment,Environmental Health,Supplies and Services,Other Hired and Contracted Services,265,31/05/2019,1905-00567,0.00,83.60,R,Air Liquide Uk,No
Http://opendatacommunities.org/id/metropolitan-district-council/leeds,Leeds City Council,31/05/2019,Children and Families,Social Care  ,Third Party Payments,Placement Support,550,08/04/2019,1905-00568,0.00,433.79,R,Airbnb,Yes
Http://opendatacommunities.org/id/metropolitan-district-council/leeds,Leeds City Council,31/05/2019,Children and Families,Social Care  ,Supplies and Services,General Amenity For Clients/Residents,285,29/03/2019,1905-00569,0.00,271.12,R,Airbnb * Hmacbbmp2e,Yes
Http://opendatacommunities.org/id/metropolitan-district-council/leeds,Leeds City Council,31/05/2019,Communities and Environment,Parks and Countryside,Supplies and Services,Operational Materials,205,03/05/2019,1905-00570,0.00,29024.00,R,Aire Valley Tree Services Ltd,No
Http://opendatacommunities.org/id/metropolitan-district-council/leeds,Leeds City Council,31/05/2019,City Development,Markets & City Centre Management,Supplies and Services,City Centre Enhancement,295,03/05/2019,1905-00571,0.00,900.00,R,Aire Valley Tree Services Ltd,No
Http://opendatacommunities.org/id/metropolitan-district-council/leeds,Leeds City Council,31/05/2019,Communities and Environment,Parks and Countryside,Supplies and Services,Other Hired and Contracted Services,265,16/05/2019,1905-00572,0.00,1575.00,R,Aire Valley Tree Services Ltd,No
Http://opendatacommunities.org/id/metropolitan-district-council/leeds,Leeds City Council,31/05/2019,Communities and Environment,Parks and Countryside,Supplies and Services,Other Hired and Contracted Services,265,16/05/2019,1905-00573,0.00,700.00,R,Aire Valley Tree Services Ltd,No
Http://opendatacommunities.org/id/metropolitan-district-council/leeds,Leeds City Council,31/05/2019,Communities and Environment,Parks and Countryside,Supplies and Services,Other Hired and Contracted Services,265,16/05/2019,1905-00574,0.00,2845.00,R,Aire Valley Tree Services Ltd,No
Http://opendatacommunities.org/id/metropolitan-district-council/leeds,Leeds City Council,31/05/2019,Communities and Environment,Parks and Countryside,Supplies and Services,Other Hired and Contracted Services,265,17/05/2019,1905-00575,0.00,450.00,R,Aire Valley Tree Services Ltd,No
Http://opendatacommunities.org/id/metropolitan-district-council/leeds,Leeds City Council,31/05/2019,Communities and Environment,Parks and Countryside,Supplies and Services,Other Hired and Contracted Services,265,17/05/2019,1905-00576,0.00,580.00,R,Aire Valley Tree Services Ltd,No
Http://opendatacommunities.org/id/metropolitan-district-council/leeds,Leeds City Council,31/05/2019,City Development,Markets & City Centre Management,Supplies and Services,City Centre Enhancement,295,31/05/2019,1905-00577,0.00,1800.00,R,Aire Valley Tree Services Ltd,No
Http://opendatacommunities.org/id/metropolitan-district-council/leeds,Leeds City Council,31/05/2019,Communities and Environment,Parks and Countryside,Supplies and Services,Other Hired and Contracted Services,265,31/05/2019,1905-00578,0.00,175.00,R,Aire Valley Tree Services Ltd,No
Http://opendatacommunities.org/id/metropolitan-district-council/leeds,Leeds City Council,31/05/2019,Adults and Health,Services For Older People - 65 and Over,Third Party Payments,Residential Care Dementia,571,01/05/2019,1905-00579,0.00,62133.80,R,Aire View Residential Home,No
Http://opendatacommunities.org/id/metropolitan-district-council/leeds,Leeds City Council,31/05/2019,Adults and Health,Services For Older People - 65 and Over,Third Party Payments,Residential,580,01/05/2019,1905-00580,0.00,13021.27,R,Aire View Residential Home,No
Http://opendatacommunities.org/id/metropolitan-district-council/leeds,Leeds City Council,31/05/2019,Adults and Health,Services For Older People - 65 and Over,Third Party Payments,Residential Care Dementia,571,29/05/2019,1905-00581,0.00,51178.50,R,Aire View Residential Home,No
Http://opendatacommunities.org/id/metropolitan-district-council/leeds,Leeds City Council,31/05/2019,Adults and Health,Services For Older People - 65 and Over,Third Party Payments,Residential,580,29/05/2019,1905-00582,0.00,9465.99,R,Aire View Residential Home,No
Http://opendatacommunities.org/id/metropolitan-district-council/leeds,Leeds City Council,31/05/2019,Adults and Health,Public Health,Third Party Payments,Public Health Commissioned Services,526,28/05/2019,1905-00583,0.00,1185.00,R,Aireborough Family Practice,No
Http://opendatacommunities.org/id/metropolitan-district-council/leeds,Leeds City Council,31/05/2019,Adults and Health,Services For Older People - 65 and Over,Third Party Payments,Residential Care Dementia,571,01/05/2019,1905-00584,0.00,1399.16,R,Airedale Care Home,No
Http://opendatacommunities.org/id/metropolitan-district-council/leeds,Leeds City Council,31/05/2019,Adults and Health,Services For Older People - 65 and Over,Third Party Payments,Residential,580,01/05/2019,1905-00585,0.00,16150.12,R,Airedale Care Home,No
Http://opendatacommunities.org/id/metropolitan-district-council/leeds,Leeds City Council,31/05/2019,Adults and Health,Services For Older People Under 65 P/Dis,Third Party Payments,Residential,580,01/05/2019,1905-00586,0.00,2998.80,R,Airedale Care Home,No
Http://opendatacommunities.org/id/metropolitan-district-council/leeds,Leeds City Council,31/05/2019,Adults and Health,Services For Older People - 65 and Over,Third Party Payments,Residential Care Dementia,571,29/05/2019,1905-00587,0.00,8273.65,R,Airedale Care Home,No
Http://opendatacommunities.org/id/metropolitan-district-council/leeds,Leeds City Council,31/05/2019,Adults and Health,Services For Older People - 65 and Over,Third Party Payments,Residential,580,29/05/2019,1905-00588,0.00,17786.94,R,Airedale Care Home,No
Http://opendatacommunities.org/id/metropolitan-district-council/leeds,Leeds City Council,31/05/2019,Resources and Housing,Commercial Services,Premises,Fixtures & Fittings,131,02/05/2019,1905-00589,0.00,6315.00,R,Airedale Catering Equipment Ltd,No
Http://opendatacommunities.org/id/metropolitan-district-council/leeds,Leeds City Council,31/05/2019,Resources and Housing,Commercial Services,Supplies and Services,Operational Furniture and Equipment,203,03/05/2019,1905-00590,0.00,1787.00,R,Airedale Catering Equipment Ltd,No
Http://opendatacommunities.org/id/metropolitan-district-council/leeds,Leeds City Council,31/05/2019,Resources and Housing,Leeds Building Services,Supplies and Services,Other Hired and Contracted Services,265,10/05/2019,1905-00591,0.00,2272.00,R,Airedale Catering Equipment Ltd,No
Http://opendatacommunities.org/id/metropolitan-district-council/leeds,Leeds City Council,31/05/2019,Adults and Health,Assessment and Care Management,Employees,Training Costs,71,02/05/2019,1905-00592,0.00,120.00,R,Airedale Community Trading (Act) Ltd,No
Http://opendatacommunities.org/id/metropolitan-district-council/leeds,Leeds City Council,31/05/2019,Adults and Health,Assessment and Care Management,Employees,Training Costs,71,31/05/2019,1905-00593,0.00,120.00,R,Airedale Community Trading (Act) Ltd,No
Http://opendatacommunities.org/id/metropolitan-district-council/leeds,Leeds City Council,31/05/2019,City Development,Libraries  Arts & Heritage,Supplies and Services,Other Hired and Contracted Services,265,15/05/2019,1905-00594,0.00,6369.94,R,Air-Edel Associates Ltd,No
Http://opendatacommunities.org/id/metropolitan-district-council/leeds,Leeds City Council,31/05/2019,City Development,Libraries  Arts & Heritage,Supplies and Services,Other Hired and Contracted Services,265,29/05/2019,1905-00595,0.00,2347.88,R,Air-Edel Associates Ltd,No
Http://opendatacommunities.org/id/metropolitan-district-council/leeds,Leeds City Council,31/05/2019,Communities and Environment,Community Safety,Supplies and Services,Bought In Professional Services,277,09/05/2019,1905-00596,0.00,860.24,R,Airwave Solutions Ltd,No
Http://opendatacommunities.org/id/metropolitan-district-council/leeds,Leeds City Council,31/05/2019,Resources and Housing,Commercial Services,Supplies and Services,Other Hired and Contracted Services,265,01/05/2019,1905-00597,0.00,195.00,R,Air-Weigh Europe Limited,No
Http://opendatacommunities.org/id/metropolitan-district-council/leeds,Leeds City Council,31/05/2019,Adults and Health,Services For Adults Under 65 Mental/Dis,Third Party Payments,Fees - Level 4,520,09/05/2019,1905-00598,0.00,243.80,R,Ait Mitra Limited,No
Http://opendatacommunities.org/id/metropolitan-district-council/leeds,Leeds City Council,31/05/2019,Adults and Health,Services For Adults Under 65 Mental/Dis,Third Party Payments,Fees - Level 4,520,09/05/2019,1905-00599,0.00,175.00,R,Ait Mitra Limited,No
Http://opendatacommunities.org/id/metropolitan-district-council/leeds,Leeds City Council,31/05/2019,Adults and Health,Services For Adults Under 65 Mental/Dis,Third Party Payments,Fees - Level 4,520,09/05/2019,1905-00600,0.00,175.00,R,Ait Mitra Limited,No
Http://opendatacommunities.org/id/metropolitan-district-council/leeds,Leeds City Council,31/05/2019,Adults and Health,Services For Adults Under 65 Mental/Dis,Third Party Payments,Fees - Level 4,520,09/05/2019,1905-00601,0.00,175.00,R,Ait Mitra Limited,No
Http://opendatacommunities.org/id/metropolitan-district-council/leeds,Leeds City Council,31/05/2019,Adults and Health,Services For Adults Under 65 Mental/Dis,Third Party Payments,Fees - Level 4,520,09/05/2019,1905-00602,0.00,175.00,R,Ait Mitra Limited,No
Http://opendatacommunities.org/id/metropolitan-district-council/leeds,Leeds City Council,31/05/2019,Adults and Health,Services For Adults Under 65 Mental/Dis,Third Party Payments,Fees - Level 4,520,09/05/2019,1905-00603,0.00,175.00,R,Ait Mitra Limited,No
Http://opendatacommunities.org/id/metropolitan-district-council/leeds,Leeds City Council,31/05/2019,Adults and Health,Services For Adults Under 65 Mental/Dis,Third Party Payments,Fees - Level 4,520,09/05/2019,1905-00604,0.00,175.00,R,Ait Mitra Limited,No
Http://opendatacommunities.org/id/metropolitan-district-council/leeds,Leeds City Council,31/05/2019,Adults and Health,Services For Adults Under 65 Mental/Dis,Third Party Payments,Fees - Level 4,520,09/05/2019,1905-00605,0.00,175.00,R,Ait Mitra Limited,No
Http://opendatacommunities.org/id/metropolitan-district-council/leeds,Leeds City Council,31/05/2019,Adults and Health,Services For Adults Under 65 Mental/Dis,Third Party Payments,Fees - Level 4,520,09/05/2019,1905-00606,0.00,175.00,R,Ait Mitra Limited,No
Http://opendatacommunities.org/id/metropolitan-district-council/leeds,Leeds City Council,31/05/2019,Adults and Health,Services For Adults Under 65 Mental/Dis,Third Party Payments,Fees - Level 4,520,09/05/2019,1905-00607,0.00,175.00,R,Ait Mitra Limited,No
Http://opendatacommunities.org/id/metropolitan-district-council/leeds,Leeds City Council as Accountable Body,31/05/2019,Social Services Pooled Budgets,Jcs For People With Learning Disabilitie,Third Party Payments,Residential,580,01/05/2019,1905-00608,0.00,6173.24,R,Aitch Care Homes,No
Http://opendatacommunities.org/id/metropolitan-district-council/leeds,Leeds City Council as Accountable Body,31/05/2019,Social Services Pooled Budgets,Jcs For People With Learning Disabilitie,Third Party Payments,Residential,580,29/05/2019,1905-00609,0.00,5919.14,R,Aitch Care Homes,No
Http://opendatacommunities.org/id/metropolitan-district-council/leeds,Leeds City Council,31/05/2019,Communities and Environment,Parks and Countryside,Supplies and Services,Operational Materials,205,08/05/2019,1905-00610,0.00,2112.00,R,Aitkens Sportsturf Ltd,No
Http://opendatacommunities.org/id/metropolitan-district-council/leeds,Leeds City Council,31/05/2019,Resources and Housing,Human Resources,Employees,Occupational Health,85,15/05/2019,1905-00611,0.00,67.00,R,Ajm Duvenage,No
Http://opendatacommunities.org/id/metropolitan-district-council/leeds,Leeds City Council,31/05/2019,Resources and Housing,Leeds Building Services,Supplies and Services,Operational Furniture and Equipment,203,01/05/2019,1905-00612,0.00,384.42,R,Ajm Fixings & Power Tools Ltd,No
Http://opendatacommunities.org/id/metropolitan-district-council/leeds,Leeds City Council,31/05/2019,Resources and Housing,Leeds Building Services,Supplies and Services,Operational Furniture and Equipment,203,03/05/2019,1905-00613,0.00,1310.64,R,Ajm Fixings & Power Tools Ltd,No
Http://opendatacommunities.org/id/metropolitan-district-council/leeds,Leeds City Council,31/05/2019,Resources and Housing,Leeds Building Services,Supplies and Services,Operational Furniture and Equipment,203,03/05/2019,1905-00614,0.00,98.80,R,Ajm Fixings & Power Tools Ltd,No
Http://opendatacommunities.org/id/metropolitan-district-council/leeds,Leeds City Council,31/05/2019,Resources and Housing,Leeds Building Services,Supplies and Services,Operational Furniture and Equipment,203,09/05/2019,1905-00615,0.00,59.95,R,Ajm Fixings & Power Tools Ltd,No
Http://opendatacommunities.org/id/metropolitan-district-council/leeds,Leeds City Council,31/05/2019,Resources and Housing,Leeds Building Services,Supplies and Services,Operational Furniture and Equipment,203,10/05/2019,1905-00616,0.00,204.58,R,Ajm Fixings & Power Tools Ltd,No
Http://opendatacommunities.org/id/metropolitan-district-council/leeds,Leeds City Council,31/05/2019,Resources and Housing,Leeds Building Services,Supplies and Services,Stores - Central and Other Depots,5,10/05/2019,1905-00617,0.00,741.48,R,Ajm Fixings & Power Tools Ltd,No
Http://opendatacommunities.org/id/metropolitan-district-council/leeds,Leeds City Council,31/05/2019,Resources and Housing,Leeds Building Services,Supplies and Services,Operational Furniture and Equipment,203,10/05/2019,1905-00618,0.00,499.00,R,Ajm Fixings & Power Tools Ltd,No
Http://opendatacommunities.org/id/metropolitan-district-council/leeds,Leeds City Council,31/05/2019,Resources and Housing,Leeds Building Services,Supplies and Services,Clothing & Uniforms,241,10/05/2019,1905-00619,0.00,234.00,R,Ajm Fixings & Power Tools Ltd,No
Http://opendatacommunities.org/id/metropolitan-district-council/leeds,Leeds City Council,31/05/2019,Resources and Housing,Leeds Building Services,Supplies and Services,Operational Furniture and Equipment,203,10/05/2019,1905-00620,0.00,212.00,R,Ajm Fixings & Power Tools Ltd,No
Http://opendatacommunities.org/id/metropolitan-district-council/leeds,Leeds City Council,31/05/2019,Resources and Housing,Leeds Building Services,Supplies and Services,Stores - Central and Other Depots,5,13/05/2019,1905-00621,0.00,380.24,R,Ajm Fixings & Power Tools Ltd,No
Http://opendatacommunities.org/id/metropolitan-district-council/leeds,Leeds City Council,31/05/2019,Resources and Housing,Leeds Building Services,Supplies and Services,Operational Furniture and Equipment,203,15/05/2019,1905-00622,0.00,59.98,R,Ajm Fixings & Power Tools Ltd,No
Http://opendatacommunities.org/id/metropolitan-district-council/leeds,Leeds City Council,31/05/2019,Resources and Housing,Leeds Building Services,Supplies and Services,Operational Furniture and Equipment,203,15/05/2019,1905-00623,0.00,106.90,R,Ajm Fixings & Power Tools Ltd,No
Http://opendatacommunities.org/id/metropolitan-district-council/leeds,Leeds City Council,31/05/2019,Resources and Housing,Leeds Building Services,Supplies and Services,Operational Furniture and Equipment,203,15/05/2019,1905-00624,0.00,2735.27,R,Ajm Fixings & Power Tools Ltd,No
Http://opendatacommunities.org/id/metropolitan-district-council/leeds,Leeds City Council,31/05/2019,Resources and Housing,Leeds Building Services,Supplies and Services,Operational Furniture and Equipment,203,16/05/2019,1905-00625,0.00,499.00,R,Ajm Fixings & Power Tools Ltd,No
Http://opendatacommunities.org/id/metropolitan-district-council/leeds,Leeds City Council,31/05/2019,Resources and Housing,Leeds Building Services,Supplies and Services,Operational Materials,205,16/05/2019,1905-00626,0.00,80.00,R,Ajm Fixings & Power Tools Ltd,No
Http://opendatacommunities.org/id/metropolitan-district-council/leeds,Leeds City Council,31/05/2019,Resources and Housing,Leeds Building Services,Supplies and Services,Operational Furniture and Equipment,203,16/05/2019,1905-00627,0.00,15.31,R,Ajm Fixings & Power Tools Ltd,No
Http://opendatacommunities.org/id/metropolitan-district-council/leeds,Leeds City Council,31/05/2019,Resources and Housing,Leeds Building Services,Supplies and Services,Operational Furniture and Equipment,203,20/05/2019,1905-00628,0.00,645.32,R,Ajm Fixings & Power Tools Ltd,No
Http://opendatacommunities.org/id/metropolitan-district-council/leeds,Leeds City Council,31/05/2019,Resources and Housing,Leeds Building Services,Supplies and Services,Operational Furniture and Equipment,203,20/05/2019,1905-00629,0.00,682.86,R,Ajm Fixings & Power Tools Ltd,No
Http://opendatacommunities.org/id/metropolitan-district-council/leeds,Leeds City Council,31/05/2019,Resources and Housing,Leeds Building Services,Supplies and Services,Operational Materials,205,23/05/2019,1905-00630,0.00,1005.00,R,Ajm Fixings & Power Tools Ltd,No
Http://opendatacommunities.org/id/metropolitan-district-council/leeds,Leeds City Council,31/05/2019,Resources and Housing,Leeds Building Services,Supplies and Services,Operational Furniture and Equipment,203,23/05/2019,1905-00631,0.00,499.00,R,Ajm Fixings & Power Tools Ltd,No
Http://opendatacommunities.org/id/metropolitan-district-council/leeds,Leeds City Council,31/05/2019,Resources and Housing,Leeds Building Services,Supplies and Services,Operational Furniture and Equipment,203,23/05/2019,1905-00632,0.00,835.54,R,Ajm Fixings & Power Tools Ltd,No
Http://opendatacommunities.org/id/metropolitan-district-council/leeds,Leeds City Council,31/05/2019,Resources and Housing,Leeds Building Services,Supplies and Services,Stores - Central and Other Depots,5,23/05/2019,1905-00633,0.00,568.48,R,Ajm Fixings & Power Tools Ltd,No
Http://opendatacommunities.org/id/metropolitan-district-council/leeds,Leeds City Council,31/05/2019,Resources and Housing,Leeds Building Services,Supplies and Services,Stores - Central and Other Depots,5,23/05/2019,1905-00634,0.00,180.90,R,Ajm Fixings & Power Tools Ltd,No
Http://opendatacommunities.org/id/metropolitan-district-council/leeds,Leeds City Council,31/05/2019,Resources and Housing,Leeds Building Services,Supplies and Services,Operational Materials,205,29/05/2019,1905-00635,0.00,325.00,R,Ajm Fixings & Power Tools Ltd,No
Http://opendatacommunities.org/id/metropolitan-district-council/leeds,Leeds City Council,31/05/2019,Resources and Housing,Leeds Building Services,Supplies and Services,Operational Furniture and Equipment,203,29/05/2019,1905-00636,0.00,351.50,R,Ajm Fixings & Power Tools Ltd,No
Http://opendatacommunities.org/id/metropolitan-district-council/leeds,Leeds City Council,31/05/2019,Resources and Housing,Leeds Building Services,Supplies and Services,Operational Materials,205,29/05/2019,1905-00637,0.00,80.00,R,Ajm Fixings & Power Tools Ltd,No
Http://opendatacommunities.org/id/metropolitan-district-council/leeds,Leeds City Council,31/05/2019,Resources and Housing,Leeds Building Services,Supplies and Services,Operational Furniture and Equipment,203,29/05/2019,1905-00638,0.00,1628.76,R,Ajm Fixings & Power Tools Ltd,No
Http://opendatacommunities.org/id/metropolitan-district-council/leeds,Leeds City Council,31/05/2019,Resources and Housing,Leeds Building Services,Supplies and Services,Operational Materials,205,29/05/2019,1905-00639,0.00,26.84,R,Ajm Fixings & Power Tools Ltd,No
Http://opendatacommunities.org/id/metropolitan-district-council/leeds,Leeds City Council,31/05/2019,Resources and Housing,Leeds Building Services,Supplies and Services,Operational Furniture and Equipment,203,29/05/2019,1905-00640,0.00,472.00,R,Ajm Fixings & Power Tools Ltd,No
Http://opendatacommunities.org/id/metropolitan-district-council/leeds,Leeds City Council,31/05/2019,Resources and Housing,Leeds Building Services,Supplies and Services,Stores - Central and Other Depots,5,31/05/2019,1905-00641,0.00,95.40,R,Ajm Fixings & Power Tools Ltd,No
Http://opendatacommunities.org/id/metropolitan-district-council/leeds,Leeds City Council,31/05/2019,Adults and Health,Social Services Support Services,Employees,Training & Development,70,13/05/2019,1905-00642,0.00,7500.00,R,Akd Solutions Ltd,No
Http://opendatacommunities.org/id/metropolitan-district-council/leeds,Leeds City Council,31/05/2019,Resources and Housing,Commercial Services,Supplies and Services,Operational Materials,205,13/05/2019,1905-00643,0.00,408.09,R,Akua Uk Ltd,No
Http://opendatacommunities.org/id/metropolitan-district-council/leeds,Leeds City Council,31/05/2019,Resources and Housing,Commercial Services,Supplies and Services,Operational Materials,205,24/05/2019,1905-00644,0.00,408.09,R,Akua Uk Ltd,No
Http://opendatacommunities.org/id/metropolitan-district-council/leeds,Leeds City Council,31/05/2019,Resources and Housing,Commercial Services,Supplies and Services,Operational Materials,205,24/05/2019,1905-00645,0.00,727.10,R,Akua Uk Ltd,No
Http://opendatacommunities.org/id/metropolitan-district-council/leeds,Leeds City Council,31/05/2019,Resources and Housing,Commercial Services,Supplies and Services,Operational Materials,205,24/05/2019,1905-00646,0.00,348.99,R,Akua Uk Ltd,No
Http://opendatacommunities.org/id/metropolitan-district-council/leeds,Leeds City Council,31/05/2019,Strategic Accounts,Miscellaneous,Supplies and Services,Non-Recurring Grants,227,20/05/2019,1905-00647,0.00,400.00,R,Al Madina Jam-E Masjid,No
Http://opendatacommunities.org/id/metropolitan-district-council/leeds,Leeds City Council,31/05/2019,Children and Families,Social Care  ,Transfer Payments,Leaving Care Grants,635,02/04/2019,1905-00648,0.00,42.97,R,Al Murad,Yes
Http://opendatacommunities.org/id/metropolitan-district-council/leeds,Leeds City Council,31/05/2019,Resources and Housing,Human Resources  ,Supplies and Services,Conference Meetings,253,16/04/2019,1905-00649,0.00,70.00,R,Alan Brown Flowers,Yes
Http://opendatacommunities.org/id/metropolitan-district-council/leeds,Leeds City Council,31/05/2019,Resources and Housing,Human Resources  ,Supplies and Services,Conference Meetings,253,17/04/2019,1905-00650,0.00,35.00,R,Alan Brown Flowers,Yes
Http://opendatacommunities.org/id/metropolitan-district-council/leeds,Leeds City Council,31/05/2019,Adults and Health,Other Adult Services  ,Supplies and Services,Office Consumables,210,25/04/2019,1905-00651,0.00,25.00,R,Alan Brown Flowers,Yes
Http://opendatacommunities.org/id/metropolitan-district-council/leeds,Leeds City Council,31/05/2019,City Development,Libraries  Arts & Heritage,Supplies and Services,Bought In Professional Services,277,21/05/2019,1905-00652,0.00,500.00,R,Alan Lewis,No
Http://opendatacommunities.org/id/metropolitan-district-council/leeds,Leeds City Council,31/05/2019,Children and Families,Social Care,Third Party Payments,Services Rendered By Other Organisations,511,03/05/2019,1905-00653,0.00,838.50,R,REDACTED PERSONAL DATA,No
Http://opendatacommunities.org/id/metropolitan-district-council/leeds,Leeds City Council,31/05/2019,Adults and Health,Services For Older People - 65 and Over,Third Party Payments,Residential Care Dementia,571,01/05/2019,1905-00654,0.00,1205.52,R,Albemarle,No
Http://opendatacommunities.org/id/metropolitan-district-council/leeds,Leeds City Council,31/05/2019,Adults and Health,Services For Older People - 65 and Over,Third Party Payments,Residential Care Dementia,571,29/05/2019,1905-00655,0.00,1144.20,R,Albemarle,No
Http://opendatacommunities.org/id/metropolitan-district-council/leeds,Leeds City Council,31/05/2019,Resources and Housing,Commercial Services,Transport,Vehicle Spares,345,23/05/2019,1905-00656,0.00,102.67,R,Albert Jagger Limited,No
Http://opendatacommunities.org/id/metropolitan-district-council/leeds,Leeds City Council,31/05/2019,Communities and Environment,Communities,Supplies and Services,Computer Software & Equipment,214,31/05/2019,1905-00657,0.00,1075.00,R,Alcium Software Ltd,No
Http://opendatacommunities.org/id/metropolitan-district-council/leeds,Leeds City Council,31/05/2019,Communities and Environment,Customer Access  ,Supplies and Services,Office Furniture & Equipment,201,08/04/2019,1905-00658,0.00,7.90,R,Aldi,Yes
Http://opendatacommunities.org/id/metropolitan-district-council/leeds,Leeds City Council,31/05/2019,Children and Families,Social Care  ,Supplies and Services,Food & Drink,231,29/03/2019,1905-00659,0.00,16.58,R,Aldi 40 779,Yes
Http://opendatacommunities.org/id/metropolitan-district-council/leeds,Leeds City Council,31/05/2019,Children and Families,Social Care  ,Supplies and Services,General Amenity For Clients/Residents,285,29/03/2019,1905-00660,0.00,8.10,R,Aldi 40 779,Yes
Http://opendatacommunities.org/id/metropolitan-district-council/leeds,Leeds City Council,31/05/2019,Children and Families,Social Care  ,Supplies and Services,Food & Drink,231,30/03/2019,1905-00661,0.00,59.17,R,Aldi 40 779,Yes
Http://opendatacommunities.org/id/metropolitan-district-council/leeds,Leeds City Council,31/05/2019,Children and Families,Social Care  ,Supplies and Services,Food & Drink,231,04/04/2019,1905-00662,0.00,48.72,R,Aldi 40 779,Yes
Http://opendatacommunities.org/id/metropolitan-district-council/leeds,Leeds City Council,31/05/2019,Children and Families,Social Care  ,Supplies and Services,Food & Drink,231,06/04/2019,1905-00663,0.00,38.31,R,Aldi 40 779,Yes
Http://opendatacommunities.org/id/metropolitan-district-council/leeds,Leeds City Council,31/05/2019,Children and Families,Social Care  ,Supplies and Services,Food & Drink,231,27/04/2019,1905-00664,0.00,36.34,R,Aldi 40 779,Yes
Http://opendatacommunities.org/id/metropolitan-district-council/leeds,Leeds City Council,31/05/2019,Children and Families,Social Care  ,Supplies and Services,Advertising,211,04/04/2019,1905-00665,0.00,10.60,R,Aldi 49 779,Yes
Http://opendatacommunities.org/id/metropolitan-district-council/leeds,Leeds City Council,31/05/2019,Children and Families,Social Care  ,Supplies and Services,Food & Drink,231,15/04/2019,1905-00666,0.00,129.75,R,Aldi 49 779,Yes
Http://opendatacommunities.org/id/metropolitan-district-council/leeds,Leeds City Council,31/05/2019,Communities and Environment,Communities  ,Supplies and Services,Food & Drink,231,17/04/2019,1905-00667,0.00,1.23,R,Aldi 71 779,Yes
Http://opendatacommunities.org/id/metropolitan-district-council/leeds,Leeds City Council,31/05/2019,Children and Families,Social Care  ,Transfer Payments,Leaving Care Allowances,634,17/04/2019,1905-00668,0.00,34.93,R,Aldi 71 779,Yes
Http://opendatacommunities.org/id/metropolitan-district-council/leeds,Leeds City Council,31/05/2019,Communities and Environment,Customer Access  ,Supplies and Services,Office Consumables,210,12/04/2019,1905-00669,0.00,7.75,R,Aldi 779-90,Yes
Http://opendatacommunities.org/id/metropolitan-district-council/leeds,Leeds City Council,31/05/2019,Children and Families,Social Care  ,Supplies and Services,Teaching Materials,202,09/04/2019,1905-00670,0.00,8.33,R,Aldi 88 779,Yes
Http://opendatacommunities.org/id/metropolitan-district-council/leeds,Leeds City Council,31/05/2019,Children and Families,Social Care  ,Supplies and Services,Teaching Materials,202,10/04/2019,1905-00671,0.00,8.33,R,Aldi 88 779,Yes
Http://opendatacommunities.org/id/metropolitan-district-council/leeds,Leeds City Council,31/05/2019,Children and Families,Social Care,Support Services,Legal Disbursements,411,03/05/2019,1905-00672,0.00,77.75,R,Alere Toxicology Plc,No
Http://opendatacommunities.org/id/metropolitan-district-council/leeds,Leeds City Council,31/05/2019,Children and Families,Social Care,Support Services,Legal Disbursements,411,03/05/2019,1905-00673,0.00,131.75,R,Alere Toxicology Plc,No
Http://opendatacommunities.org/id/metropolitan-district-council/leeds,Leeds City Council,31/05/2019,Children and Families,Social Care,Support Services,Legal Disbursements,411,31/05/2019,1905-00674,0.00,77.75,R,Alere Toxicology Plc,No
Http://opendatacommunities.org/id/metropolitan-district-council/leeds,Leeds City Council,31/05/2019,Resources and Housing,Commercial Services,Transport,Vehicle Spares,345,16/05/2019,1905-00675,0.00,380.00,R,Alex Wagg,No
Http://opendatacommunities.org/id/metropolitan-district-council/leeds,Leeds City Council,31/05/2019,Resources and Housing,Commercial Services,Transport,Vehicle Spares,345,16/05/2019,1905-00676,0.00,385.00,R,Alex Wagg,No
Http://opendatacommunities.org/id/metropolitan-district-council/leeds,Leeds City Council,31/05/2019,Resources and Housing,Commercial Services,Supplies and Services,Other Hired and Contracted Services,265,24/05/2019,1905-00677,0.00,80.00,R,Alex Wagg,No
Http://opendatacommunities.org/id/metropolitan-district-council/leeds,Leeds City Council,31/05/2019,Resources and Housing,Commercial Services,Supplies and Services,Other Hired and Contracted Services,265,24/05/2019,1905-00678,0.00,180.00,R,Alex Wagg,No
Http://opendatacommunities.org/id/metropolitan-district-council/leeds,Leeds City Council,31/05/2019,Resources and Housing,Commercial Services,Supplies and Services,Other Hired and Contracted Services,265,24/05/2019,1905-00679,0.00,420.00,R,Alex Wagg,No
Http://opendatacommunities.org/id/metropolitan-district-council/leeds,Leeds City Council,31/05/2019,Resources and Housing,Commercial Services,Supplies and Services,Other Hired and Contracted Services,265,31/05/2019,1905-00680,0.00,160.00,R,Alex Wagg,No
Http://opendatacommunities.org/id/metropolitan-district-council/leeds,Leeds City Council,31/05/2019,Adults and Health,Services For Older People - 65 and Over,Third Party Payments,Residential Care Dementia,571,01/05/2019,1905-00681,0.00,23169.52,R,Alexander Residential Home,No
Http://opendatacommunities.org/id/metropolitan-district-council/leeds,Leeds City Council,31/05/2019,Adults and Health,Services For Older People - 65 and Over,Third Party Payments,Residential,580,01/05/2019,1905-00682,0.00,16348.16,R,Alexander Residential Home,No
Http://opendatacommunities.org/id/metropolitan-district-council/leeds,Leeds City Council,31/05/2019,Adults and Health,Services For Older People - 65 and Over,Third Party Payments,Residential Care Dementia,571,29/05/2019,1905-00683,0.00,23169.52,R,Alexander Residential Home,No
Http://opendatacommunities.org/id/metropolitan-district-council/leeds,Leeds City Council,31/05/2019,Adults and Health,Services For Older People - 65 and Over,Third Party Payments,Residential,580,29/05/2019,1905-00684,0.00,16348.16,R,Alexander Residential Home,No
Http://opendatacommunities.org/id/metropolitan-district-council/leeds,Leeds City Council,31/05/2019,Children and Families,Social Care,Transport,Public Transport Expenses,310,23/05/2019,1905-00685,0.00,9.60,R,REDACTED PERSONAL DATA,No
Http://opendatacommunities.org/id/metropolitan-district-council/leeds,Leeds City Council,31/05/2019,Adults and Health,Services For Older People - 65 and Over,Third Party Payments,Residential,580,01/05/2019,1905-00686,0.00,8220.44,R,Alexandra Court,No
Http://opendatacommunities.org/id/metropolitan-district-council/leeds,Leeds City Council,31/05/2019,Adults and Health,Services For Older People - 65 and Over,Third Party Payments,Residential,580,29/05/2019,1905-00687,0.00,6191.66,R,Alexandra Court,No
Http://opendatacommunities.org/id/metropolitan-district-council/leeds,Leeds City Council,31/05/2019,Children and Families,Social Care,Third Party Payments,Services Rendered By Voluntary Sector,505,01/05/2019,1905-00688,0.00,2394.74,R,REDACTED PERSONAL DATA,No
Http://opendatacommunities.org/id/metropolitan-district-council/leeds,Leeds City Council,31/05/2019,Resources and Housing,Leeds Building Services,Supplies and Services,Other Hired and Contracted Services,265,02/05/2019,1905-00689,0.00,14764.20,R,Alfred Bagnall & Sons (Leeds) Ltd,No
Http://opendatacommunities.org/id/metropolitan-district-council/leeds,Leeds City Council,31/05/2019,Communities and Environment,Parks and Countryside,Supplies and Services,Other Hired and Contracted Services,265,02/05/2019,1905-00690,0.00,4133.00,R,Alfred Bagnall & Sons (Leeds) Ltd,No
Http://opendatacommunities.org/id/metropolitan-district-council/leeds,Leeds City Council,31/05/2019,City Development,Libraries  Arts & Heritage,Supplies and Services,Other Hired and Contracted Services,265,02/05/2019,1905-00691,0.00,1980.00,R,Alfred Bagnall & Sons (Leeds) Ltd,No
Http://opendatacommunities.org/id/metropolitan-district-council/leeds,Leeds City Council,31/05/2019,Resources and Housing,Leeds Building Services,Supplies and Services,Other Hired and Contracted Services,265,02/05/2019,1905-00692,0.00,1780.00,R,Alfred Bagnall & Sons (Leeds) Ltd,No
Http://opendatacommunities.org/id/metropolitan-district-council/leeds,Leeds City Council,31/05/2019,Resources and Housing,Leeds Building Services,Supplies and Services,Other Hired and Contracted Services,265,02/05/2019,1905-00693,0.00,328.00,R,Alfred Bagnall & Sons (Leeds) Ltd,No
Http://opendatacommunities.org/id/metropolitan-district-council/leeds,Leeds City Council,31/05/2019,Resources and Housing,Leeds Building Services,Supplies and Services,Other Hired and Contracted Services,265,02/05/2019,1905-00694,0.00,6759.00,R,Alfred Bagnall & Sons (Leeds) Ltd,No
Http://opendatacommunities.org/id/metropolitan-district-council/leeds,Leeds City Council,31/05/2019,Resources and Housing,Leeds Building Services,Supplies and Services,Other Hired and Contracted Services,265,02/05/2019,1905-00695,0.00,590.00,R,Alfred Bagnall & Sons (Leeds) Ltd,No
Http://opendatacommunities.org/id/metropolitan-district-council/leeds,Leeds City Council,31/05/2019,Resources and Housing,Leeds Building Services,Supplies and Services,Other Hired and Contracted Services,265,02/05/2019,1905-00696,0.00,560.00,R,Alfred Bagnall & Sons (Leeds) Ltd,No
Http://opendatacommunities.org/id/metropolitan-district-council/leeds,Leeds City Council,31/05/2019,Resources and Housing,Leeds Building Services,Supplies and Services,Other Hired and Contracted Services,265,02/05/2019,1905-00697,0.00,4041.68,R,Alfred Bagnall & Sons (Leeds) Ltd,No
Http://opendatacommunities.org/id/metropolitan-district-council/leeds,Leeds City Council,31/05/2019,Resources and Housing,Leeds Building Services,Supplies and Services,Other Hired and Contracted Services,265,02/05/2019,1905-00698,0.00,240.00,R,Alfred Bagnall & Sons (Leeds) Ltd,No
Http://opendatacommunities.org/id/metropolitan-district-council/leeds,Leeds City Council,31/05/2019,Resources and Housing,Leeds Building Services,Supplies and Services,Other Hired and Contracted Services,265,07/05/2019,1905-00699,0.00,24350.00,R,Alfred Bagnall & Sons (Leeds) Ltd,No
Http://opendatacommunities.org/id/metropolitan-district-council/leeds,Leeds City Council,31/05/2019,Resources and Housing,Corporate Property Management,Capital,Construction,3,17/05/2019,1905-00700,0.00,4200.00,C,Alfred Bagnall & Sons (Leeds) Ltd,No
Http://opendatacommunities.org/id/metropolitan-district-council/leeds,Leeds City Council,31/05/2019,Communities and Environment,Parks and Countryside,Supplies and Services,Other Hired and Contracted Services,265,24/05/2019,1905-00701,0.00,219.00,R,Alfred Bagnall & Sons (Leeds) Ltd,No
Http://opendatacommunities.org/id/metropolitan-district-council/leeds,Leeds City Council,31/05/2019,Resources and Housing,Leeds Building Services,Supplies and Services,Other Hired and Contracted Services,265,31/05/2019,1905-00702,0.00,-800.00,R,Alfred Bagnall & Sons (Leeds) Ltd,No
Http://opendatacommunities.org/id/metropolitan-district-council/leeds,Leeds City Council,31/05/2019,Resources and Housing,Leeds Building Services,Supplies and Services,Other Hired and Contracted Services,265,31/05/2019,1905-00703,0.00,200.00,R,Alfred Bagnall & Sons (Leeds) Ltd,No
Http://opendatacommunities.org/id/metropolitan-district-council/leeds,Leeds City Council,31/05/2019,Resources and Housing,Leeds Building Services,Supplies and Services,Other Hired and Contracted Services,265,31/05/2019,1905-00704,0.00,200.00,R,Alfred Bagnall & Sons (Leeds) Ltd,No
Http://opendatacommunities.org/id/metropolitan-district-council/leeds,Leeds City Council,31/05/2019,Resources and Housing,Leeds Building Services,Supplies and Services,Other Hired and Contracted Services,265,31/05/2019,1905-00705,0.00,200.00,R,Alfred Bagnall & Sons (Leeds) Ltd,No
Http://opendatacommunities.org/id/metropolitan-district-council/leeds,Leeds City Council,31/05/2019,Resources and Housing,Leeds Building Services,Supplies and Services,Other Hired and Contracted Services,265,31/05/2019,1905-00706,0.00,200.00,R,Alfred Bagnall & Sons (Leeds) Ltd,No
Http://opendatacommunities.org/id/metropolitan-district-council/leeds,Leeds City Council,31/05/2019,Resources and Housing,Leeds Building Services,Supplies and Services,Other Hired and Contracted Services,265,31/05/2019,1905-00707,0.00,150.00,R,Alfred Bagnall & Sons (Leeds) Ltd,No
Http://opendatacommunities.org/id/metropolitan-district-council/leeds,Leeds City Council,31/05/2019,Resources and Housing,Leeds Building Services,Supplies and Services,Other Hired and Contracted Services,265,31/05/2019,1905-00708,0.00,450.00,R,Alfred Bagnall & Sons (Leeds) Ltd,No
Http://opendatacommunities.org/id/metropolitan-district-council/leeds,Leeds City Council,31/05/2019,Resources and Housing,Leeds Building Services,Supplies and Services,Other Hired and Contracted Services,265,31/05/2019,1905-00709,0.00,80.00,R,Alfred Bagnall & Sons (Leeds) Ltd,No
Http://opendatacommunities.org/id/metropolitan-district-council/leeds,Leeds City Council,31/05/2019,Resources and Housing,Leeds Building Services,Supplies and Services,Other Hired and Contracted Services,265,31/05/2019,1905-00710,0.00,90.00,R,Alfred Bagnall & Sons (Leeds) Ltd,No
Http://opendatacommunities.org/id/metropolitan-district-council/leeds,Leeds City Council,31/05/2019,Resources and Housing,Leeds Building Services,Supplies and Services,Other Hired and Contracted Services,265,31/05/2019,1905-00711,0.00,800.00,R,Alfred Bagnall & Sons (Leeds) Ltd,No
Http://opendatacommunities.org/id/metropolitan-district-council/leeds,Leeds City Council,31/05/2019,Resources and Housing,Leeds Building Services,Supplies and Services,Other Hired and Contracted Services,265,31/05/2019,1905-00712,0.00,350.00,R,Alfred Bagnall & Sons (Leeds) Ltd,No
Http://opendatacommunities.org/id/metropolitan-district-council/leeds,Leeds City Council,31/05/2019,Resources and Housing,Leeds Building Services,Supplies and Services,Other Hired and Contracted Services,265,31/05/2019,1905-00713,0.00,580.00,R,Alfred Bagnall & Sons (Leeds) Ltd,No
Http://opendatacommunities.org/id/metropolitan-district-council/leeds,Leeds City Council,31/05/2019,Resources and Housing,Leeds Building Services,Supplies and Services,Other Hired and Contracted Services,265,31/05/2019,1905-00714,0.00,400.00,R,Alfred Bagnall & Sons (Leeds) Ltd,No
Http://opendatacommunities.org/id/metropolitan-district-council/leeds,Leeds City Council,31/05/2019,Resources and Housing,Leeds Building Services,Supplies and Services,Other Hired and Contracted Services,265,31/05/2019,1905-00715,0.00,1800.00,R,Alfred Bagnall & Sons (Leeds) Ltd,No
Http://opendatacommunities.org/id/metropolitan-district-council/leeds,Leeds City Council,31/05/2019,City Development,Libraries  Arts & Heritage  ,Supplies and Services,Computer Software & Equipment,214,02/04/2019,1905-00716,0.00,421.83,R,Algolia Algolia Starte,Yes
Http://opendatacommunities.org/id/metropolitan-district-council/leeds,Leeds City Council,31/05/2019,City Development,Libraries  Arts & Heritage,Supplies and Services,Bought In Professional Services,277,10/05/2019,1905-00717,0.00,1500.68,R,Alice Mary Duggan,No
Http://opendatacommunities.org/id/metropolitan-district-council/leeds,Leeds City Council,31/05/2019,Children and Families,Social Care,Third Party Payments,Services Rendered By Other Organisations,511,03/05/2019,1905-00718,0.00,167.70,R,REDACTED PERSONAL DATA,No
Http://opendatacommunities.org/id/metropolitan-district-council/leeds,Leeds City Council,31/05/2019,Communities and Environment,Parks and Countryside,Employees,Training & Development,70,23/05/2019,1905-00719,0.00,436.00,R,Alistair Bromhead Limited,No
Http://opendatacommunities.org/id/metropolitan-district-council/leeds,Leeds City Council,31/05/2019,City Development,Markets & City Centre Management,Supplies and Services,Publication and Promotion,267,10/05/2019,1905-00720,0.00,2500.00,R,Alive and Kicking Theatre Company Ltd,No
Http://opendatacommunities.org/id/metropolitan-district-council/leeds,Leeds City Council,31/05/2019,City Development,Markets & City Centre Management,Supplies and Services,Publication and Promotion,267,14/05/2019,1905-00721,0.00,1000.00,R,Alive and Kicking Theatre Company Ltd,No
Http://opendatacommunities.org/id/metropolitan-district-council/leeds,Leeds City Council,31/05/2019,City Development,Markets & City Centre Management,Supplies and Services,Publication and Promotion,267,14/05/2019,1905-00722,0.00,1000.00,R,Alive and Kicking Theatre Company Ltd,No
Http://opendatacommunities.org/id/metropolitan-district-council/leeds,Leeds City Council,31/05/2019,City Development,Markets & City Centre Management,Supplies and Services,Publication and Promotion,267,31/05/2019,1905-00723,0.00,690.00,R,Alive and Kicking Theatre Company Ltd,No
Http://opendatacommunities.org/id/metropolitan-district-council/leeds,Leeds City Council,31/05/2019,Children and Families,Social Care,Transfer Payments,Leaving Care Grants,635,24/05/2019,1905-00724,0.00,340.00,R,All Abode,No
Http://opendatacommunities.org/id/metropolitan-district-council/leeds,Leeds City Council,31/05/2019,Resources and Housing,Leeds Building Services,Supplies and Services,Other Hired and Contracted Services,265,03/05/2019,1905-00725,0.00,195.00,R,All Clear Solutions Ltd,No
Http://opendatacommunities.org/id/metropolitan-district-council/leeds,Leeds City Council,31/05/2019,Resources and Housing,Leeds Building Services,Supplies and Services,Other Hired and Contracted Services,265,03/05/2019,1905-00726,0.00,195.00,R,All Clear Solutions Ltd,No
Http://opendatacommunities.org/id/metropolitan-district-council/leeds,Leeds City Council,31/05/2019,Resources and Housing,Leeds Building Services,Supplies and Services,Other Hired and Contracted Services,265,23/05/2019,1905-00727,0.00,195.00,R,All Clear Solutions Ltd,No
Http://opendatacommunities.org/id/metropolitan-district-council/leeds,Leeds City Council,31/05/2019,Resources and Housing,Leeds Building Services,Supplies and Services,Other Hired and Contracted Services,265,23/05/2019,1905-00728,0.00,390.00,R,All Clear Solutions Ltd,No
Http://opendatacommunities.org/id/metropolitan-district-council/leeds,Leeds City Council,31/05/2019,Resources and Housing,Leeds Building Services,Supplies and Services,Other Hired and Contracted Services,265,23/05/2019,1905-00729,0.00,195.00,R,All Clear Solutions Ltd,No
Http://opendatacommunities.org/id/metropolitan-district-council/leeds,Leeds City Council,31/05/2019,Children and Families,Social Care,Premises,Hire of meeting rooms,143,13/05/2019,1905-00730,0.00,24.00,R,All Hallows Church,No
Http://opendatacommunities.org/id/metropolitan-district-council/leeds,Leeds City Council,31/05/2019,Resources and Housing,Strategy and Improvement,Supplies and Services,Memberships,226,10/05/2019,1905-00731,0.00,475.00,R,All Party Parliamentary Group For,No
Http://opendatacommunities.org/id/metropolitan-district-council/leeds,Leeds City Council,31/05/2019,Communities and Environment,Elections  Licensing and Registration,Premises,Rents,141,13/05/2019,1905-00732,0.00,360.00,R,All Saints Parish Church,No
Http://opendatacommunities.org/id/metropolitan-district-council/leeds,Leeds City Council,31/05/2019,Communities and Environment,Elections  Licensing and Registration,Premises,Rents,141,31/05/2019,1905-00733,0.00,360.00,R,All Saints Parish Church,No
Http://opendatacommunities.org/id/metropolitan-district-council/leeds,Leeds City Council,31/05/2019,Adults and Health,Services For Adults Under 65 Mental/Dis,Third Party Payments,Home Care,568,03/05/2019,1905-00734,0.00,1216.00,R,All Seasons Home Care,No
Http://opendatacommunities.org/id/metropolitan-district-council/leeds,Leeds City Council,31/05/2019,Communities and Environment,Elections  Licensing and Registration,Premises,Rents,141,13/05/2019,1905-00735,0.00,300.00,R,All Souls Church General Account,No
Http://opendatacommunities.org/id/metropolitan-district-council/leeds,Leeds City Council,31/05/2019,Communities and Environment,Elections  Licensing and Registration,Premises,Rents,141,31/05/2019,1905-00736,0.00,250.00,R,All Souls Church General Account,No
Http://opendatacommunities.org/id/metropolitan-district-council/leeds,Leeds City Council,31/05/2019,Children and Families,Social Care,Third Party Payments,Services Rendered By Other Organisations,511,01/05/2019,1905-00737,0.00,811.20,R,All Stars Childcare,No
Http://opendatacommunities.org/id/metropolitan-district-council/leeds,Leeds City Council,31/05/2019,Children and Families,Social Care,Third Party Payments,Services Rendered By Other Organisations,511,03/05/2019,1905-00738,0.00,7894.80,R,All Stars Childcare,No
Http://opendatacommunities.org/id/metropolitan-district-council/leeds,Leeds City Council,31/05/2019,Children and Families,Social Care,Third Party Payments,Services Rendered By Voluntary Sector,505,08/05/2019,1905-00739,0.00,663.18,R,All Stars Childcare,No
Http://opendatacommunities.org/id/metropolitan-district-council/leeds,Leeds City Council as Accountable Body,31/05/2019,Social Services Pooled Budgets,Jcs For People With Learning Disabilitie,Third Party Payments,Sheltered Accommodation,569,01/05/2019,1905-00740,0.00,11950.76,R,Allerton Avenue,No
Http://opendatacommunities.org/id/metropolitan-district-council/leeds,Leeds City Council as Accountable Body,31/05/2019,Social Services Pooled Budgets,Jcs For People With Learning Disabilitie,Third Party Payments,Sheltered Accommodation,569,29/05/2019,1905-00741,0.00,11950.76,R,Allerton Avenue,No
Http://opendatacommunities.org/id/metropolitan-district-council/leeds,Leeds City Council,31/05/2019,Communities and Environment,Elections  Licensing and Registration,Premises,Rents,141,13/05/2019,1905-00742,0.00,160.00,R,Allerton Bywater Community Partnership,No
Http://opendatacommunities.org/id/metropolitan-district-council/leeds,Leeds City Council,31/05/2019,Communities and Environment,Elections  Licensing and Registration,Premises,Rents,141,31/05/2019,1905-00743,0.00,160.00,R,Allerton Bywater Community Partnership,No
Http://opendatacommunities.org/id/metropolitan-district-council/leeds,Leeds City Council,31/05/2019,Adults and Health,Public Health,Third Party Payments,Public Health Commissioned Services,526,28/05/2019,1905-00744,0.00,120.00,R,Allerton Medical Centre,No
Http://opendatacommunities.org/id/metropolitan-district-council/leeds,Leeds City Council,31/05/2019,Adults and Health,Services For Older People - 65 and Over,Third Party Payments,Nursing Care Dementia,574,01/05/2019,1905-00745,0.00,2094.28,R,Allerton Park N H,No
Http://opendatacommunities.org/id/metropolitan-district-council/leeds,Leeds City Council,31/05/2019,Adults and Health,Services For Older People - 65 and Over,Third Party Payments,Nursing Care Dementia,574,29/05/2019,1905-00746,0.00,2483.44,R,Allerton Park N H,No
Http://opendatacommunities.org/id/metropolitan-district-council/leeds,Leeds City Council,31/05/2019,Communities and Environment,Parks and Countryside,Supplies and Services,Operational Materials,205,31/05/2019,1905-00747,0.00,2.50,R,Allflex Uk Group Ltd,No
Http://opendatacommunities.org/id/metropolitan-district-council/leeds,Leeds City Council,31/05/2019,Communities and Environment,Parks and Countryside,Supplies and Services,Operational Materials,205,31/05/2019,1905-00748,0.00,106.74,R,Allflex Uk Group Ltd,No
Http://opendatacommunities.org/id/metropolitan-district-council/leeds,Leeds City Council,31/05/2019,Resources and Housing,Finance,Supplies and Services,Bank Charges,263,01/05/2019,1905-00749,0.00,-55.74,R,Alliance & Leicester Commercial Bank,No
Http://opendatacommunities.org/id/metropolitan-district-council/leeds,Leeds City Council,31/05/2019,Resources and Housing,Finance,Supplies and Services,Bank Charges,263,07/05/2019,1905-00750,0.00,314.63,R,Alliance & Leicester Commercial Bank,No
Http://opendatacommunities.org/id/metropolitan-district-council/leeds,Leeds City Council,31/05/2019,Resources and Housing,Finance,Supplies and Services,Bank Charges,263,07/05/2019,1905-00751,0.00,100.00,R,Alliance & Leicester Commercial Bank,No
Http://opendatacommunities.org/id/metropolitan-district-council/leeds,Leeds City Council,31/05/2019,Communities and Environment,Parks and Countryside,Supplies and Services,Food & Drink,231,24/05/2019,1905-00752,0.00,124.08,R,Alliance Disposables Ltd,No
Http://opendatacommunities.org/id/metropolitan-district-council/leeds,Leeds City Council,31/05/2019,City Development,Recreation,Employees,Training & Development,70,01/05/2019,1905-00753,0.00,937.50,R,Alliance Leisure Service Ltd,No
Http://opendatacommunities.org/id/metropolitan-district-council/leeds,Leeds City Council,31/05/2019,City Development,Highways,Supplies and Services,Other Hired and Contracted Services,265,17/05/2019,1905-00754,0.00,8679.80,R,Allied Exploration & Geotechnics Ltd,No
Http://opendatacommunities.org/id/metropolitan-district-council/leeds,Leeds City Council as Accountable Body,31/05/2019,Social Services Pooled Budgets,Jcs For People With Learning Disabilitie,Third Party Payments,Home Care,568,08/05/2019,1905-00755,0.00,15137.44,R,Allied Healthcare,No
Http://opendatacommunities.org/id/metropolitan-district-council/leeds,Leeds City Council,31/05/2019,Adults and Health,Services For Older People - 65 and Over,Third Party Payments,Home Care,568,09/05/2019,1905-00756,0.00,2136.96,R,Allied Healthcare,No
Http://opendatacommunities.org/id/metropolitan-district-council/leeds,Leeds City Council,31/05/2019,Adults and Health,Services For Older People - 65 and Over,Third Party Payments,Home Care,568,09/05/2019,1905-00757,0.00,9422.61,R,Allied Healthcare,No
Http://opendatacommunities.org/id/metropolitan-district-council/leeds,Leeds City Council,31/05/2019,Adults and Health,Services For Older People Under 65 P/Dis,Third Party Payments,Home Care,568,09/05/2019,1905-00758,0.00,725.43,R,Allied Healthcare,No
Http://opendatacommunities.org/id/metropolitan-district-council/leeds,Leeds City Council as Accountable Body,31/05/2019,Social Services Pooled Budgets,Jcs For People With Learning Disabilitie,Third Party Payments,Home Care,568,09/05/2019,1905-00759,0.00,294.57,R,Allied Healthcare,No
Http://opendatacommunities.org/id/metropolitan-district-council/leeds,Leeds City Council,31/05/2019,Adults and Health,Services For Adults Under 65 Mental/Dis,Third Party Payments,Home Care,568,09/05/2019,1905-00760,0.00,536.70,R,Allied Healthcare,No
Http://opendatacommunities.org/id/metropolitan-district-council/leeds,Leeds City Council,31/05/2019,Adults and Health,Services For Older People - 65 and Over,Third Party Payments,Home Care,568,09/05/2019,1905-00761,0.00,7766.61,R,Allied Healthcare,No
Http://opendatacommunities.org/id/metropolitan-district-council/leeds,Leeds City Council,31/05/2019,Adults and Health,Services For Older People Under 65 P/Dis,Third Party Payments,Home Care,568,09/05/2019,1905-00762,0.00,1067.82,R,Allied Healthcare,No
Http://opendatacommunities.org/id/metropolitan-district-council/leeds,Leeds City Council,31/05/2019,Adults and Health,Services For Older People - 65 and Over,Third Party Payments,Home Care,568,09/05/2019,1905-00763,0.00,12648.43,R,Allied Healthcare,No
Http://opendatacommunities.org/id/metropolitan-district-council/leeds,Leeds City Council,31/05/2019,Adults and Health,Services For Older People Under 65 P/Dis,Third Party Payments,Home Care,568,09/05/2019,1905-00764,0.00,6048.27,R,Allied Healthcare,No
